BodyName,ServiceAreaCategorisation,ServiceDivisionCategorisation,ExpensesType,Date,TransactionNumber,Amount,CapitalorRevenue,SupplierName,MerchantCategory
Peterborough City Council,Adults,Independent Sector Placements,Services,02/05/2018,30147636,"2,305.92",Revenue,Athena (Ashlynn Grange),Residential Care
Peterborough City Council,Legal Services,Legal Services,Expenses,02/05/2018,30171698,"1,000.00",Revenue,Fenland District Council,Disbursements
Peterborough City Council,Corporate Items,Corporate Services,Agency Staff,02/05/2018,30173408,"10,010.00",Revenue,Penna Plc,External Temporary Staff
Peterborough City Council,Communities,Cultural Services,Agency Staff,02/05/2018,30173409,"9,735.00",Revenue,Penna Plc,External Temporary Staff
Peterborough City Council,Financial Services,Finance,Agency Staff,02/05/2018,30173410,"18,368.00",Revenue,Penna Plc,External Temporary Staff
Peterborough City Council,Corporate Items,Corporate Services,Agency Staff,02/05/2018,30173412,"9,758.00",Revenue,Penna Plc,External Temporary Staff
Peterborough City Council,Director's Office,Director's Office,Agency Staff,02/05/2018,30173413,"20,060.00",Revenue,Penna Plc,External Temporary Staff
Peterborough City Council,Westcombe Engineering,Westcombe Engineering,"Tools, Equipment, Furniture & Materials",02/05/2018,30173430,"10,404.50",Revenue,Parkside Steel (Stockholders) Ltd,Items For Resale
Peterborough City Council,Adults,Independent Sector Placements,Services,02/05/2018,30173467,"3,666.80",Revenue,Boulevard Care Limited,Residential Care
Peterborough City Council,Adults,Independent Sector Placements,Services,02/05/2018,30173473,"1,442.55",Revenue,Athena (Ashlynn Grange),Residential Care
Peterborough City Council,Adults,Independent Sector Placements,Services,02/05/2018,30173476,"2,167.60",Revenue,HEREWARD CARE SERVICES LIMITED,Residential Care
Peterborough City Council,Adults,Independent Sector Placements,Services,02/05/2018,30173479,"3,431.12",Revenue,HEREWARD CARE SERVICES LIMITED,Residential Care
Peterborough City Council,Adults,Independent Sector Placements,Services,02/05/2018,30173480,"1,374.75",Revenue,Deafblind Enablement Ltd,Home Care
Peterborough City Council,Adults,Independent Sector Placements,Services,02/05/2018,30173481,"2,607.00",Revenue,HEREWARD CARE SERVICES LIMITED,Residential Care
Peterborough City Council,Adults,Independent Sector Placements,Services,02/05/2018,30173483,"2,671.84",Revenue,HEREWARD CARE SERVICES LIMITED,Residential Care
Peterborough City Council,Adults,Independent Sector Placements,Services,02/05/2018,30173484,"4,497.76",Revenue,HEREWARD CARE SERVICES LIMITED,Residential Care
Peterborough City Council,Adults,Independent Sector Placements,Services,02/05/2018,30173485,"2,677.32",Revenue,HEREWARD CARE SERVICES LIMITED,Residential Care
Peterborough City Council,Adults,Independent Sector Placements,Services,02/05/2018,30173486,"2,794.04",Revenue,HEREWARD CARE SERVICES LIMITED,Residential Care
Peterborough City Council,Adults,Independent Sector Placements,Services,02/05/2018,30173487,"3,187.48",Revenue,HEREWARD CARE SERVICES LIMITED,Residential Care
Peterborough City Council,Legal Services,Legal Services,Agency Staff,02/05/2018,30173512,535.48,Revenue,Venn Group Ltd,External Temporary Staff
Peterborough City Council,Legal Services,Legal Services,Agency Staff,02/05/2018,30173513,561,Revenue,Venn Group Ltd,External Temporary Staff
Peterborough City Council,Peterborough Highway Services,Network and Traffic Management,Services,02/05/2018,30173514,"1,547.02",Revenue,Dynniq UK Ltd,Contractors
Peterborough City Council,Peterborough Highway Services,Network and Traffic Management,Services,02/05/2018,30173515,604.47,Revenue,Dynniq UK Ltd,Contractors
Peterborough City Council,Peterborough Highway Services,Network and Traffic Management,Services,02/05/2018,30173518,"12,150.60",Revenue,Dynniq UK Ltd,Contractors
Peterborough City Council,Peterborough Highway Services,Network and Traffic Management,Services,02/05/2018,30173519,"4,373.94",Revenue,Dynniq UK Ltd,Contractors
Peterborough City Council,Peterborough Highway Services,Network and Traffic Management,Services,02/05/2018,30173520,618.51,Revenue,Dynniq UK Ltd,Contractors
Peterborough City Council,Peterborough Highway Services,Network and Traffic Management,Services,02/05/2018,30173521,"2,627.90",Revenue,Dynniq UK Ltd,Contractors
Peterborough City Council,Peterborough Highway Services,Network and Traffic Management,Services,02/05/2018,30173522,897.33,Revenue,Dynniq UK Ltd,Contractors
Peterborough City Council,Adults,Home Services Delivery Model,Services,02/05/2018,30173633,603.5,Revenue,Nightingale Services,Contractors
Peterborough City Council,Corporate Property,Commercial Propety,Services,02/05/2018,30173640,"1,110.00",Revenue,Barker Storey Matthews,Professional Services
Peterborough City Council,Development and Construction,Planning Compliance,Agency Staff,02/05/2018,30173691,"1,269.00",Revenue,Park Avenue Recruitment Limited,External Temporary Staff
Peterborough City Council,Legal Services,Legal Services,Services,02/05/2018,30173701,550,Revenue,"Bramwell, Mr Christopher",Legal Costs
Peterborough City Council,Commissioning and Commercial Operations,Commissioning Team,Services,02/05/2018,30173714,"11,000.00",Revenue,Worldwide Training Partnership,Professional Services
Peterborough City Council,"Cemeteries, Cremation & Registrars",Bereavement Service,Repair & Maintenance of Buildings,02/05/2018,30173717,800,Revenue,John F Dunkling Ltd,Premises Maintenance
Peterborough City Council,Constitutional Services,Democratic Services,Interview & Training Expenses,02/05/2018,30173719,"1,346.00",Revenue,Link Support Services (UK) Ltd,Training
Peterborough City Council,Corporate Items,Corporate Services,Services,02/05/2018,30173722,600,Revenue,Huntingdonshire District Council,Subscriptions
Peterborough City Council,Communities,Cohesion,Third Party Payments,02/05/2018,30173723,"17,618.60",Revenue,City College Peterborough,Grant-Third Party
Peterborough City Council,Westcombe Engineering,Westcombe Engineering,"Tools, Equipment, Furniture & Materials",02/05/2018,30173733,"1,200.00",Revenue,AALCO,Items For Resale
Peterborough City Council,Commissioning and Commercial Operations,Commissioning,Services,02/05/2018,30173744,"4,895.00",Revenue,BDP Social Care Ltd,Hired Services
Peterborough City Council,Corporate Property,Office Accomodation,Cleaning & Domestic Supplies,02/05/2018,30173748,"1,477.28",Revenue,Beebys Ltd,Cleaning
Peterborough City Council,Communities,Community Capacity,Cleaning & Domestic Supplies,02/05/2018,30173754,725.3,Revenue,CCL Supplies Ltd,Cleaning Materials
Peterborough City Council,"Waste, Cleansing and Open Spaces",Waste & Operational Svs Mgmt,Agency Staff,02/05/2018,30173846,"12,432.00",Revenue,Penna Plc,External Temporary Staff
Peterborough City Council,Legal Services,Legal Services,Services,02/05/2018,30173870,600,Revenue,Ms Polly Low,Legal Costs
Peterborough City Council,Adults,Independent Sector Placements,Services,02/05/2018,30173908,"3,952.40",Revenue,Voyage,Home Care
Peterborough City Council,Adults,Independent Sector Placements,Services,02/05/2018,30173912,"1,931.20",Revenue,Voyage,Home Care
Peterborough City Council,Adults,Independent Sector Placements,Services,02/05/2018,30173917,"1,988.00",Revenue,Voyage,Home Care
Peterborough City Council,Adults,Independent Sector Placements,Services,02/05/2018,30173918,"3,095.60",Revenue,Voyage,Home Care
Peterborough City Council,Adults,Independent Sector Placements,Services,02/05/2018,30173920,"4,925.36",Revenue,Voyage,Home Care
Peterborough City Council,Adults,Independent Sector Placements,Services,02/05/2018,30173924,"2,385.60",Revenue,Voyage,Home Care
Peterborough City Council,Adults,Independent Sector Placements,Services,02/05/2018,30173927,"1,830.72",Revenue,Voyage,Home Care
Peterborough City Council,Adults,Independent Sector Placements,Services,02/05/2018,30173928,"4,869.20",Revenue,Voyage,Residential Care
Peterborough City Council,Adults,Independent Sector Placements,Services,02/05/2018,30173932,"3,095.60",Revenue,Voyage,Home Care
Peterborough City Council,Adults,Independent Sector Placements,Services,02/05/2018,30173934,"4,378.96",Revenue,Voyage,Home Care
Peterborough City Council,Adults,Independent Sector Placements,Services,02/05/2018,30173935,"5,372.12",Revenue,Voyage,Residential Care
Peterborough City Council,Adults,Independent Sector Placements,Services,02/05/2018,30173937,"1,931.20",Revenue,Voyage,Home Care
Peterborough City Council,Adults,Independent Sector Placements,Services,02/05/2018,30174100,840,Revenue,K2 CARE LTD,Home Care
Peterborough City Council,Adults,Independent Sector Placements,Services,02/05/2018,30174101,"2,541.70",Revenue,K2 CARE LTD,Home Care
Peterborough City Council,Adults,Independent Sector Placements,Services,02/05/2018,30174105,"2,940.00",Revenue,K2 CARE LTD,Home Care
Peterborough City Council,Constitutional Services,Elections,"Printing, Stationery & General Office Expenses",02/05/2018,30174127,595,Revenue,Shaw & Sons Ltd,Stationery
Peterborough City Council,Adults,Therapy/Reablement/Community Equipment,Agency Staff,02/05/2018,30174145,"4,151.40",Revenue,HCL Social Care,External Temporary Staff
Peterborough City Council,Adults,Therapy/Reablement/Community Equipment,Agency Staff,02/05/2018,30174146,"3,334.88",Revenue,HCL Social Care,External Temporary Staff
Peterborough City Council,Children's & Safeguarding,Children's Social Care,Agency Staff,02/05/2018,30174147,"4,994.11",Revenue,HCL Social Care,External Temporary Staff
Peterborough City Council,Regulatory Services,Regulatory Services,Services,02/05/2018,30174148,"1,938.30",Revenue,Arcanum Digital Forensics Ltd,Professional Services
Peterborough City Council,Corporate Property,Commercial Propety,Repair & Maintenance of Buildings,02/05/2018,30174183,"3,750.00",Revenue,Marshland Fen Farming Company Ltd,Premises Repairs
Peterborough City Council,Adults,Independent Sector Placements,Services,02/05/2018,30174194,"4,853.00",Revenue,Mencap,Residential Care
Peterborough City Council,Adults,Independent Sector Placements,Services,02/05/2018,30174196,"4,595.25",Revenue,Mencap,Residential Care
Peterborough City Council,Peterborough Highway Services,Highway & Drainage Control,Agency Staff,02/05/2018,30174210,"1,296.90",Revenue,Matchtech,External Temporary Staff
Peterborough City Council,Peterborough Highway Services,Transport & Infrastructure Commissioning,Services,02/05/2018,30174283,"185,197.99",Revenue,Stagecoach in Peterborough,Contractors
Peterborough City Council,Adults,Independent Sector Placements,Services,02/05/2018,30174352,"3,743.92",Revenue,Voyage,Home Care
Peterborough City Council,Adults,Independent Sector Placements,Services,02/05/2018,30174357,916.08,Revenue,Pilgrim Havens,Residential Care
Peterborough City Council,Adults,Independent Sector Placements,Services,02/05/2018,30174359,"1,320.08",Revenue,Pilgrim Havens,Residential Care
Peterborough City Council,Adults,Independent Sector Placements,Services,02/05/2018,30174361,"1,038.44",Revenue,Pilgrim Havens,Residential Care
Peterborough City Council,Adults,Independent Sector Placements,Services,02/05/2018,30174363,"1,585.20",Revenue,Pilgrim Havens,Residential Care
Peterborough City Council,Adults,Independent Sector Placements,Services,02/05/2018,30174364,"1,631.76",Revenue,Pilgrim Havens,Residential Care
Peterborough City Council,Adults,Independent Sector Placements,Services,02/05/2018,30174365,"1,294.77",Revenue,Pilgrim Havens,Residential Care
Peterborough City Council,Adults,Independent Sector Placements,Services,02/05/2018,30174366,"1,284.08",Revenue,Pilgrim Havens,Residential Care
Peterborough City Council,Peterborough Highway Services,Transport & Infrastructure Commissioning,Services,02/05/2018,30174371,"1,270.00",Revenue,ITSO Ltd,Computer Software
Peterborough City Council,Financial Services,Finance,Services,02/05/2018,30174379,"1,755.00",Revenue,Improvement & Development Agency,Subscriptions
Peterborough City Council,Children's & Safeguarding,Children's Social Care,Agency Staff,02/05/2018,30174381,"1,124.80",Revenue,NonStop Recruitment Ltd,External Temporary Staff
Peterborough City Council,Adults,Therapy/Reablement/Community Equipment,"Tools, Equipment, Furniture & Materials",02/05/2018,30174390,"1,188.99",Revenue,NRS Healthcare,Occupational Therapy Equipment
Peterborough City Council,Adults,Therapy/Reablement/Community Equipment,"Tools, Equipment, Furniture & Materials",02/05/2018,30174410,"93,850.48",Revenue,NRS Healthcare,Occupational Therapy Equipment
Peterborough City Council,Children's & Safeguarding,External Education Placements,Services,02/05/2018,30174411,"20,393.33",Revenue,Knossington Grange School Ltd,Boarding Out Allowances
Peterborough City Council,Financial Services,Finance,Agency Staff,02/05/2018,30174431,790.79,Revenue,Morgan Hunt UK Ltd,External Temporary Staff
Peterborough City Council,Development and Construction,Building Control,Services,02/05/2018,30174462,722.5,Revenue,Ruck Consultancy Limited,Contract Services
Peterborough City Council,Peterborough Highway Services,Network and Traffic Management,Services,02/05/2018,30174469,"2,400.00",Revenue,Ian Routledge Consultancy,Computer Software
Peterborough City Council,Adults,Community Team,Repair & Maintenance of Buildings,02/05/2018,30174471,"3,985.00",Revenue,Rawheat Heating & Plumbing Eng.,Premises Maintenance
Peterborough City Council,Education,Special Educational Needs / Inclusion,Services,02/05/2018,30174476,"1,057.90",Revenue,Ewing Foundation,Hired Services
Peterborough City Council,Legal Services,Legal Services,Agency Staff,02/05/2018,30174509,"1,718.75",Revenue,Venn Group Ltd,External Temporary Staff
Peterborough City Council,Adults,Mental Capacity Act & DoLs,Services,02/05/2018,30174515,"3,410.00",Revenue,Raj Medical Consultancy Limited,Hired Services
Peterborough City Council,Legal Services,Legal Services,Services,02/05/2018,30174532,550,Revenue,"Walji, Miss Shabnam",Legal Costs
Peterborough City Council,Adults,Independent Sector Placements,Services,02/05/2018,30174564,"11,780.00",Revenue,Exclusive Secure Care Services,Home Care
Peterborough City Council,Adults,Therapy/Reablement/Community Equipment,"Tools, Equipment, Furniture & Materials",02/05/2018,30174568,703.18,Revenue,Action on Hearing Loss,Occupational Therapy Equipment
Peterborough City Council,"Cemeteries, Cremation & Registrars",Bereavement Service,Services,02/05/2018,30174601,"1,578.81",Revenue,Anglia Co-operative Funerals,Contract Funerals
Peterborough City Council,Constitutional Services,Democratic Services,Services,02/05/2018,30174604,"34,207.28",Revenue,Local Government Association,Subscriptions
Peterborough City Council,Commissioning and Commercial Operations,Clare Lodge,Agency Staff,02/05/2018,30174634,528,Revenue,Wrixon Care Services,External Temporary Staff
Peterborough City Council,Commissioning and Commercial Operations,Clare Lodge,Agency Staff,02/05/2018,30174636,877,Revenue,Wrixon Care Services,External Temporary Staff
Peterborough City Council,Commissioning and Commercial Operations,Clare Lodge,Agency Staff,02/05/2018,30174638,709,Revenue,Wrixon Care Services,External Temporary Staff
Peterborough City Council,Commissioning and Commercial Operations,Clare Lodge,Agency Staff,02/05/2018,30174641,"1,168.00",Revenue,Wrixon Care Services,External Temporary Staff
Peterborough City Council,Commissioning and Commercial Operations,Clare Lodge,Agency Staff,02/05/2018,30174642,997,Revenue,Wrixon Care Services,External Temporary Staff
Peterborough City Council,Commissioning and Commercial Operations,Clare Lodge,Agency Staff,02/05/2018,30174646,"1,056.00",Revenue,Wrixon Care Services,External Temporary Staff
Peterborough City Council,Commissioning and Commercial Operations,Clare Lodge,Agency Staff,02/05/2018,30174678,"1,376.00",Revenue,Wrixon Care Services,External Temporary Staff
Peterborough City Council,Commissioning and Commercial Operations,Clare Lodge,Agency Staff,02/05/2018,30174679,"1,328.00",Revenue,Wrixon Care Services,External Temporary Staff
Peterborough City Council,Adults,Block Contracts,Third Party Payments,02/05/2018,30174696,"60,548.12",Revenue,HEREWARD CARE SERVICES LIMITED,Third Party Payments - Contract
Peterborough City Council,Regulatory Services,Regulatory Services,Services,02/05/2018,30174761,"5,632.00",Revenue,Cambridge & District Citizens Advice Bureau,Grant Payment
Peterborough City Council,Peterborough Serco Strategic Partnership,PSSP Retained Services,Services,02/05/2018,30174805,"1,098.45",Revenue,Whistl UK Ltd,Postage
Peterborough City Council,Communities,Housing,Services,02/05/2018,30174860,553,Revenue,Eastfield Guesthouse,Homelessness Temporary Accommodation 
Peterborough City Council,Communities,Housing,Services,02/05/2018,30174866,553,Revenue,Eastfield Guesthouse,Homelessness Temporary Accommodation 
Peterborough City Council,Communities,Housing,Services,02/05/2018,30174867,553,Revenue,Eastfield Guesthouse,Homelessness Temporary Accommodation 
Peterborough City Council,Communities,Housing,Services,02/05/2018,30174874,532,Revenue,Eastfield Guesthouse,Homelessness Temporary Accommodation 
Peterborough City Council,Communities,Housing,Services,02/05/2018,30174880,532,Revenue,Eastfield Guesthouse,Homelessness Temporary Accommodation 
Peterborough City Council,Adults,Independent Sector Placements,Services,02/05/2018,30174891,"1,114.68",Revenue,GCH (North London) Ltd - Tudors,Residential Care
Peterborough City Council,Adults,Independent Sector Placements,Services,02/05/2018,30174892,"1,064.80",Revenue,GCH (North London) Ltd - Tudors,Residential Care
Peterborough City Council,Adults,Independent Sector Placements,Services,02/05/2018,30174893,"1,776.24",Revenue,GCH (North London) Ltd - Tudors,Residential Care
Peterborough City Council,Adults,Independent Sector Placements,Services,02/05/2018,30174894,988.78,Revenue,GCH (North London) Ltd - Tudors,Residential Care
Peterborough City Council,Adults,Independent Sector Placements,Services,02/05/2018,30174895,"1,085.72",Revenue,GCH (North London) Ltd - Tudors,Residential Care
Peterborough City Council,Adults,Independent Sector Placements,Services,02/05/2018,30174896,"1,280.43",Revenue,GCH (North London) Ltd - Tudors,Residential Care
Peterborough City Council,Adults,Independent Sector Placements,Services,02/05/2018,30174898,"1,031.14",Revenue,GCH (North London) Ltd - Tudors,Residential Care
Peterborough City Council,Adults,Independent Sector Placements,Services,02/05/2018,30174901,"13,745.92",Revenue,GCH (North London) Ltd - Tudors,Residential Care
Peterborough City Council,Adults,Independent Sector Placements,Services,02/05/2018,30174902,701.2,Revenue,GCH (North London) Ltd - Tudors,Residential Care
Peterborough City Council,Adults,Independent Sector Placements,Services,02/05/2018,30174903,"1,707.72",Revenue,GCH (North London) Ltd - Tudors,Residential Care
Peterborough City Council,Adults,Independent Sector Placements,Services,02/05/2018,30174904,"1,367.40",Revenue,GCH (North London) Ltd - Tudors,Residential Care
Peterborough City Council,Adults,Independent Sector Placements,Services,02/05/2018,30174906,"1,640.28",Revenue,GCH (North London) Ltd - Tudors,Residential Care
Peterborough City Council,Adults,Independent Sector Placements,Services,02/05/2018,30174907,"1,376.78",Revenue,GCH (North London) Ltd - Tudors,Residential Care
Peterborough City Council,Adults,Independent Sector Placements,Services,02/05/2018,30174912,"1,222.48",Revenue,GCH (North London) Ltd - Tudors,Residential Care
Peterborough City Council,Adults,Independent Sector Placements,Services,02/05/2018,30174917,"1,707.77",Revenue,GCH (North London) Ltd - Tudors,Residential Care
Peterborough City Council,Adults,Independent Sector Placements,Services,02/05/2018,30174918,"1,229.03",Revenue,GCH (North London) Ltd - Tudors,Residential Care
Peterborough City Council,Adults,Independent Sector Placements,Services,02/05/2018,30174920,"1,198.74",Revenue,GCH (North London) Ltd - Tudors,Residential Care
Peterborough City Council,Adults,Independent Sector Placements,Services,02/05/2018,30174923,"1,312.08",Revenue,GCH (North London) Ltd - Tudors,Residential Care
Peterborough City Council,Adults,Independent Sector Placements,Services,02/05/2018,30174924,"1,526.56",Revenue,GCH (North London) Ltd - Tudors,Residential Care
Peterborough City Council,Adults,Independent Sector Placements,Services,02/05/2018,30174925,"2,021.88",Revenue,GCH (North London) Ltd - Tudors,Residential Care
Peterborough City Council,Adults,Independent Sector Placements,Services,02/05/2018,30174926,"2,100.00",Revenue,GCH (North London) Ltd - Tudors,Residential Care
Peterborough City Council,Adults,Independent Sector Placements,Services,02/05/2018,30174927,957.96,Revenue,GCH (North London) Ltd - Tudors,Residential Care
Peterborough City Council,Adults,Independent Sector Placements,Services,02/05/2018,30174928,"1,284.43",Revenue,GCH (North London) Ltd - Tudors,Residential Care
Peterborough City Council,Adults,Independent Sector Placements,Services,02/05/2018,30174934,"1,476.78",Revenue,GCH (North London) Ltd - Tudors,Residential Care
Peterborough City Council,Corporate,Corporate,Non Revenue,02/05/2018,30174938,"3,530.00",Capital,EMS Stairlifts,Grant Payment
Peterborough City Council,Communities,Housing,Services,02/05/2018,30175081,553,Revenue,Eastfield Guesthouse,Homelessness Temporary Accommodation 
Peterborough City Council,Communities,Housing,Services,02/05/2018,30175084,532,Revenue,Eastfield Guesthouse,Homelessness Temporary Accommodation 
Peterborough City Council,Communities,Housing,Services,02/05/2018,30175085,595.56,Revenue,DA Rosalia Hotel,Homelessness Temporary Accommodation 
Peterborough City Council,Communities,Housing,Services,02/05/2018,30175086,933.38,Revenue,DA Rosalia Hotel,Homelessness Temporary Accommodation 
Peterborough City Council,Communities,Housing,Services,02/05/2018,30175088,595.56,Revenue,DA Rosalia Hotel,Homelessness Temporary Accommodation 
Peterborough City Council,Adults,OP/PD/SI,Services,02/05/2018,30175176,"3,780.00",Revenue,F I L E F,Grant Payment
Peterborough City Council,Adults,Independent Sector Placements,Services,02/05/2018,30175244,"3,993.10",Revenue,Mencap,Residential Care
Peterborough City Council,Adults,Strategic Commissioning - Management,Agency Staff,02/05/2018,30175365,"4,764.69",Revenue,Badenoch & Clark Ltd,External Temporary Staff
Peterborough City Council,Adults,Day opportunities - Older People,Agency Staff,02/05/2018,30175366,976.8,Revenue,Medicare First Ltd,External Temporary Staff
Peterborough City Council,Adults,Strategic Commissioning - Management,Agency Staff,02/05/2018,30175373,"2,117.64",Revenue,Badenoch & Clark Ltd,External Temporary Staff
Peterborough City Council,Westcombe Engineering,Westcombe Engineering,"Tools, Equipment, Furniture & Materials",02/05/2018,30175424,595,Revenue,Barron Clark Castings Ltd,Items For Resale
Peterborough City Council,Westcombe Engineering,Westcombe Engineering,"Tools, Equipment, Furniture & Materials",02/05/2018,30175428,"1,055.86",Revenue,Barron Clark Castings Ltd,Items For Resale
Peterborough City Council,Westcombe Engineering,Westcombe Engineering,"Tools, Equipment, Furniture & Materials",02/05/2018,30175431,541.12,Revenue,Barron Clark Castings Ltd,Items For Resale
Peterborough City Council,Adults,Finance,Agency Staff,02/05/2018,30175552,"2,102.95",Revenue,Badenoch & Clark Ltd,External Temporary Staff
Peterborough City Council,Adults,Independent Sector Placements,Services,02/05/2018,30175553,"2,300.00",Revenue,GCH (North London) Ltd - Tudors,Residential Care
Peterborough City Council,Westcombe Engineering,Westcombe Engineering,"Tools, Equipment, Furniture & Materials",02/05/2018,30175557,595,Revenue,Barron Clark Castings Ltd,Items For Resale
Peterborough City Council,Westcombe Engineering,Westcombe Engineering,"Tools, Equipment, Furniture & Materials",02/05/2018,30175561,637.52,Revenue,Barron Clark Castings Ltd,Items For Resale
Peterborough City Council,Westcombe Engineering,Westcombe Engineering,"Tools, Equipment, Furniture & Materials",02/05/2018,30175566,934.03,Revenue,Barron Clark Castings Ltd,Items For Resale
Peterborough City Council,Westcombe Engineering,Westcombe Engineering,"Tools, Equipment, Furniture & Materials",02/05/2018,30175568,914.8,Revenue,Barron Clark Castings Ltd,Items For Resale
Peterborough City Council,Commissioning and Commercial Operations,Clare Lodge,Agency Staff,02/05/2018,30175656,"1,984.00",Revenue,Wrixon Care Services,External Temporary Staff
Peterborough City Council,Adults,Finance,Agency Staff,02/05/2018,30175673,"1,941.18",Revenue,Badenoch & Clark Ltd,External Temporary Staff
Peterborough City Council,Corporate Property,Commercial Propety,Services,02/05/2018,30175690,"1,500.00",Revenue,NPS Peterborough Ltd,Consultants Fees
Peterborough City Council,Adults,Independent Sector Placements,Services,02/05/2018,30175729,"1,821.88",Revenue,Pilgrim Havens,Residential Care
Peterborough City Council,Corporate Property,Office Accomodation,Repair & Maintenance of Buildings,02/05/2018,30175743,"5,928.33",Revenue,Baker Perkins Ltd,Service Charges - Premises
Peterborough City Council,Commissioning and Commercial Operations,Commissioning Team,Agency Staff,02/05/2018,30175749,"2,243.60",Revenue,Reed Specialist Recruitment Limited,External Temporary Staff
Peterborough City Council,Children's & Safeguarding,Access to Resources & Specialist Commissioning,Services,02/05/2018,30175763,"1,680.00",Revenue,Broadwood Educational Services Ltd,Boarding Out Allowances
Peterborough City Council,Children's & Safeguarding,External Education Placements,Services,02/05/2018,30175766,"27,151.43",Revenue,Broadwood Educational Services Ltd,Boarding Out Allowances
Peterborough City Council,Education,School Standards & Effectiveness,Services,02/05/2018,30175811,500,Revenue,National Ass. Virtual School Heads,Subscriptions
Peterborough City Council,Corporate Items,Corporate Services,Agency Staff,02/05/2018,30175820,"12,155.00",Revenue,Green Park Interim and Exec Ltd,External Temporary Staff
Peterborough City Council,Legal Services,Legal Services,Agency Staff,02/05/2018,30175839,788.5,Revenue,Giant Professional Limited,External Temporary Staff
Peterborough City Council,Adults,Therapy/Reablement/Community Equipment,"Tools, Equipment, Furniture & Materials",02/05/2018,30175852,"2,557.00",Revenue,P F S Builders & Contractors,Occupational Therapy Equipment
Peterborough City Council,Adults,Therapy/Reablement/Community Equipment,"Tools, Equipment, Furniture & Materials",02/05/2018,30175853,"2,816.00",Revenue,P F S Builders & Contractors,Occupational Therapy Equipment
Peterborough City Council,Adults,Therapy/Reablement/Community Equipment,"Tools, Equipment, Furniture & Materials",02/05/2018,30175854,"2,922.00",Revenue,P F S Builders & Contractors,Occupational Therapy Equipment
Peterborough City Council,Adults,Therapy/Reablement/Community Equipment,"Tools, Equipment, Furniture & Materials",02/05/2018,30175855,"2,955.00",Revenue,P F S Builders & Contractors,Occupational Therapy Equipment
Peterborough City Council,Adults,Therapy/Reablement/Community Equipment,"Tools, Equipment, Furniture & Materials",02/05/2018,30175856,"2,989.00",Revenue,P F S Builders & Contractors,Occupational Therapy Equipment
Peterborough City Council,Adults,Therapy/Reablement/Community Equipment,"Tools, Equipment, Furniture & Materials",02/05/2018,30175857,754,Revenue,P F S Builders & Contractors,Occupational Therapy Equipment
Peterborough City Council,Adults,Therapy/Reablement/Community Equipment,"Tools, Equipment, Furniture & Materials",02/05/2018,30175858,"2,919.00",Revenue,P F S Builders & Contractors,Occupational Therapy Equipment
Peterborough City Council,Adults,Independent Sector Placements,Services,02/05/2018,30175866,"1,756.00",Revenue,COMFORCARE SENIOR SERVICES,Home Care
Peterborough City Council,Legal Services,Legal Services,Services,02/05/2018,30175878,900,Revenue,Miss Laura Martin,Legal Costs
Peterborough City Council,Commissioning and Commercial Operations,Commissioning Team,Services,02/05/2018,30175964,"1,500.00",Revenue,No5 Barrister Chambers Ltd,Legal Costs
Peterborough City Council,Education,Special Educational Needs / Inclusion,Services,02/05/2018,30176024,560.5,Revenue,Children's Therapy Solutions Ltd,Occupational Health
Peterborough City Council,Westcombe Engineering,Westcombe Engineering,"Tools, Equipment, Furniture & Materials",02/05/2018,30176090,552.5,Revenue,Olis Machine Tools Ltd,Equipment Repairs
Peterborough City Council,Westcombe Engineering,Westcombe Engineering,"Tools, Equipment, Furniture & Materials",02/05/2018,30176104,982,Revenue,Barron Clark Castings Ltd,Items For Resale
Peterborough City Council,Adults,Independent Sector Placements,Services,02/05/2018,30176234,602,Revenue,Sahara Community Care Services,Home Care
Peterborough City Council,Education,Pupil Referral Unit,Energy Costs,02/05/2018,30176242,"1,432.43",Revenue,Southern Electric,Electricity
Peterborough City Council,Adults,Independent Sector Placements,Services,02/05/2018,30176251,"1,821.88",Revenue,Fins Care Ltd t/a St Margarets Rest Home,Residential Care
Peterborough City Council,Adults,Independent Sector Placements,Services,02/05/2018,30176287,"2,202.42",Revenue,Atlas Care Services Ltd,Home Care
Peterborough City Council,Adults,Independent Sector Placements,Services,02/05/2018,30176326,"1,088.50",Revenue,Sahara Community Care Services,Home Care
Peterborough City Council,Adults,Independent Sector Placements,Services,02/05/2018,30176327,735,Revenue,Sahara Community Care Services,Home Care
Peterborough City Council,Adults,Independent Sector Placements,Services,02/05/2018,30176328,728,Revenue,Sahara Community Care Services,Home Care
Peterborough City Council,Adults,Independent Sector Placements,Services,02/05/2018,30176350,938,Revenue,Sahara Community Care Services,Home Care
Peterborough City Council,Adults,Independent Sector Placements,Services,02/05/2018,30176353,805,Revenue,Sahara Community Care Services,Home Care
Peterborough City Council,Adults,Independent Sector Placements,Services,02/05/2018,30176354,"2,352.00",Revenue,Sahara Community Care Services,Home Care
Peterborough City Council,Adults,Independent Sector Placements,Services,02/05/2018,30176356,"1,078.00",Revenue,Sahara Community Care Services,Home Care
Peterborough City Council,Adults,Independent Sector Placements,Services,02/05/2018,30176357,896,Revenue,Sahara Community Care Services,Home Care
Peterborough City Council,Adults,Independent Sector Placements,Services,02/05/2018,30176368,771,Revenue,THE CLAIR FRANCIS RETIREMENT HOME,Residential Care
Peterborough City Council,Adults,Independent Sector Placements,Services,02/05/2018,30176375,"1,087.60",Revenue,Voyage,Home Care
Peterborough City Council,Adults,Independent Sector Placements,Services,02/05/2018,30176389,"2,576.00",Revenue,K2 CARE LTD,Home Care
Peterborough City Council,Adults,Independent Sector Placements,Services,02/05/2018,30176397,546.5,Revenue,Sahara Community Care Services,Home Care
Peterborough City Council,Adults,Independent Sector Placements,Services,02/05/2018,30176398,546,Revenue,Sahara Community Care Services,Home Care
Peterborough City Council,Adults,Independent Sector Placements,Services,02/05/2018,30176407,546,Revenue,Sahara Community Care Services,Home Care
Peterborough City Council,Corporate,Corporate,Non Revenue,02/05/2018,30176463,"1,946.88",Capital,Reed Specialist Recruitment Limited,Consultants Fees
Peterborough City Council,Public Health,PH Commissioning,Third Party Payments,02/05/2018,30176475,"4,801.50",Revenue,Boroughbury Medical Centre,Third Party Payments - Contract
Peterborough City Council,Public Health,PH Commissioning,Third Party Payments,02/05/2018,30176477,"1,242.00",Revenue,Central Medical Centre,Third Party Payments - Contract
Peterborough City Council,Peterborough Highway Services,Highway & Drainage Control,Agency Staff,02/05/2018,30176506,"1,302.60",Revenue,Reed Specialist Recruitment Limited,External Temporary Staff
Peterborough City Council,Commissioning and Commercial Operations,Commissioning Team,Agency Staff,02/05/2018,30176510,548.78,Revenue,Reed Specialist Recruitment Limited,External Temporary Staff
Peterborough City Council,Commissioning and Commercial Operations,Commissioning Team,Agency Staff,02/05/2018,30176513,"2,243.60",Revenue,Reed Specialist Recruitment Limited,External Temporary Staff
Peterborough City Council,Adults,Strategic Commissioning - Management,Agency Staff,02/05/2018,30176516,"2,953.60",Revenue,Reed Specialist Recruitment Limited,External Temporary Staff
Peterborough City Council,Financial Services,Finance,Agency Staff,02/05/2018,30176520,616.59,Revenue,Reed Specialist Recruitment Limited,External Temporary Staff
Peterborough City Council,Financial Services,Finance,Agency Staff,02/05/2018,30176522,664.24,Revenue,Reed Specialist Recruitment Limited,External Temporary Staff
Peterborough City Council,Adults,Strategic Commissioning - Management,Agency Staff,02/05/2018,30176523,528.7,Revenue,Reed Specialist Recruitment Limited,External Temporary Staff
Peterborough City Council,Corporate,Corporate,Non Revenue,02/05/2018,30176525,"2,583.60",Capital,Reed Specialist Recruitment Limited,Consultants Fees
Peterborough City Council,Education,Special Educational Needs / Inclusion,Services,02/05/2018,30176530,750,Revenue,David Hawman,Hired Services
Peterborough City Council,"Waste, Cleansing and Open Spaces",Waste & Operational Svs Mgmt,Services,02/05/2018,30176564,"3,711.79",Revenue,West Ward Bowls Club,Grant Payment
Peterborough City Council,Public Health,PH Commissioning,Third Party Payments,02/05/2018,30176578,"3,370.50",Revenue,Westgate Surgery,Third Party Payments - Contract
Peterborough City Council,Financial Services,Finance,Agency Staff,02/05/2018,30176645,"11,925.00",Revenue,Penna Plc,External Temporary Staff
Peterborough City Council,Communities,Housing,Services,02/05/2018,30176664,"1,012.75",Revenue,YMCA Cambridge & Peterborough Ltd,Financial Assistance
Peterborough City Council,Education,HTS & CSC Transport,Contract Hire and Operating Leases,02/05/2018,30176670,"3,694.00",Revenue,Marks Passenger Services Ltd,Hired Transport
Peterborough City Council,Education,HTS & CSC Transport,Contract Hire and Operating Leases,02/05/2018,30176673,"3,330.60",Revenue,Marks Passenger Services Ltd,Hired Transport
Peterborough City Council,Education,HTS & CSC Transport,Contract Hire and Operating Leases,02/05/2018,30176681,"3,570.00",Revenue,Marks Passenger Services Ltd,Hired Transport
Peterborough City Council,Legal Services,Legal Services,Services,02/05/2018,30176683,"3,900.00",Revenue,"Elliott, Ms Margot",Legal Costs
Peterborough City Council,Education,HTS & CSC Transport,Contract Hire and Operating Leases,02/05/2018,30176697,"3,150.00",Revenue,Marks Passenger Services Ltd,Hired Transport
Peterborough City Council,Education,HTS & CSC Transport,Contract Hire and Operating Leases,02/05/2018,30176699,"3,990.00",Revenue,Marks Passenger Services Ltd,Hired Transport
Peterborough City Council,Education,HTS & CSC Transport,Contract Hire and Operating Leases,02/05/2018,30176704,"3,150.00",Revenue,Marks Passenger Services Ltd,Hired Transport
Peterborough City Council,Education,HTS & CSC Transport,Contract Hire and Operating Leases,02/05/2018,30176705,"3,990.00",Revenue,Marks Passenger Services Ltd,Hired Transport
Peterborough City Council,Education,HTS & CSC Transport,Contract Hire and Operating Leases,02/05/2018,30176706,"3,369.24",Revenue,Marks Passenger Services Ltd,Hired Transport
Peterborough City Council,Corporate,Corporate,Non Revenue,02/05/2018,30176713,"5,265.00",Capital,A W Morley T/A Morley Building Services,Grant Payment
Peterborough City Council,Communities,Cultural Services,Water Services,02/05/2018,30176714,"5,593.62",Revenue,Anglian Water Business National,Water
Peterborough City Council,Communities,Community Capacity,Water Services,02/05/2018,30176714,530.38,Revenue,Anglian Water Business National,Water
Peterborough City Council,Education,PFI,Water Services,02/05/2018,30176714,"3,022.07",Revenue,Anglian Water Business National,Water
Peterborough City Council,City Centre Management,"Markets, Tourism & Events",Catering,02/05/2018,30176717,997.5,Revenue,Chapter of Peterborough Cathedral,Catering
Peterborough City Council,Adults,Independent Sector Placements,Services,02/05/2018,30176719,"5,530.71",Revenue,Park Vista Care Home,Residential Care
Peterborough City Council,Adults,Independent Sector Placements,Services,02/05/2018,30176726,"2,616.34",Revenue,Turning Point Services Ltd,Residential Care
Peterborough City Council,Adults,Independent Sector Placements,Services,02/05/2018,30176727,"2,342.88",Revenue,Turning Point Services Ltd,Residential Care
Peterborough City Council,Adults,Independent Sector Placements,Services,02/05/2018,30176728,"2,350.14",Revenue,Turning Point Services Ltd,Residential Care
Peterborough City Council,Adults,Independent Sector Placements,Services,02/05/2018,30176729,"2,530.25",Revenue,Turning Point Services Ltd,Residential Care
Peterborough City Council,Communities,Housing,Services,02/05/2018,30176732,560,Revenue,Singh and Sons Property Management Ltd,Homelessness Temporary Accommodation 
Peterborough City Council,Adults,Independent Sector Placements,Services,02/05/2018,30176741,"2,616.34",Revenue,Turning Point Services Ltd,Residential Care
Peterborough City Council,Adults,Independent Sector Placements,Services,02/05/2018,30176743,"1,904.33",Revenue,Turning Point Services Ltd,Residential Care
Peterborough City Council,Adults,Finance,Third Party Payments,02/05/2018,30176754,"5,485.71",Revenue,Cross Keys Homes,Third Party Payments - Contract
Peterborough City Council,Adults,Independent Sector Placements,Services,02/05/2018,30176755,"2,863.38",Revenue,Turning Point Services Ltd,Residential Care
Peterborough City Council,Adults,Independent Sector Placements,Services,02/05/2018,30176756,"3,197.39",Revenue,Turning Point Services Ltd,Residential Care
Peterborough City Council,Adults,Independent Sector Placements,Services,02/05/2018,30176758,"2,171.91",Revenue,Turning Point Services Ltd,Residential Care
Peterborough City Council,Adults,Independent Sector Placements,Services,02/05/2018,30176759,"3,005.73",Revenue,Turning Point Services Ltd,Residential Care
Peterborough City Council,Adults,Independent Sector Placements,Services,02/05/2018,30176760,"2,357.66",Revenue,Turning Point Services Ltd,Residential Care
Peterborough City Council,Adults,Independent Sector Placements,Services,02/05/2018,30176761,"3,005.73",Revenue,Turning Point Services Ltd,Residential Care
Peterborough City Council,Adults,Independent Sector Placements,Services,02/05/2018,30176762,"7,731.10",Revenue,Turning Point Services Ltd,Residential Care
Peterborough City Council,Adults,Independent Sector Placements,Services,02/05/2018,30176763,"3,221.72",Revenue,Turning Point Services Ltd,Residential Care
Peterborough City Council,Adults,Independent Sector Placements,Services,02/05/2018,30176764,"2,865.98",Revenue,Turning Point Services Ltd,Residential Care
Peterborough City Council,Adults,Independent Sector Placements,Services,02/05/2018,30176765,"5,400.85",Revenue,Turning Point Services Ltd,Residential Care
Peterborough City Council,Communities,Housing,Services,02/05/2018,30176796,714.56,Revenue,DA Rosalia Hotel,Homelessness Temporary Accommodation 
Peterborough City Council,Commissioning and Commercial Operations,Early Years & Quality Improvement,Services,02/05/2018,30176801,719.16,Revenue,Redacted Personal Data,Grant Payment
Peterborough City Council,Commissioning and Commercial Operations,Early Years & Quality Improvement,Services,02/05/2018,30176802,615,Revenue,Herlington Pre-School,Grant Payment
Peterborough City Council,Commissioning and Commercial Operations,Early Years & Quality Improvement,Services,02/05/2018,30176805,615,Revenue,Herlington Pre-School,Grant Payment
Peterborough City Council,Commissioning and Commercial Operations,Early Years & Quality Improvement,Services,02/05/2018,30176807,615,Revenue,Bretton Community Pre-School,Grant Payment
Peterborough City Council,Adults,Independent Sector Placements,Services,02/05/2018,30176810,"1,057.00",Revenue,Sahara Community Care Services,Home Care
Peterborough City Council,Adults,OP/PD/SI,Third Party Payments,02/05/2018,30176845,"2,149.00",Revenue,Cambridgeshire Deaf Association,Grant-Third Party
Peterborough City Council,Adults,Independent Sector Placements,Services,02/05/2018,30176911,"1,821.88",Revenue,Maxey House Res Home,Residential Care
Peterborough City Council,HR,HR,Services,02/05/2018,30176920,995,Revenue,DLA Piper UK LLP,Legal Costs
Peterborough City Council,Adults,Strategic Commissioning - Management,Agency Staff,02/05/2018,30176933,"8,091.28",Revenue,Eden Brown Ltd,External Temporary Staff
Peterborough City Council,Adults,Independent Sector Placements,Services,02/05/2018,8000113784,840,Revenue,COMFORCARE SENIOR SERVICES,Home Care
Peterborough City Council,Adults,Independent Sector Placements,Services,02/05/2018,8000113785,"2,162.75",Revenue,COMFORCARE SENIOR SERVICES,Home Care
Peterborough City Council,Adults,Independent Sector Placements,Services,02/05/2018,8000113786,587,Revenue,COMFORCARE SENIOR SERVICES,Home Care
Peterborough City Council,Adults,Independent Sector Placements,Services,02/05/2018,8000113789,570.5,Revenue,COMFORCARE SENIOR SERVICES,Home Care
Peterborough City Council,Adults,Independent Sector Placements,Services,02/05/2018,8000113791,"2,079.00",Revenue,COMFORCARE SENIOR SERVICES,Home Care
Peterborough City Council,Adults,Independent Sector Placements,Services,02/05/2018,8000113792,"1,323.00",Revenue,COMFORCARE SENIOR SERVICES,Home Care
Peterborough City Council,Adults,Independent Sector Placements,Services,02/05/2018,8000113795,732.75,Revenue,COMFORCARE SENIOR SERVICES,Home Care
Peterborough City Council,Adults,Independent Sector Placements,Services,02/05/2018,8000113796,602.25,Revenue,COMFORCARE SENIOR SERVICES,Home Care
Peterborough City Council,Adults,Independent Sector Placements,Services,02/05/2018,8000113797,785.5,Revenue,COMFORCARE SENIOR SERVICES,Home Care
Peterborough City Council,Adults,Independent Sector Placements,Services,02/05/2018,8000113798,543.75,Revenue,COMFORCARE SENIOR SERVICES,Home Care
Peterborough City Council,Adults,Independent Sector Placements,Services,02/05/2018,8000113799,"1,873.00",Revenue,COMFORCARE SENIOR SERVICES,Home Care
Peterborough City Council,Adults,Independent Sector Placements,Services,02/05/2018,8000113803,"1,007.25",Revenue,COMFORCARE SENIOR SERVICES,Home Care
Peterborough City Council,Adults,Independent Sector Placements,Services,02/05/2018,8000113902,795.9,Revenue,MEARS GROUP,Home Care
Peterborough City Council,Adults,Independent Sector Placements,Services,02/05/2018,8000113903,620.55,Revenue,MEARS GROUP,Home Care
Peterborough City Council,Adults,Independent Sector Placements,Services,02/05/2018,8000113904,830.85,Revenue,MEARS GROUP,Home Care
Peterborough City Council,Adults,Independent Sector Placements,Services,02/05/2018,8000113905,500.7,Revenue,MEARS GROUP,Home Care
Peterborough City Council,Adults,Independent Sector Placements,Services,02/05/2018,8000113911,792,Revenue,MEARS GROUP,Home Care
Peterborough City Council,Adults,Independent Sector Placements,Services,02/05/2018,8000113912,524.85,Revenue,MEARS GROUP,Home Care
Peterborough City Council,Adults,Independent Sector Placements,Services,02/05/2018,8000113928,526.8,Revenue,MEARS GROUP,Home Care
Peterborough City Council,Adults,Independent Sector Placements,Services,02/05/2018,8000113929,536.7,Revenue,MEARS GROUP,Home Care
Peterborough City Council,Adults,Independent Sector Placements,Services,02/05/2018,8000113935,"1,227.60",Revenue,MEARS GROUP,Home Care
Peterborough City Council,Adults,Independent Sector Placements,Services,02/05/2018,8000113940,556.95,Revenue,MEARS GROUP,Home Care
Peterborough City Council,Adults,Independent Sector Placements,Services,02/05/2018,8000113962,735.25,Revenue,COMFORCARE SENIOR SERVICES,Home Care
Peterborough City Council,Adults,Independent Sector Placements,Services,02/05/2018,8000113967,"2,868.33",Revenue,COMFORCARE SENIOR SERVICES,Home Care
Peterborough City Council,Adults,Independent Sector Placements,Services,02/05/2018,8000113969,622.5,Revenue,COMFORCARE SENIOR SERVICES,Home Care
Peterborough City Council,Adults,Independent Sector Placements,Services,02/05/2018,8000113970,"1,031.50",Revenue,COMFORCARE SENIOR SERVICES,Home Care
Peterborough City Council,Adults,Independent Sector Placements,Services,02/05/2018,8000113971,574.5,Revenue,COMFORCARE SENIOR SERVICES,Home Care
Peterborough City Council,Adults,Independent Sector Placements,Services,02/05/2018,8000113972,768.5,Revenue,COMFORCARE SENIOR SERVICES,Home Care
Peterborough City Council,Adults,Independent Sector Placements,Services,02/05/2018,8000113973,"1,453.50",Revenue,COMFORCARE SENIOR SERVICES,Home Care
Peterborough City Council,Adults,Independent Sector Placements,Services,02/05/2018,8000113974,947.5,Revenue,COMFORCARE SENIOR SERVICES,Home Care
Peterborough City Council,Adults,Independent Sector Placements,Services,02/05/2018,8000113976,675.75,Revenue,COMFORCARE SENIOR SERVICES,Home Care
Peterborough City Council,Adults,Independent Sector Placements,Services,02/05/2018,8000113977,"1,010.50",Revenue,COMFORCARE SENIOR SERVICES,Home Care
Peterborough City Council,Adults,Independent Sector Placements,Services,02/05/2018,8000113978,"2,269.50",Revenue,COMFORCARE SENIOR SERVICES,Home Care
Peterborough City Council,Adults,Independent Sector Placements,Services,02/05/2018,8000113979,"1,065.00",Revenue,COMFORCARE SENIOR SERVICES,Home Care
Peterborough City Council,Adults,Independent Sector Placements,Services,02/05/2018,8000113982,"1,010.75",Revenue,COMFORCARE SENIOR SERVICES,Home Care
Peterborough City Council,Adults,Independent Sector Placements,Services,02/05/2018,8000113983,691.5,Revenue,COMFORCARE SENIOR SERVICES,Home Care
Peterborough City Council,Adults,Independent Sector Placements,Services,02/05/2018,8000113984,790.5,Revenue,COMFORCARE SENIOR SERVICES,Home Care
Peterborough City Council,Adults,Independent Sector Placements,Services,02/05/2018,8000113985,528,Revenue,COMFORCARE SENIOR SERVICES,Home Care
Peterborough City Council,Adults,Independent Sector Placements,Services,02/05/2018,8000113986,"1,840.00",Revenue,COMFORCARE SENIOR SERVICES,Home Care
Peterborough City Council,Adults,Independent Sector Placements,Services,02/05/2018,8000113987,"1,061.00",Revenue,COMFORCARE SENIOR SERVICES,Home Care
Peterborough City Council,Adults,Independent Sector Placements,Services,02/05/2018,8000113988,622.75,Revenue,COMFORCARE SENIOR SERVICES,Home Care
Peterborough City Council,Adults,Independent Sector Placements,Services,02/05/2018,8000113989,"2,296.75",Revenue,COMFORCARE SENIOR SERVICES,Home Care
Peterborough City Council,Adults,Independent Sector Placements,Services,02/05/2018,8000114159,512.7,Revenue,MEARS GROUP,Home Care
Peterborough City Council,Adults,Independent Sector Placements,Services,02/05/2018,8000114163,970.35,Revenue,MEARS GROUP,Home Care
Peterborough City Council,Adults,Independent Sector Placements,Services,02/05/2018,8000114165,668.7,Revenue,MEARS GROUP,Home Care
Peterborough City Council,Adults,Independent Sector Placements,Services,02/05/2018,8000114170,537.9,Revenue,MEARS GROUP,Home Care
Peterborough City Council,Adults,Independent Sector Placements,Services,02/05/2018,8000114171,"1,733.25",Revenue,MEARS GROUP,Home Care
Peterborough City Council,Adults,Independent Sector Placements,Services,02/05/2018,8000114173,"1,571.25",Revenue,MEARS GROUP,Home Care
Peterborough City Council,Adults,Independent Sector Placements,Services,02/05/2018,8000114174,991.05,Revenue,MEARS GROUP,Home Care
Peterborough City Council,Adults,Independent Sector Placements,Services,02/05/2018,8000114178,878.1,Revenue,MEARS GROUP,Home Care
Peterborough City Council,Adults,Independent Sector Placements,Services,02/05/2018,8000114179,"1,337.55",Revenue,MEARS GROUP,Home Care
Peterborough City Council,Adults,Independent Sector Placements,Services,02/05/2018,8000114190,987.45,Revenue,MEARS GROUP,Home Care
Peterborough City Council,Adults,Independent Sector Placements,Services,02/05/2018,8000114194,770.55,Revenue,MEARS GROUP,Home Care
Peterborough City Council,Adults,Independent Sector Placements,Services,02/05/2018,8000114200,949.8,Revenue,MEARS GROUP,Home Care
Peterborough City Council,Adults,Independent Sector Placements,Services,02/05/2018,8000114204,"1,577.85",Revenue,MEARS GROUP,Home Care
Peterborough City Council,Adults,Independent Sector Placements,Services,02/05/2018,8000114207,679.5,Revenue,MEARS GROUP,Home Care
Peterborough City Council,Adults,Independent Sector Placements,Services,02/05/2018,8000114209,881.85,Revenue,MEARS GROUP,Home Care
Peterborough City Council,Adults,Independent Sector Placements,Services,02/05/2018,8000114215,556.35,Revenue,MEARS GROUP,Home Care
Peterborough City Council,Adults,Independent Sector Placements,Services,02/05/2018,8000114216,"1,074.15",Revenue,MEARS GROUP,Home Care
Peterborough City Council,Adults,Independent Sector Placements,Services,02/05/2018,8000114217,680.7,Revenue,MEARS GROUP,Home Care
Peterborough City Council,Adults,Independent Sector Placements,Services,02/05/2018,8000114219,544.05,Revenue,MEARS GROUP,Home Care
Peterborough City Council,Adults,Independent Sector Placements,Services,02/05/2018,8000114226,711.75,Revenue,MEARS GROUP,Home Care
Peterborough City Council,Adults,Independent Sector Placements,Services,02/05/2018,8000114227,523.35,Revenue,MEARS GROUP,Home Care
Peterborough City Council,Adults,Independent Sector Placements,Services,02/05/2018,8000114228,"1,891.95",Revenue,MEARS GROUP,Home Care
Peterborough City Council,Adults,Independent Sector Placements,Services,02/05/2018,8000114230,842.7,Revenue,MEARS GROUP,Home Care
Peterborough City Council,Adults,Independent Sector Placements,Services,02/05/2018,8000114231,"1,321.80",Revenue,MEARS GROUP,Home Care
Peterborough City Council,Adults,Independent Sector Placements,Services,02/05/2018,8000114232,745.8,Revenue,MEARS GROUP,Home Care
Peterborough City Council,Adults,Independent Sector Placements,Services,02/05/2018,8000114238,874.8,Revenue,MEARS GROUP,Home Care
Peterborough City Council,Adults,Independent Sector Placements,Services,02/05/2018,8000114239,885.45,Revenue,MEARS GROUP,Home Care
Peterborough City Council,Adults,Independent Sector Placements,Services,02/05/2018,8000114241,598.2,Revenue,MEARS GROUP,Home Care
Peterborough City Council,Adults,Independent Sector Placements,Services,02/05/2018,8000114244,"2,100.15",Revenue,MEARS GROUP,Home Care
Peterborough City Council,Adults,Independent Sector Placements,Services,02/05/2018,8000114247,865.2,Revenue,MEARS GROUP,Home Care
Peterborough City Council,Adults,Independent Sector Placements,Services,02/05/2018,8000114248,510.45,Revenue,MEARS GROUP,Home Care
Peterborough City Council,Adults,Independent Sector Placements,Services,02/05/2018,8000114249,"1,068.71",Revenue,MEARS GROUP,Home Care
Peterborough City Council,Adults,Independent Sector Placements,Services,02/05/2018,8000114252,667.54,Revenue,MEARS GROUP,Home Care
Peterborough City Council,Adults,Independent Sector Placements,Services,02/05/2018,8000114253,852.52,Revenue,MEARS GROUP,Home Care
Peterborough City Council,Adults,Independent Sector Placements,Services,02/05/2018,8000114254,"1,052.95",Revenue,MEARS GROUP,Home Care
Peterborough City Council,Adults,Independent Sector Placements,Services,02/05/2018,8000114256,774.49,Revenue,MEARS GROUP,Home Care
Peterborough City Council,Adults,Independent Sector Placements,Services,02/05/2018,8000114257,798.97,Revenue,MEARS GROUP,Home Care
Peterborough City Council,Adults,Independent Sector Placements,Services,02/05/2018,8000114326,"1,522.50",Revenue,COMFORCARE SENIOR SERVICES,Home Care
Peterborough City Council,Adults,Independent Sector Placements,Services,02/05/2018,8000114328,502.5,Revenue,COMFORCARE SENIOR SERVICES,Home Care
Peterborough City Council,Corporate,Corporate,Non Revenue,03/05/2018,30176797,"618,507.87",Balance Sheet,Teachers Pensions,Pensions
Peterborough City Council,Commissioning and Commercial Operations,Clare Lodge,Agency Staff,04/05/2018,30175124,567.45,Revenue,Reed Specialist Recruitment Limited,External Temporary Staff
Peterborough City Council,Development and Construction,Development Management,Agency Staff,04/05/2018,30175573,"1,000.21",Revenue,Reed Specialist Recruitment Limited,External Temporary Staff
Peterborough City Council,Peterborough Highway Services,Transport & Infrastructure Commissioning,Services,04/05/2018,30176158,"3,214.77",Revenue,Centrebus North Ltd,Contractors
Peterborough City Council,Communities,Service Director - Adults & Communities,Third Party Payments,04/05/2018,30176181,"317,000.00",Revenue,Peterborough Citizens Advice Bureau,Grant-Third Party
Peterborough City Council,Regulatory Services,Regulatory Services,Agency Staff,04/05/2018,30176501,758.03,Revenue,Reed Specialist Recruitment Limited,External Temporary Staff
Peterborough City Council,Development and Construction,Development Management,Agency Staff,04/05/2018,30176502,"1,000.21",Revenue,Reed Specialist Recruitment Limited,External Temporary Staff
Peterborough City Council,Development and Construction,Development Management,Agency Staff,04/05/2018,30176511,"1,153.75",Revenue,Reed Specialist Recruitment Limited,External Temporary Staff
Peterborough City Council,Corporate,Corporate,Non Revenue,04/05/2018,30176517,897.44,Capital,Reed Specialist Recruitment Limited,Consultants Fees
Peterborough City Council,Commissioning and Commercial Operations,Clare Lodge,Agency Staff,04/05/2018,30176518,559.63,Revenue,Reed Specialist Recruitment Limited,External Temporary Staff
Peterborough City Council,Legal Services,Legal Services,Agency Staff,04/05/2018,30176519,"1,641.95",Revenue,Reed Specialist Recruitment Limited,External Temporary Staff
Peterborough City Council,Parking Services,Parking Services,Agency Staff,04/05/2018,30176521,"1,022.25",Revenue,Reed Specialist Recruitment Limited,External Temporary Staff
Peterborough City Council,Regulatory Services,Regulatory Services,Agency Staff,04/05/2018,30176524,"1,209.53",Revenue,Reed Specialist Recruitment Limited,External Temporary Staff
Peterborough City Council,Financial Services,Finance,Agency Staff,04/05/2018,30176526,"1,471.60",Revenue,Reed Specialist Recruitment Limited,External Temporary Staff
Peterborough City Council,Legal Services,Legal Services,Agency Staff,04/05/2018,30176528,"2,025.38",Revenue,Reed Specialist Recruitment Limited,External Temporary Staff
Peterborough City Council,Peterborough Highway Services,Highway Services - HoS,Agency Staff,04/05/2018,30176538,692.92,Revenue,Reed Specialist Recruitment Limited,External Temporary Staff
Peterborough City Council,Communities,Targeted Youth Service,Services,04/05/2018,30176542,525,Revenue,British Youth Council,Programmes
Peterborough City Council,Commissioning and Commercial Operations,Early Years & Quality Improvement,Services,04/05/2018,30176809,615,Revenue,Orton Longueville Playgroup,Grant Payment
Peterborough City Council,Communities,Other Enforcement,Services,04/05/2018,30176829,"83,376.86",Revenue,British Telecom PLC,Communications Equipment
Peterborough City Council,Communities,Other Enforcement,Services,04/05/2018,30176831,"1,722.00",Revenue,British Telecom PLC,Communications Equipment
Peterborough City Council,Communities,Other Enforcement,Services,04/05/2018,30176834,"1,337.75",Revenue,British Telecom PLC,Communications Equipment
Peterborough City Council,Communities,Other Enforcement,Services,04/05/2018,30177010,"24,133.50",Revenue,Kingdom Services Group Limited,Contractors
Peterborough City Council,Education,Special Educational Needs / Inclusion,Catering,04/05/2018,30177041,"2,925.00",Revenue,Marriott Hotel Peterborough,Hospitality
Peterborough City Council,Adults,Independent Sector Placements,Services,04/05/2018,30177084,511.25,Revenue,Sagecare,Home Care
Peterborough City Council,Parking Services,Parking Services,Services,04/05/2018,30177162,"5,148.61",Revenue,Cobalt Telephone Technologies Ltd,Hired Services
Peterborough City Council,ICT,ICT,Services,04/05/2018,30177163,"19,933.15",Revenue,Arcus Global ltd,Computer Software
Peterborough City Council,Adults,Independent Sector Placements,Services,04/05/2018,30177165,"1,327.50",Revenue,THE HELPING HANDS GROUP,Day Care
Peterborough City Council,Adults,Independent Sector Placements,Services,04/05/2018,30177168,"1,071.00",Revenue,THE HELPING HANDS GROUP,Day Care
Peterborough City Council,Adults,Independent Sector Placements,Services,04/05/2018,30177172,"2,074.00",Revenue,THE HELPING HANDS GROUP,Day Care
Peterborough City Council,Adults,Independent Sector Placements,Services,04/05/2018,30177173,630,Revenue,THE HELPING HANDS GROUP,Day Care
Peterborough City Council,Adults,Independent Sector Placements,Services,04/05/2018,30177174,819,Revenue,THE HELPING HANDS GROUP,Day Care
Peterborough City Council,Adults,Independent Sector Placements,Services,04/05/2018,30177175,"1,071.00",Revenue,THE HELPING HANDS GROUP,Day Care
Peterborough City Council,Adults,Independent Sector Placements,Services,04/05/2018,30177176,870.75,Revenue,THE HELPING HANDS GROUP,Day Care
Peterborough City Council,Adults,Independent Sector Placements,Services,04/05/2018,30177177,854,Revenue,THE HELPING HANDS GROUP,Day Care
Peterborough City Council,Adults,Independent Sector Placements,Services,04/05/2018,30177178,"3,261.88",Revenue,THE HELPING HANDS GROUP,Day Care
Peterborough City Council,Adults,Independent Sector Placements,Services,04/05/2018,30177180,929.25,Revenue,THE HELPING HANDS GROUP,Day Care
Peterborough City Council,Adults,Independent Sector Placements,Services,04/05/2018,30177181,"2,074.00",Revenue,THE HELPING HANDS GROUP,Day Care
Peterborough City Council,Adults,Independent Sector Placements,Services,04/05/2018,30177182,"1,071.00",Revenue,THE HELPING HANDS GROUP,Day Care
Peterborough City Council,Adults,Independent Sector Placements,Services,04/05/2018,30177183,"2,256.75",Revenue,THE HELPING HANDS GROUP,Day Care
Peterborough City Council,Adults,Independent Sector Placements,Services,04/05/2018,30177184,"2,074.00",Revenue,THE HELPING HANDS GROUP,Day Care
Peterborough City Council,Adults,Independent Sector Placements,Services,04/05/2018,30177185,796.5,Revenue,THE HELPING HANDS GROUP,Day Care
Peterborough City Council,Adults,Independent Sector Placements,Services,04/05/2018,30177186,"1,071.00",Revenue,THE HELPING HANDS GROUP,Day Care
Peterborough City Council,Adults,Independent Sector Placements,Services,04/05/2018,30177187,"1,243.00",Revenue,THE HELPING HANDS GROUP,Day Care
Peterborough City Council,Adults,Independent Sector Placements,Services,04/05/2018,30177188,"1,708.00",Revenue,THE HELPING HANDS GROUP,Day Care
Peterborough City Council,Communities,Cohesion,Rents,04/05/2018,30177196,625,Revenue,Record Property Solutions,Rent
Peterborough City Council,Communities,Cohesion,Rents,04/05/2018,30177200,575,Revenue,Redacted Personal Data,Rent
Peterborough City Council,Communities,Cohesion,Rents,04/05/2018,30177206,750,Revenue,Redacted Personal Data,Rent
Peterborough City Council,Communities,Cohesion,Rents,04/05/2018,30177209,800,Revenue,Rightroom Lettings Ltd,Rent
Peterborough City Council,Communities,Cohesion,Rents,04/05/2018,30177211,625,Revenue,Record Property Solutions,Rent
Peterborough City Council,Communities,Cohesion,Rents,04/05/2018,30177215,800,Revenue,Hope Into Action,Rent
Peterborough City Council,Communities,Cohesion,Rents,04/05/2018,30177216,575,Revenue,Record Property Solutions,Rent
Peterborough City Council,Communities,Cohesion,Rents,04/05/2018,30177222,625,Revenue,Rightroom Lettings Ltd,Rent
Peterborough City Council,Adults,Independent Sector Placements,Services,04/05/2018,30177245,588,Revenue,Sahara Community Care Services,Home Care
Peterborough City Council,Adults,Independent Sector Placements,Services,04/05/2018,30177247,640.79,Revenue,Sagecare,Home Care
Peterborough City Council,Children's & Safeguarding,Commissioning - CSC,Services,04/05/2018,8000114725,673.84,Revenue,Redacted Personal Data,Financial Assistance
Peterborough City Council,Children's & Safeguarding,Commissioning - CSC,Services,04/05/2018,8000114725,766.34,Revenue,Redacted Personal Data,Financial Assistance
Peterborough City Council,Children's & Safeguarding,Commissioning - CSC,Services,04/05/2018,8000114725,576.38,Revenue,Redacted Personal Data,Financial Assistance
Peterborough City Council,Children's & Safeguarding,Commissioning - CSC,Services,04/05/2018,8000114725,866.92,Revenue,Redacted Personal Data,Financial Assistance
Peterborough City Council,Children's & Safeguarding,Commissioning - CSC,Services,04/05/2018,8000114725,"2,022.82",Revenue,Redacted Personal Data,Financial Assistance
Peterborough City Council,Children's & Safeguarding,Commissioning - CSC,Services,04/05/2018,8000114725,627.18,Revenue,Redacted Personal Data,Financial Assistance
Peterborough City Council,Children's & Safeguarding,Commissioning - CSC,Services,04/05/2018,8000114725,748.76,Revenue,Redacted Personal Data,Financial Assistance
Peterborough City Council,Children's & Safeguarding,Commissioning - CSC,Services,04/05/2018,8000114725,748.76,Revenue,Redacted Personal Data,Financial Assistance
Peterborough City Council,Children's & Safeguarding,Commissioning - CSC,Services,04/05/2018,8000114725,"1,575.00",Revenue,Redacted Personal Data,Financial Assistance
Peterborough City Council,Adults,Independent Sector Placements,Services,04/05/2018,8000114867,"3,724.56",Revenue,Augusta Care Ltd,Home Care
Peterborough City Council,Adults,Independent Sector Placements,Services,04/05/2018,8000114868,"1,343.32",Revenue,Augusta Care Ltd,Home Care
Peterborough City Council,Adults,Independent Sector Placements,Services,04/05/2018,8000114869,"2,343.00",Revenue,Augusta Care Ltd,Home Care
Peterborough City Council,Education,HTS & CSC Transport,Contract Hire and Operating Leases,04/05/2018,8000114987,"3,468.50",Revenue,Goldstar Cabs Ltd,Hired Transport
Peterborough City Council,Education,HTS & CSC Transport,Contract Hire and Operating Leases,04/05/2018,8000114988,"3,885.76",Revenue,Goldstar Cabs Ltd,Hired Transport
Peterborough City Council,Education,HTS & CSC Transport,Contract Hire and Operating Leases,04/05/2018,8000114989,"2,856.94",Revenue,Goldstar Cabs Ltd,Hired Transport
Peterborough City Council,Education,HTS & CSC Transport,Contract Hire and Operating Leases,04/05/2018,8000114990,"1,064.99",Revenue,Redacted Personal Data,Hired Transport
Peterborough City Council,Education,HTS & CSC Transport,Contract Hire and Operating Leases,04/05/2018,8000114991,955.12,Revenue,Redacted Personal Data,Hired Transport
Peterborough City Council,Education,HTS & CSC Transport,Contract Hire and Operating Leases,04/05/2018,8000114993,789,Revenue,Redacted Personal Data,Hired Transport
Peterborough City Council,Education,HTS & CSC Transport,Contract Hire and Operating Leases,04/05/2018,8000114994,514.12,Revenue,Redacted Personal Data,Hired Transport
Peterborough City Council,Education,HTS & CSC Transport,Contract Hire and Operating Leases,04/05/2018,8000114996,"1,756.95",Revenue,Redacted Personal Data,Hired Transport
Peterborough City Council,Corporate,Corporate,Non Revenue,05/05/2018,30178331,"528,652.77",Capital,Kier Construction Ltd,Building And Site Works
Peterborough City Council,Adults,Independent Sector Placements,Services,09/05/2018,30174346,"3,340.37",Revenue,Barchester Healthcare (Werrington Lodge),Residential Care
Peterborough City Council,Children's & Safeguarding,Commissioning - CSC,Services,09/05/2018,30174384,"2,550.00",Revenue,1st Planner Ltd,Hired Services
Peterborough City Council,Energy,Environment Capital,Services,09/05/2018,30174385,"44,653.53",Revenue,Deloitte LLP,Professional Services
Peterborough City Council,Adults,Independent Sector Placements,Services,09/05/2018,30174387,"6,426.00",Revenue,SOCIAL CARE SOLUTIONS LTD,Home Care
Peterborough City Council,Adults,Independent Sector Placements,Services,09/05/2018,30174388,"6,591.00",Revenue,SOCIAL CARE SOLUTIONS LTD,Home Care
Peterborough City Council,Westcombe Engineering,Westcombe Engineering,"Tools, Equipment, Furniture & Materials",09/05/2018,30174403,712,Revenue,Perkins Engines Co Ltd,Items For Resale
Peterborough City Council,Adults,Independent Sector Placements,Services,09/05/2018,30174405,"7,509.60",Revenue,SOCIAL CARE SOLUTIONS LTD,Home Care
Peterborough City Council,Adults,Independent Sector Placements,Services,09/05/2018,30174406,"2,472.64",Revenue,SOCIAL CARE SOLUTIONS LTD,Home Care
Peterborough City Council,Adults,Independent Sector Placements,Services,09/05/2018,30174409,"7,509.60",Revenue,SOCIAL CARE SOLUTIONS LTD,Home Care
Peterborough City Council,Corporate,Corporate,Non Revenue,09/05/2018,30174412,690.7,Capital,Vix Technology UK Ltd,Infrastructure
Peterborough City Council,Constitutional Services,Elections,"Printing, Stationery & General Office Expenses",09/05/2018,30174414,868,Revenue,The Mammoth Retail Group Ltd,Stationery
Peterborough City Council,Peterborough Highway Services,Highway & Drainage Control,Agency Staff,09/05/2018,30174432,"1,465.20",Revenue,Matchtech,External Temporary Staff
Peterborough City Council,Westcombe Engineering,Westcombe Engineering,"Tools, Equipment, Furniture & Materials",09/05/2018,30174457,517.65,Revenue,AALCO,Items For Resale
Peterborough City Council,Westcombe Engineering,Westcombe Engineering,"Tools, Equipment, Furniture & Materials",09/05/2018,30174458,"2,750.78",Revenue,AALCO,Items For Resale
Peterborough City Council,Corporate Items,Corporate Services,Services,09/05/2018,30174464,"9,687.50",Revenue,East of England LGA,Consultants Fees
Peterborough City Council,Corporate Items,Corporate Services,Services,09/05/2018,30174466,"36,550.00",Revenue,East of England LGA,Consultants Fees
Peterborough City Council,Corporate Items,Corporate Services,Services,09/05/2018,30174511,"23,300.00",Revenue,East of England LGA,Consultants Fees
Peterborough City Council,Corporate,Corporate,Non Revenue,09/05/2018,30174520,"327,288.54",Capital,Coulson & Son Ltd,Building And Site Works
Peterborough City Council,Legal Services,Legal Services,Services,09/05/2018,30174531,700,Revenue,"Bramwell, Mr Christopher",Legal Costs
Peterborough City Council,Peterborough Serco Strategic Partnership,PSSP Retained Services,Services,09/05/2018,30174570,"4,796.05",Revenue,Whistl UK Ltd,Postage
Peterborough City Council,Legal Services,Legal Services,Agency Staff,09/05/2018,30174620,"1,718.75",Revenue,Venn Group Ltd,External Temporary Staff
Peterborough City Council,Adults,Independent Sector Placements,Services,09/05/2018,30174623,"5,600.00",Revenue,Community Care Solutions Ltd,Residential Care
Peterborough City Council,Adults,Independent Sector Placements,Services,09/05/2018,30174625,"5,686.80",Revenue,Lifeways Community Care,Residential Care
Peterborough City Council,Legal Services,Legal Services,Services,09/05/2018,30174655,550,Revenue,"Walji, Miss Shabnam",Legal Costs
Peterborough City Council,Legal Services,Legal Services,Services,09/05/2018,30174767,550,Revenue,"Elliott, Ms Margot",Legal Costs
Peterborough City Council,Education,School Standards & Effectiveness,Services,09/05/2018,30174770,"17,602.59",Revenue,"FFT Education Ltd, South Wales",Subscriptions
Peterborough City Council,Adults,Independent Sector Placements,Services,09/05/2018,30174883,"5,565.00",Revenue,Barchester Healthcare (Werrington Lodge),Residential Care
Peterborough City Council,Adults,Independent Sector Placements,Services,09/05/2018,30174886,"1,519.74",Revenue,Barchester Healthcare (Werrington Lodge),Residential Care
Peterborough City Council,Adults,Independent Sector Placements,Services,09/05/2018,30174887,"2,315.70",Revenue,Barchester Healthcare (Werrington Lodge),Residential Care
Peterborough City Council,Adults,Independent Sector Placements,Services,09/05/2018,30174889,"3,972.54",Revenue,Barchester Healthcare (Werrington Lodge),Residential Care
Peterborough City Council,Adults,Independent Sector Placements,Services,09/05/2018,30174890,"1,519.98",Revenue,Barchester Healthcare (Werrington Lodge),Residential Care
Peterborough City Council,Legal Services,Legal Services,Services,09/05/2018,30174974,870,Revenue,"Elliott, Ms Margot",Legal Costs
Peterborough City Council,Adults,Independent Sector Placements,Services,09/05/2018,30175070,"2,631.08",Revenue,Barchester Healthcare (Werrington Lodge),Residential Care
Peterborough City Council,Corporate,Corporate,Non Revenue,09/05/2018,30175128,"18,810.00",Capital,Pinsent Masons,Consultants Fees
Peterborough City Council,Corporate,Corporate,Non Revenue,09/05/2018,30175129,"11,055.00",Capital,Pinsent Masons,Consultants Fees
Peterborough City Council,Adults,Home Services Delivery Model,Services,09/05/2018,30175160,743.75,Revenue,Handyman Steve,Contractors
Peterborough City Council,Adults,Day opportunities - Older People,Agency Staff,09/05/2018,30175246,976.8,Revenue,Medicare First Ltd,External Temporary Staff
Peterborough City Council,Adults,Independent Sector Placements,Services,09/05/2018,30175359,"1,150.00",Revenue,FIELD HOUSE (EYE) LTD,Residential Care
Peterborough City Council,Adults,Independent Sector Placements,Services,09/05/2018,30175360,"2,142.86",Revenue,FIELD HOUSE (EYE) LTD,Residential Care
Peterborough City Council,Communities,Housing,Services,09/05/2018,30175383,"1,900.00",Revenue,Axiom Housing Association Ltd,Financial Assistance
Peterborough City Council,Adults,Independent Sector Placements,Services,09/05/2018,30175385,"1,980.00",Revenue,Athena (Ashlynn Grange),Residential Care
Peterborough City Council,Adults,Independent Sector Placements,Services,09/05/2018,30175386,"1,306.27",Revenue,Athena (Ashlynn Grange),Residential Care
Peterborough City Council,Adults,Independent Sector Placements,Services,09/05/2018,30175387,"1,740.31",Revenue,Athena (Ashlynn Grange),Residential Care
Peterborough City Council,Adults,Independent Sector Placements,Services,09/05/2018,30175388,"1,685.72",Revenue,Athena (Ashlynn Grange),Residential Care
Peterborough City Council,Adults,Independent Sector Placements,Services,09/05/2018,30175389,"1,759.67",Revenue,Athena (Ashlynn Grange),Residential Care
Peterborough City Council,Adults,Independent Sector Placements,Services,09/05/2018,30175390,"1,244.68",Revenue,Athena (Ashlynn Grange),Residential Care
Peterborough City Council,Adults,Independent Sector Placements,Services,09/05/2018,30175391,"1,765.92",Revenue,Athena (Ashlynn Grange),Residential Care
Peterborough City Council,Adults,Independent Sector Placements,Services,09/05/2018,30175392,741.19,Revenue,Athena (Ashlynn Grange),Residential Care
Peterborough City Council,Adults,Independent Sector Placements,Services,09/05/2018,30175393,"1,152.12",Revenue,Athena (Ashlynn Grange),Residential Care
Peterborough City Council,Adults,Independent Sector Placements,Services,09/05/2018,30175394,"1,821.88",Revenue,Athena (Ashlynn Grange),Residential Care
Peterborough City Council,Adults,Independent Sector Placements,Services,09/05/2018,30175395,"1,146.32",Revenue,Athena (Ashlynn Grange),Residential Care
Peterborough City Council,Adults,Independent Sector Placements,Services,09/05/2018,30175396,843.8,Revenue,Athena (Ashlynn Grange),Residential Care
Peterborough City Council,Adults,Independent Sector Placements,Services,09/05/2018,30175397,"1,807.68",Revenue,Athena (Ashlynn Grange),Residential Care
Peterborough City Council,Adults,Independent Sector Placements,Services,09/05/2018,30175398,"2,305.88",Revenue,Athena (Ashlynn Grange),Residential Care
Peterborough City Council,Adults,Independent Sector Placements,Services,09/05/2018,30175399,"1,676.51",Revenue,Athena (Ashlynn Grange),Residential Care
Peterborough City Council,Adults,Independent Sector Placements,Services,09/05/2018,30175400,"1,319.47",Revenue,Athena (Ashlynn Grange),Residential Care
Peterborough City Council,Adults,Independent Sector Placements,Services,09/05/2018,30175401,"1,635.83",Revenue,Athena (Ashlynn Grange),Residential Care
Peterborough City Council,Adults,Independent Sector Placements,Services,09/05/2018,30175421,"-12,403.66",Revenue,Barchester Healthcare (Werrington Lodge),Residential Care
Peterborough City Council,Communities,Housing,Services,09/05/2018,30175455,595.56,Revenue,DA Rosalia Hotel,Homelessness Temporary Accommodation 
Peterborough City Council,Adults,Independent Sector Placements,Services,09/05/2018,30175456,"1,821.88",Revenue,Athena (Ashlynn Grange),Residential Care
Peterborough City Council,Communities,Housing,Services,09/05/2018,30175457,595.56,Revenue,DA Rosalia Hotel,Homelessness Temporary Accommodation 
Peterborough City Council,Adults,Independent Sector Placements,Services,09/05/2018,30175458,974.4,Revenue,Athena (Ashlynn Grange),Residential Care
Peterborough City Council,Adults,Independent Sector Placements,Services,09/05/2018,30175459,"2,309.48",Revenue,Athena (Ashlynn Grange),Residential Care
Peterborough City Council,Communities,Housing,Services,09/05/2018,30175460,933.38,Revenue,DA Rosalia Hotel,Homelessness Temporary Accommodation 
Peterborough City Council,Adults,Independent Sector Placements,Services,09/05/2018,30175461,"1,597.68",Revenue,Athena (Ashlynn Grange),Residential Care
Peterborough City Council,Communities,Housing,Services,09/05/2018,30175462,595.56,Revenue,DA Rosalia Hotel,Homelessness Temporary Accommodation 
Peterborough City Council,Adults,Independent Sector Placements,Services,09/05/2018,30175463,"1,706.84",Revenue,Athena (Ashlynn Grange),Residential Care
Peterborough City Council,Communities,Housing,Services,09/05/2018,30175464,595.56,Revenue,DA Rosalia Hotel,Homelessness Temporary Accommodation 
Peterborough City Council,Communities,Housing,Services,09/05/2018,30175466,714.56,Revenue,DA Rosalia Hotel,Homelessness Temporary Accommodation 
Peterborough City Council,Adults,Independent Sector Placements,Services,09/05/2018,30175467,"1,799.67",Revenue,Athena (Ashlynn Grange),Residential Care
Peterborough City Council,Adults,Independent Sector Placements,Services,09/05/2018,30175468,"1,627.68",Revenue,Athena (Ashlynn Grange),Residential Care
Peterborough City Council,Adults,Independent Sector Placements,Services,09/05/2018,30175469,"1,821.88",Revenue,Athena (Ashlynn Grange),Residential Care
Peterborough City Council,Communities,Housing,Services,09/05/2018,30175470,816.62,Revenue,DA Rosalia Hotel,Homelessness Temporary Accommodation 
Peterborough City Council,Adults,Independent Sector Placements,Services,09/05/2018,30175471,"1,976.56",Revenue,Athena (Ashlynn Grange),Residential Care
Peterborough City Council,Communities,Housing,Services,09/05/2018,30175472,595.56,Revenue,DA Rosalia Hotel,Homelessness Temporary Accommodation 
Peterborough City Council,Adults,Independent Sector Placements,Services,09/05/2018,30175473,"2,396.68",Revenue,Athena (Ashlynn Grange),Residential Care
Peterborough City Council,Adults,Independent Sector Placements,Services,09/05/2018,30175474,859.64,Revenue,Athena (Ashlynn Grange),Residential Care
Peterborough City Council,Adults,Independent Sector Placements,Services,09/05/2018,30175475,944.16,Revenue,Athena (Ashlynn Grange),Residential Care
Peterborough City Council,Communities,Housing,Services,09/05/2018,30175476,816.62,Revenue,DA Rosalia Hotel,Homelessness Temporary Accommodation 
Peterborough City Council,Adults,Independent Sector Placements,Services,09/05/2018,30175477,"1,583.40",Revenue,Athena (Ashlynn Grange),Residential Care
Peterborough City Council,Adults,Independent Sector Placements,Services,09/05/2018,30175478,"1,032.56",Revenue,Athena (Ashlynn Grange),Residential Care
Peterborough City Council,Adults,Independent Sector Placements,Services,09/05/2018,30175479,"2,330.68",Revenue,Athena (Ashlynn Grange),Residential Care
Peterborough City Council,Adults,Independent Sector Placements,Services,09/05/2018,30175480,"2,079.60",Revenue,Athena (Ashlynn Grange),Residential Care
Peterborough City Council,Communities,Housing,Services,09/05/2018,30175481,933.38,Revenue,DA Rosalia Hotel,Homelessness Temporary Accommodation 
Peterborough City Council,Communities,Housing,Services,09/05/2018,30175482,595.56,Revenue,DA Rosalia Hotel,Homelessness Temporary Accommodation 
Peterborough City Council,Communities,Housing,Services,09/05/2018,30175484,595.56,Revenue,DA Rosalia Hotel,Homelessness Temporary Accommodation 
Peterborough City Council,Communities,Housing,Services,09/05/2018,30175485,"1,061.62",Revenue,DA Rosalia Hotel,Homelessness Temporary Accommodation 
Peterborough City Council,Communities,Housing,Services,09/05/2018,30175486,595.56,Revenue,DA Rosalia Hotel,Homelessness Temporary Accommodation 
Peterborough City Council,Communities,Housing,Services,09/05/2018,30175487,595.56,Revenue,DA Rosalia Hotel,Homelessness Temporary Accommodation 
Peterborough City Council,Communities,Housing,Services,09/05/2018,30175488,"1,120.00",Revenue,DA Rosalia Hotel,Homelessness Temporary Accommodation 
Peterborough City Council,Communities,Housing Enforcement,Customer and client receipts - Fees & Charges,09/05/2018,30175519,"1,750.00",Revenue,Capitol Lettors,Refunds
Peterborough City Council,Adults,Independent Sector Placements,Services,09/05/2018,30175545,"2,309.48",Revenue,Athena (Ashlynn Grange),Residential Care
Peterborough City Council,Corporate,Corporate,Non Revenue,09/05/2018,30175607,"28,637.00",Capital,Parkeon Limited,Furniture And Equipment Purchase
Peterborough City Council,Commissioning and Commercial Operations,Clare Lodge,Agency Staff,09/05/2018,30175638,"2,352.00",Revenue,Wrixon Care Services,External Temporary Staff
Peterborough City Council,Commissioning and Commercial Operations,Clare Lodge,Agency Staff,09/05/2018,30175646,528,Revenue,Wrixon Care Services,External Temporary Staff
Peterborough City Council,Commissioning and Commercial Operations,Clare Lodge,Agency Staff,09/05/2018,30175647,560,Revenue,Wrixon Care Services,External Temporary Staff
Peterborough City Council,Commissioning and Commercial Operations,Clare Lodge,Agency Staff,09/05/2018,30175648,936,Revenue,Wrixon Care Services,External Temporary Staff
Peterborough City Council,Commissioning and Commercial Operations,Clare Lodge,Agency Staff,09/05/2018,30175651,784,Revenue,Wrixon Care Services,External Temporary Staff
Peterborough City Council,Commissioning and Commercial Operations,Clare Lodge,Agency Staff,09/05/2018,30175654,512,Revenue,Wrixon Care Services,External Temporary Staff
Peterborough City Council,Commissioning and Commercial Operations,Clare Lodge,Agency Staff,09/05/2018,30175655,568,Revenue,Wrixon Care Services,External Temporary Staff
Peterborough City Council,Adults,Independent Sector Placements,Services,09/05/2018,30175664,"2,931.15",Revenue,Athena (Ashlynn Grange),Residential Care
Peterborough City Council,Legal Services,Legal Services,Services,09/05/2018,30175681,825,Revenue,"Bramwell, Mr Christopher",Legal Costs
Peterborough City Council,Legal Services,Legal Services,Services,09/05/2018,30175682,550,Revenue,"Elliott, Ms Margot",Legal Costs
Peterborough City Council,Westcombe Engineering,Westcombe Engineering,"Tools, Equipment, Furniture & Materials",09/05/2018,30175791,509.44,Revenue,ANGLIA BEARING COMPANY LIMITED,Items For Resale
Peterborough City Council,Adults,Home Services Delivery Model,Services,09/05/2018,30175826,918,Revenue,Rawheat Heating & Plumbing Eng.,Contractors
Peterborough City Council,Corporate Items,Corporate Services,Services,09/05/2018,30175830,"30,538.00",Revenue,Ernst & Young LLP,Audit Fees
Peterborough City Council,Adults,Independent Sector Placements,Services,09/05/2018,30175895,"9,542.40",Revenue,Voyage,Home Care
Peterborough City Council,Westcombe Engineering,Westcombe Engineering,"Tools, Equipment, Furniture & Materials",09/05/2018,30176123,"1,106.70",Revenue,Barron Clark Castings Ltd,Items For Resale
Peterborough City Council,Westcombe Engineering,Westcombe Engineering,"Tools, Equipment, Furniture & Materials",09/05/2018,30176132,516,Revenue,Barron Clark Castings Ltd,Items For Resale
Peterborough City Council,Adults,Independent Sector Placements,Services,09/05/2018,30176376,"8,025.00",Revenue,Transitions Supported Living Ltd,Residential Care
Peterborough City Council,Communities,Housing Enforcement,Customer and client receipts - Fees & Charges,09/05/2018,30176388,750,Revenue,Redacted Personal Data,Refunds
Peterborough City Council,Children's & Safeguarding,Adult & Children Safeguarding Board,Catering,09/05/2018,30176503,"2,074.75",Revenue,Venue Catering Partner Ltd,Catering
Peterborough City Council,"Waste, Cleansing and Open Spaces",Waste & Operational Svs Mgmt,Services,09/05/2018,30176656,"49,001.76",Revenue,Peterborough Rugby Club,Grant Payment
Peterborough City Council,Legal Services,Legal Services,Services,09/05/2018,30176686,835,Revenue,"Sleight, Mr Nigel",Legal Costs
Peterborough City Council,Corporate,Corporate,Non Revenue,09/05/2018,30176806,"1,946.88",Capital,Reed Specialist Recruitment Limited,Consultants Fees
Peterborough City Council,Westcombe Engineering,Westcombe Engineering,"Tools, Equipment, Furniture & Materials",09/05/2018,30177045,"1,794.00",Revenue,Westland Casting Company Ltd,Items For Resale
Peterborough City Council,Corporate,Corporate,Non Revenue,09/05/2018,30177104,"2,066.88",Capital,Reed Specialist Recruitment Limited,Consultants Fees
Peterborough City Council,Corporate,Corporate,Non Revenue,09/05/2018,30177139,"14,480.00",Capital,CMS Accommodating People Ltd,Building And Site Works
Peterborough City Council,Commissioning and Commercial Operations,Clare Lodge,Agency Staff,09/05/2018,30177141,697.82,Revenue,Reed Specialist Recruitment Limited,External Temporary Staff
Peterborough City Council,Commissioning and Commercial Operations,Clare Lodge,Agency Staff,09/05/2018,30177143,848.7,Revenue,Reed Specialist Recruitment Limited,External Temporary Staff
Peterborough City Council,Commissioning and Commercial Operations,Clare Lodge,Agency Staff,09/05/2018,30177145,678.96,Revenue,Reed Specialist Recruitment Limited,External Temporary Staff
Peterborough City Council,Commissioning and Commercial Operations,Clare Lodge,Agency Staff,09/05/2018,30177147,619.7,Revenue,Reed Specialist Recruitment Limited,External Temporary Staff
Peterborough City Council,Peterborough Highway Services,Highway Services - HoS,Agency Staff,09/05/2018,30177321,870.99,Revenue,Reed Specialist Recruitment Limited,External Temporary Staff
Peterborough City Council,Adults,Independent Sector Placements,Services,09/05/2018,30177328,"1,768.92",Revenue,Ashmere,Residential Care
Peterborough City Council,Corporate Property,Commercial Propety,Repair & Maintenance of Buildings,09/05/2018,30177351,"1,000.00",Revenue,Stanground Community Space CIC,Service Charges - Premises
Peterborough City Council,Children's & Safeguarding,External Education Placements,Services,09/05/2018,30177364,"28,114.52",Revenue,Park House School,Boarding Out Allowances
Peterborough City Council,Adults,Independent Sector Placements,Agency Staff,09/05/2018,30177365,"6,142.84",Revenue,Eden Brown Ltd,External Temporary Staff
Peterborough City Council,Communities,Service Director - Adults & Communities,Agency Staff,09/05/2018,30177383,"1,464.71",Revenue,Reed Specialist Recruitment Limited,External Temporary Staff
Peterborough City Council,Commissioning and Commercial Operations,Clare Lodge,Agency Staff,09/05/2018,30177384,864,Revenue,Wrixon Care Services,External Temporary Staff
Peterborough City Council,Commissioning and Commercial Operations,Clare Lodge,Agency Staff,09/05/2018,30177386,"1,104.00",Revenue,Wrixon Care Services,External Temporary Staff
Peterborough City Council,Commissioning and Commercial Operations,Clare Lodge,Agency Staff,09/05/2018,30177387,"1,176.00",Revenue,Wrixon Care Services,External Temporary Staff
Peterborough City Council,Commissioning and Commercial Operations,Clare Lodge,Agency Staff,09/05/2018,30177388,960,Revenue,Wrixon Care Services,External Temporary Staff
Peterborough City Council,Commissioning and Commercial Operations,Clare Lodge,Agency Staff,09/05/2018,30177389,944,Revenue,Wrixon Care Services,External Temporary Staff
Peterborough City Council,Commissioning and Commercial Operations,Clare Lodge,Agency Staff,09/05/2018,30177390,"1,648.00",Revenue,Wrixon Care Services,External Temporary Staff
Peterborough City Council,Commissioning and Commercial Operations,Clare Lodge,Agency Staff,09/05/2018,30177391,"1,424.00",Revenue,Wrixon Care Services,External Temporary Staff
Peterborough City Council,Commissioning and Commercial Operations,Clare Lodge,Agency Staff,09/05/2018,30177392,928,Revenue,Wrixon Care Services,External Temporary Staff
Peterborough City Council,Adults,Block Contracts,Third Party Payments,09/05/2018,30177395,"1,821.88",Revenue,Park Vista Care Home,Third Party Payments - Contract
Peterborough City Council,Adults,Block Contracts,Third Party Payments,09/05/2018,30177396,"1,821.88",Revenue,Park Vista Care Home,Third Party Payments - Contract
Peterborough City Council,Communities,Service Director - Adults & Communities,Agency Staff,09/05/2018,30177399,"1,822.51",Revenue,Reed Specialist Recruitment Limited,External Temporary Staff
Peterborough City Council,Children's & Safeguarding,Early Help ASC/CSC,Agency Staff,09/05/2018,30177400,533.64,Revenue,Reed Specialist Recruitment Limited,External Temporary Staff
Peterborough City Council,Adults,Strategic Commissioning - Management,Agency Staff,09/05/2018,30177402,871.66,Revenue,Reed Specialist Recruitment Limited,External Temporary Staff
Peterborough City Council,Communities,Service Director - Adults & Communities,Agency Staff,09/05/2018,30177403,"1,822.51",Revenue,Reed Specialist Recruitment Limited,External Temporary Staff
Peterborough City Council,Adults,Strategic Commissioning - Management,Agency Staff,09/05/2018,30177418,871.66,Revenue,Reed Specialist Recruitment Limited,External Temporary Staff
Peterborough City Council,Adults,Strategic Commissioning - Management,Agency Staff,09/05/2018,30177420,522.98,Revenue,Reed Specialist Recruitment Limited,External Temporary Staff
Peterborough City Council,Adults,Strategic Commissioning - Management,Agency Staff,09/05/2018,30177421,"2,953.60",Revenue,Reed Specialist Recruitment Limited,External Temporary Staff
Peterborough City Council,Commissioning and Commercial Operations,Commissioning Team,Agency Staff,09/05/2018,30177422,"2,243.60",Revenue,Reed Specialist Recruitment Limited,External Temporary Staff
Peterborough City Council,Corporate,Corporate,Non Revenue,09/05/2018,30177426,"2,583.60",Capital,Reed Specialist Recruitment Limited,Consultants Fees
Peterborough City Council,Financial Services,Finance,Agency Staff,09/05/2018,30177427,744.93,Revenue,Reed Specialist Recruitment Limited,External Temporary Staff
Peterborough City Council,Commissioning and Commercial Operations,Commissioning Team,Agency Staff,09/05/2018,30177429,589.35,Revenue,Reed Specialist Recruitment Limited,External Temporary Staff
Peterborough City Council,Corporate,Corporate,Non Revenue,09/05/2018,30177430,"2,433.60",Capital,Reed Specialist Recruitment Limited,Consultants Fees
Peterborough City Council,Communities,Service Director - Adults & Communities,Agency Staff,09/05/2018,30177434,"1,822.51",Revenue,Reed Specialist Recruitment Limited,External Temporary Staff
Peterborough City Council,Development and Construction,Development Management,Agency Staff,09/05/2018,30177436,"1,161.88",Revenue,Reed Specialist Recruitment Limited,External Temporary Staff
Peterborough City Council,Regulatory Services,Regulatory Services,Agency Staff,09/05/2018,30177441,"1,010.70",Revenue,Reed Specialist Recruitment Limited,External Temporary Staff
Peterborough City Council,Children's & Safeguarding,Early Help ASC/CSC,Agency Staff,09/05/2018,30177442,533.64,Revenue,Reed Specialist Recruitment Limited,External Temporary Staff
Peterborough City Council,Peterborough Highway Services,Highway & Drainage Control,Agency Staff,09/05/2018,30177444,"1,235.80",Revenue,Reed Specialist Recruitment Limited,External Temporary Staff
Peterborough City Council,Regulatory Services,Regulatory Services,Agency Staff,09/05/2018,30177445,866.29,Revenue,Reed Specialist Recruitment Limited,External Temporary Staff
Peterborough City Council,Peterborough Highway Services,Highway Services - HoS,Agency Staff,09/05/2018,30177446,578.25,Revenue,Reed Specialist Recruitment Limited,External Temporary Staff
Peterborough City Council,Constitutional Services,Democratic Services,"Printing, Stationery & General Office Expenses",09/05/2018,30177462,877.5,Revenue,Barnad & Westwood,Stationery
Peterborough City Council,Westcombe Engineering,Westcombe Engineering,Services,09/05/2018,30177482,"1,603.00",Revenue,Data Interchange,Hired Services
Peterborough City Council,Adults,Block Contracts,Third Party Payments,09/05/2018,30177499,"2,305.92",Revenue,Park Vista Care Home,Third Party Payments - Contract
Peterborough City Council,Adults,Block Contracts,Third Party Payments,09/05/2018,30177500,"2,305.92",Revenue,Park Vista Care Home,Third Party Payments - Contract
Peterborough City Council,Education,Service Director Education,Employee Costs,09/05/2018,30177503,"26,641.68",Revenue,Teachers Pensions,Pensions
Peterborough City Council,Corporate,Corporate,Non Revenue,09/05/2018,30177504,"2,914.83",Balance Sheet,The Prudential Assurance Company Ltd,Pensions
Peterborough City Council,Corporate,Corporate,Non Revenue,09/05/2018,30177505,"2,148.39",Balance Sheet,The Prudential Assurance Company Ltd,Pensions
Peterborough City Council,ICT,ICT,Services,09/05/2018,30177561,"4,892.60",Revenue,Capita Business Services Ltd,Computer Software
Peterborough City Council,Children's & Safeguarding,Children's Social Care,Agency Staff,09/05/2018,30177565,"5,604.80",Revenue,Eden Brown Ltd,External Temporary Staff
Peterborough City Council,"Waste, Cleansing and Open Spaces",Waste & Operational Svs Mgmt,Services,09/05/2018,30177576,"3,484.00",Revenue,APSE,Subscriptions
Peterborough City Council,Parking Services,Parking Services,Agency Staff,09/05/2018,30177623,390.97,Revenue,Reed Specialist Recruitment Limited,External Temporary Staff
Peterborough City Council,Parking Services,Parking Services,Agency Staff,09/05/2018,30177623,467.72,Revenue,Reed Specialist Recruitment Limited,External Temporary Staff
Peterborough City Council,Communities,Housing,Services,09/05/2018,30177649,560,Revenue,Singh and Sons Property Management Ltd,Homelessness Temporary Accommodation 
Peterborough City Council,Commissioning and Commercial Operations,Early Years & Quality Improvement,Services,09/05/2018,30177652,536.25,Revenue,Family Action,Grant Payment
Peterborough City Council,Commissioning and Commercial Operations,Early Years & Quality Improvement,Services,09/05/2018,30177653,"3,633.50",Revenue,Orton Longueville Playgroup,Grant Payment
Peterborough City Council,Commissioning and Commercial Operations,Early Years & Quality Improvement,Services,09/05/2018,30177654,615,Revenue,St Michaels Playgroup,Grant Payment
Peterborough City Council,Commissioning and Commercial Operations,Early Years & Quality Improvement,Services,09/05/2018,30177655,615,Revenue,Bretton Community Pre-School,Grant Payment
Peterborough City Council,Commissioning and Commercial Operations,Early Years & Quality Improvement,Services,09/05/2018,30177656,"4,491.50",Revenue,Little Tigers Day Nursery,Grant Payment
Peterborough City Council,Legal Services,Legal Services,Services,09/05/2018,30177660,"1,050.00",Revenue,LGSS Law Ltd,Legal Costs
Peterborough City Council,Children's & Safeguarding,Child Health,Services,09/05/2018,30177663,"8,670.75",Revenue,Circles Network,Purchased Social Care Services
Peterborough City Council,Adults,Independent Sector Placements,Services,09/05/2018,8000115011,930.48,Revenue,Redacted Personal Data,Adult Social Care Direct Payment
Peterborough City Council,Adults,Independent Sector Placements,Services,09/05/2018,8000115013,"1,537.20",Revenue,Redacted Personal Data,Adult Social Care Direct Payment
Peterborough City Council,Adults,Independent Sector Placements,Services,09/05/2018,8000115014,"1,174.70",Revenue,Redacted Personal Data,Adult Social Care Direct Payment
Peterborough City Council,Adults,Independent Sector Placements,Services,09/05/2018,8000115015,"1,390.12",Revenue,Redacted Personal Data,Adult Social Care Direct Payment
Peterborough City Council,Adults,Independent Sector Placements,Services,09/05/2018,8000115018,"2,950.84",Revenue,Redacted Personal Data,Adult Social Care Direct Payment
Peterborough City Council,Adults,Independent Sector Placements,Services,09/05/2018,8000115019,"2,829.00",Revenue,Redacted Personal Data,Adult Social Care Direct Payment
Peterborough City Council,Adults,Independent Sector Placements,Services,09/05/2018,8000115021,"1,037.84",Revenue,Redacted Personal Data,Adult Social Care Direct Payment
Peterborough City Council,Adults,Independent Sector Placements,Services,09/05/2018,8000115022,820.4,Revenue,Redacted Personal Data,Adult Social Care Direct Payment
Peterborough City Council,Adults,Independent Sector Placements,Services,09/05/2018,8000115023,"1,608.36",Revenue,Redacted Personal Data,Adult Social Care Direct Payment
Peterborough City Council,Adults,Independent Sector Placements,Services,09/05/2018,8000115025,"1,179.56",Revenue,Redacted Personal Data,Adult Social Care Direct Payment
Peterborough City Council,Adults,Independent Sector Placements,Services,09/05/2018,8000115026,"2,249.00",Revenue,Redacted Personal Data,Adult Social Care Direct Payment
Peterborough City Council,Adults,Independent Sector Placements,Services,09/05/2018,8000115027,"1,090.92",Revenue,Redacted Personal Data,Adult Social Care Direct Payment
Peterborough City Council,Adults,Independent Sector Placements,Services,09/05/2018,8000115028,620.64,Revenue,Redacted Personal Data,Adult Social Care Direct Payment
Peterborough City Council,Adults,Independent Sector Placements,Services,09/05/2018,8000115030,"1,336.92",Revenue,Redacted Personal Data,Adult Social Care Direct Payment
Peterborough City Council,Adults,Independent Sector Placements,Services,09/05/2018,8000115031,544.8,Revenue,Redacted Personal Data,Adult Social Care Direct Payment
Peterborough City Council,Adults,Independent Sector Placements,Services,09/05/2018,8000115032,534.48,Revenue,Redacted Personal Data,Adult Social Care Direct Payment
Peterborough City Council,Adults,Independent Sector Placements,Services,09/05/2018,8000115033,574.68,Revenue,Redacted Personal Data,Adult Social Care Direct Payment
Peterborough City Council,Adults,Independent Sector Placements,Services,09/05/2018,8000115034,"1,293.60",Revenue,Redacted Personal Data,Adult Social Care Direct Payment
Peterborough City Council,Adults,Independent Sector Placements,Services,09/05/2018,8000115037,"6,124.16",Revenue,Redacted Personal Data,Adult Social Care Direct Payment
Peterborough City Council,Adults,Independent Sector Placements,Services,09/05/2018,8000115038,550.72,Revenue,Redacted Personal Data,Adult Social Care Direct Payment
Peterborough City Council,Adults,Independent Sector Placements,Services,09/05/2018,8000115039,"2,391.04",Revenue,Redacted Personal Data,Adult Social Care Direct Payment
Peterborough City Council,Adults,Independent Sector Placements,Services,09/05/2018,8000115040,820.36,Revenue,Redacted Personal Data,Adult Social Care Direct Payment
Peterborough City Council,Adults,Independent Sector Placements,Services,09/05/2018,8000115041,700.04,Revenue,Redacted Personal Data,Adult Social Care Direct Payment
Peterborough City Council,Adults,Independent Sector Placements,Services,09/05/2018,8000115042,"1,664.40",Revenue,Redacted Personal Data,Adult Social Care Direct Payment
Peterborough City Council,Adults,Independent Sector Placements,Services,09/05/2018,8000115043,835.48,Revenue,Redacted Personal Data,Adult Social Care Direct Payment
Peterborough City Council,Adults,Independent Sector Placements,Services,09/05/2018,8000115045,"1,666.36",Revenue,Redacted Personal Data,Adult Social Care Direct Payment
Peterborough City Council,Adults,Independent Sector Placements,Services,09/05/2018,8000115046,"1,251.04",Revenue,Redacted Personal Data,Adult Social Care Direct Payment
Peterborough City Council,Adults,Independent Sector Placements,Services,09/05/2018,8000115047,"1,050.48",Revenue,Redacted Personal Data,Adult Social Care Direct Payment
Peterborough City Council,Adults,Independent Sector Placements,Services,09/05/2018,8000115048,648.72,Revenue,Redacted Personal Data,Adult Social Care Direct Payment
Peterborough City Council,Adults,Independent Sector Placements,Services,09/05/2018,8000115049,"4,364.36",Revenue,Redacted Personal Data,Adult Social Care Direct Payment
Peterborough City Council,Adults,Independent Sector Placements,Services,09/05/2018,8000115050,"1,010.64",Revenue,Redacted Personal Data,Adult Social Care Direct Payment
Peterborough City Council,Adults,Independent Sector Placements,Services,09/05/2018,8000115051,"7,956.76",Revenue,Redacted Personal Data,Adult Social Care Direct Payment
Peterborough City Council,Adults,Independent Sector Placements,Services,09/05/2018,8000115053,"1,329.44",Revenue,Redacted Personal Data,Adult Social Care Direct Payment
Peterborough City Council,Adults,Independent Sector Placements,Services,09/05/2018,8000115054,"2,118.60",Revenue,Redacted Personal Data,Adult Social Care Direct Payment
Peterborough City Council,Adults,Independent Sector Placements,Services,09/05/2018,8000115055,557.2,Revenue,Redacted Personal Data,Adult Social Care Direct Payment
Peterborough City Council,Adults,Independent Sector Placements,Services,09/05/2018,8000115056,758.08,Revenue,Redacted Personal Data,Adult Social Care Direct Payment
Peterborough City Council,Adults,Independent Sector Placements,Services,09/05/2018,8000115061,980.88,Revenue,Redacted Personal Data,Adult Social Care Direct Payment
Peterborough City Council,Adults,Independent Sector Placements,Services,09/05/2018,8000115063,"1,085.36",Revenue,Redacted Personal Data,Adult Social Care Direct Payment
Peterborough City Council,Adults,Independent Sector Placements,Services,09/05/2018,8000115066,590.08,Revenue,Redacted Personal Data,Adult Social Care Direct Payment
Peterborough City Council,Adults,Independent Sector Placements,Services,09/05/2018,8000115068,897.92,Revenue,Redacted Personal Data,Adult Social Care Direct Payment
Peterborough City Council,Adults,Independent Sector Placements,Services,09/05/2018,8000115069,"5,684.00",Revenue,Redacted Personal Data,Adult Social Care Direct Payment
Peterborough City Council,Adults,Independent Sector Placements,Services,09/05/2018,8000115070,"6,740.40",Revenue,Redacted Personal Data,Adult Social Care Direct Payment
Peterborough City Council,Adults,Independent Sector Placements,Services,09/05/2018,8000115071,666.08,Revenue,Redacted Personal Data,Adult Social Care Direct Payment
Peterborough City Council,Adults,Independent Sector Placements,Services,09/05/2018,8000115072,"8,333.00",Revenue,Redacted Personal Data,Adult Social Care Direct Payment
Peterborough City Council,Adults,Independent Sector Placements,Services,09/05/2018,8000115073,"1,113.28",Revenue,Redacted Personal Data,Adult Social Care Direct Payment
Peterborough City Council,Adults,Independent Sector Placements,Services,09/05/2018,8000115075,818.88,Revenue,Redacted Personal Data,Adult Social Care Direct Payment
Peterborough City Council,Adults,Independent Sector Placements,Services,09/05/2018,8000115076,"3,753.12",Revenue,Redacted Personal Data,Adult Social Care Direct Payment
Peterborough City Council,Adults,Independent Sector Placements,Services,09/05/2018,8000115077,681.08,Revenue,Redacted Personal Data,Adult Social Care Direct Payment
Peterborough City Council,Adults,Independent Sector Placements,Services,09/05/2018,8000115078,"1,279.96",Revenue,Redacted Personal Data,Adult Social Care Direct Payment
Peterborough City Council,Adults,Independent Sector Placements,Services,09/05/2018,8000115079,612.8,Revenue,Redacted Personal Data,Adult Social Care Direct Payment
Peterborough City Council,Adults,Independent Sector Placements,Services,09/05/2018,8000115080,"2,529.24",Revenue,Redacted Personal Data,Adult Social Care Direct Payment
Peterborough City Council,Adults,Independent Sector Placements,Services,09/05/2018,8000115081,"2,168.08",Revenue,Redacted Personal Data,Adult Social Care Direct Payment
Peterborough City Council,Adults,Independent Sector Placements,Services,09/05/2018,8000115082,569.68,Revenue,Redacted Personal Data,Adult Social Care Direct Payment
Peterborough City Council,Adults,Independent Sector Placements,Services,09/05/2018,8000115083,988.68,Revenue,Redacted Personal Data,Adult Social Care Direct Payment
Peterborough City Council,Adults,Independent Sector Placements,Services,09/05/2018,8000115084,705.36,Revenue,Redacted Personal Data,Adult Social Care Direct Payment
Peterborough City Council,Adults,Independent Sector Placements,Services,09/05/2018,8000115086,672.16,Revenue,Redacted Personal Data,Adult Social Care Direct Payment
Peterborough City Council,Adults,Independent Sector Placements,Services,09/05/2018,8000115087,"1,140.48",Revenue,Redacted Personal Data,Adult Social Care Direct Payment
Peterborough City Council,Adults,Independent Sector Placements,Services,09/05/2018,8000115089,623.04,Revenue,Redacted Personal Data,Adult Social Care Direct Payment
Peterborough City Council,Adults,Independent Sector Placements,Services,09/05/2018,8000115090,"4,149.05",Revenue,Redacted Personal Data,Adult Social Care Direct Payment
Peterborough City Council,Adults,Independent Sector Placements,Services,09/05/2018,8000115091,"1,316.44",Revenue,Redacted Personal Data,Adult Social Care Direct Payment
Peterborough City Council,Adults,Independent Sector Placements,Services,09/05/2018,8000115094,779.56,Revenue,Redacted Personal Data,Adult Social Care Direct Payment
Peterborough City Council,Adults,Independent Sector Placements,Services,09/05/2018,8000115095,959.6,Revenue,Redacted Personal Data,Adult Social Care Direct Payment
Peterborough City Council,Adults,Independent Sector Placements,Services,09/05/2018,8000115096,"1,167.48",Revenue,Redacted Personal Data,Adult Social Care Direct Payment
Peterborough City Council,Adults,Independent Sector Placements,Services,09/05/2018,8000115097,"1,156.50",Revenue,Redacted Personal Data,Adult Social Care Direct Payment
Peterborough City Council,Adults,Independent Sector Placements,Services,09/05/2018,8000115098,500,Revenue,Redacted Personal Data,Adult Social Care Direct Payment
Peterborough City Council,Adults,Independent Sector Placements,Services,09/05/2018,8000115099,"2,978.52",Revenue,Redacted Personal Data,Adult Social Care Direct Payment
Peterborough City Council,Adults,Independent Sector Placements,Services,09/05/2018,8000115100,"1,180.28",Revenue,Redacted Personal Data,Adult Social Care Direct Payment
Peterborough City Council,Adults,Independent Sector Placements,Services,09/05/2018,8000115102,"3,488.00",Revenue,Redacted Personal Data,Adult Social Care Direct Payment
Peterborough City Council,Adults,Independent Sector Placements,Services,09/05/2018,8000115103,898.96,Revenue,Redacted Personal Data,Adult Social Care Direct Payment
Peterborough City Council,Adults,Independent Sector Placements,Services,09/05/2018,8000115104,988.96,Revenue,Redacted Personal Data,Adult Social Care Direct Payment
Peterborough City Council,Adults,Independent Sector Placements,Services,09/05/2018,8000115105,"3,349.28",Revenue,Redacted Personal Data,Adult Social Care Direct Payment
Peterborough City Council,Adults,Independent Sector Placements,Services,09/05/2018,8000115106,579.68,Revenue,Redacted Personal Data,Adult Social Care Direct Payment
Peterborough City Council,Adults,Independent Sector Placements,Services,09/05/2018,8000115107,759.56,Revenue,Redacted Personal Data,Adult Social Care Direct Payment
Peterborough City Council,Adults,Independent Sector Placements,Services,09/05/2018,8000115108,"1,120.00",Revenue,Redacted Personal Data,Adult Social Care Direct Payment
Peterborough City Council,Adults,Independent Sector Placements,Services,09/05/2018,8000115109,858.4,Revenue,Redacted Personal Data,Adult Social Care Direct Payment
Peterborough City Council,Adults,Independent Sector Placements,Services,09/05/2018,8000115110,587.2,Revenue,Redacted Personal Data,Adult Social Care Direct Payment
Peterborough City Council,Adults,Independent Sector Placements,Services,09/05/2018,8000115112,"1,041.76",Revenue,Redacted Personal Data,Adult Social Care Direct Payment
Peterborough City Council,Adults,Independent Sector Placements,Services,09/05/2018,8000115113,"9,339.00",Revenue,Redacted Personal Data,Adult Social Care Direct Payment
Peterborough City Council,Adults,Independent Sector Placements,Services,09/05/2018,8000115115,"1,895.24",Revenue,Redacted Personal Data,Adult Social Care Direct Payment
Peterborough City Council,Adults,Independent Sector Placements,Services,09/05/2018,8000115117,956.76,Revenue,Redacted Personal Data,Adult Social Care Direct Payment
Peterborough City Council,Adults,Independent Sector Placements,Services,09/05/2018,8000115118,"1,709.56",Revenue,Redacted Personal Data,Adult Social Care Direct Payment
Peterborough City Council,Adults,Independent Sector Placements,Services,09/05/2018,8000115119,858.48,Revenue,Redacted Personal Data,Adult Social Care Direct Payment
Peterborough City Council,Adults,Independent Sector Placements,Services,09/05/2018,8000115120,701.64,Revenue,Redacted Personal Data,Adult Social Care Direct Payment
Peterborough City Council,Adults,Independent Sector Placements,Services,09/05/2018,8000115121,547.32,Revenue,Redacted Personal Data,Adult Social Care Direct Payment
Peterborough City Council,Adults,Independent Sector Placements,Services,09/05/2018,8000115123,792.48,Revenue,Redacted Personal Data,Adult Social Care Direct Payment
Peterborough City Council,Adults,Independent Sector Placements,Services,09/05/2018,8000115124,601.48,Revenue,Redacted Personal Data,Adult Social Care Direct Payment
Peterborough City Council,Adults,Independent Sector Placements,Services,09/05/2018,8000115125,"1,576.24",Revenue,Redacted Personal Data,Adult Social Care Direct Payment
Peterborough City Council,Adults,Independent Sector Placements,Services,09/05/2018,8000115128,"1,694.40",Revenue,Redacted Personal Data,Adult Social Care Direct Payment
Peterborough City Council,Adults,Independent Sector Placements,Services,09/05/2018,8000115129,750,Revenue,Redacted Personal Data,Adult Social Care Direct Payment
Peterborough City Council,Adults,Independent Sector Placements,Services,09/05/2018,8000115130,"3,206.64",Revenue,Redacted Personal Data,Adult Social Care Direct Payment
Peterborough City Council,Adults,Independent Sector Placements,Services,09/05/2018,8000115133,659.08,Revenue,Redacted Personal Data,Adult Social Care Direct Payment
Peterborough City Council,Adults,Independent Sector Placements,Services,09/05/2018,8000115136,"1,998.52",Revenue,Redacted Personal Data,Adult Social Care Direct Payment
Peterborough City Council,Adults,Independent Sector Placements,Services,09/05/2018,8000115138,978.48,Revenue,Redacted Personal Data,Adult Social Care Direct Payment
Peterborough City Council,Adults,Independent Sector Placements,Services,09/05/2018,8000115139,705.6,Revenue,Redacted Personal Data,Adult Social Care Direct Payment
Peterborough City Council,Adults,Independent Sector Placements,Services,09/05/2018,8000115140,554.64,Revenue,Redacted Personal Data,Adult Social Care Direct Payment
Peterborough City Council,Adults,Independent Sector Placements,Services,09/05/2018,8000115143,"1,984.44",Revenue,Redacted Personal Data,Adult Social Care Direct Payment
Peterborough City Council,Adults,Independent Sector Placements,Services,09/05/2018,8000115147,733.36,Revenue,Redacted Personal Data,Adult Social Care Direct Payment
Peterborough City Council,Adults,Independent Sector Placements,Services,09/05/2018,8000115148,616.36,Revenue,Redacted Personal Data,Adult Social Care Direct Payment
Peterborough City Council,Adults,Independent Sector Placements,Services,09/05/2018,8000115149,891.04,Revenue,Redacted Personal Data,Adult Social Care Direct Payment
Peterborough City Council,Adults,Independent Sector Placements,Services,09/05/2018,8000115150,"2,580.68",Revenue,Redacted Personal Data,Adult Social Care Direct Payment
Peterborough City Council,Adults,Independent Sector Placements,Services,09/05/2018,8000115151,895.32,Revenue,Redacted Personal Data,Adult Social Care Direct Payment
Peterborough City Council,Adults,Independent Sector Placements,Services,09/05/2018,8000115152,"3,411.04",Revenue,Redacted Personal Data,Adult Social Care Direct Payment
Peterborough City Council,Adults,Independent Sector Placements,Services,09/05/2018,8000115155,504,Revenue,Redacted Personal Data,Adult Social Care Direct Payment
Peterborough City Council,Adults,Independent Sector Placements,Services,09/05/2018,8000115156,"2,034.48",Revenue,Redacted Personal Data,Adult Social Care Direct Payment
Peterborough City Council,Adults,Independent Sector Placements,Services,09/05/2018,8000115157,864.2,Revenue,Redacted Personal Data,Adult Social Care Direct Payment
Peterborough City Council,Adults,Independent Sector Placements,Services,09/05/2018,8000115161,"1,435.56",Revenue,Redacted Personal Data,Adult Social Care Direct Payment
Peterborough City Council,Adults,Independent Sector Placements,Services,09/05/2018,8000115163,"1,073.00",Revenue,Redacted Personal Data,Adult Social Care Direct Payment
Peterborough City Council,Adults,Independent Sector Placements,Services,09/05/2018,8000115164,863.59,Revenue,Redacted Personal Data,Adult Social Care Direct Payment
Peterborough City Council,Adults,Independent Sector Placements,Services,09/05/2018,8000115165,673.12,Revenue,Redacted Personal Data,Adult Social Care Direct Payment
Peterborough City Council,Adults,Independent Sector Placements,Services,09/05/2018,8000115168,"2,033.44",Revenue,Redacted Personal Data,Adult Social Care Direct Payment
Peterborough City Council,Adults,Independent Sector Placements,Services,09/05/2018,8000115170,960,Revenue,Redacted Personal Data,Adult Social Care Direct Payment
Peterborough City Council,Adults,Independent Sector Placements,Services,09/05/2018,8000115171,637.84,Revenue,Redacted Personal Data,Adult Social Care Direct Payment
Peterborough City Council,Adults,Independent Sector Placements,Services,09/05/2018,8000115177,844.48,Revenue,Redacted Personal Data,Adult Social Care Direct Payment
Peterborough City Council,Adults,Independent Sector Placements,Services,09/05/2018,8000115178,706.48,Revenue,Redacted Personal Data,Adult Social Care Direct Payment
Peterborough City Council,Adults,Independent Sector Placements,Services,09/05/2018,8000115179,802.68,Revenue,Redacted Personal Data,Adult Social Care Direct Payment
Peterborough City Council,Adults,Independent Sector Placements,Services,09/05/2018,8000115180,907.8,Revenue,Redacted Personal Data,Adult Social Care Direct Payment
Peterborough City Council,Adults,Independent Sector Placements,Services,09/05/2018,8000115182,602.48,Revenue,Redacted Personal Data,Adult Social Care Direct Payment
Peterborough City Council,Adults,Independent Sector Placements,Services,09/05/2018,8000115183,"4,621.12",Revenue,Redacted Personal Data,Adult Social Care Direct Payment
Peterborough City Council,Adults,Independent Sector Placements,Services,09/05/2018,8000115186,714.4,Revenue,Redacted Personal Data,Adult Social Care Direct Payment
Peterborough City Council,Adults,Independent Sector Placements,Services,09/05/2018,8000115187,"1,444.08",Revenue,Redacted Personal Data,Adult Social Care Direct Payment
Peterborough City Council,Adults,Independent Sector Placements,Services,09/05/2018,8000115188,786.48,Revenue,Redacted Personal Data,Adult Social Care Direct Payment
Peterborough City Council,Adults,Independent Sector Placements,Services,09/05/2018,8000115189,900.48,Revenue,Redacted Personal Data,Adult Social Care Direct Payment
Peterborough City Council,Adults,Independent Sector Placements,Services,09/05/2018,8000115190,"1,585.04",Revenue,Redacted Personal Data,Adult Social Care Direct Payment
Peterborough City Council,Adults,Independent Sector Placements,Services,09/05/2018,8000115191,618.48,Revenue,Redacted Personal Data,Adult Social Care Direct Payment
Peterborough City Council,Adults,Independent Sector Placements,Services,09/05/2018,8000115192,"2,106.16",Revenue,Redacted Personal Data,Adult Social Care Direct Payment
Peterborough City Council,Adults,Independent Sector Placements,Services,09/05/2018,8000115193,"1,451.75",Revenue,Redacted Personal Data,Adult Social Care Direct Payment
Peterborough City Council,Adults,Independent Sector Placements,Services,09/05/2018,8000115194,606.48,Revenue,Redacted Personal Data,Adult Social Care Direct Payment
Peterborough City Council,Adults,Independent Sector Placements,Services,09/05/2018,8000115196,925.04,Revenue,Redacted Personal Data,Adult Social Care Direct Payment
Peterborough City Council,Adults,Independent Sector Placements,Services,09/05/2018,8000115198,"3,046.06",Revenue,Redacted Personal Data,Adult Social Care Direct Payment
Peterborough City Council,Adults,Independent Sector Placements,Services,09/05/2018,8000115199,"1,828.68",Revenue,Redacted Personal Data,Adult Social Care Direct Payment
Peterborough City Council,Adults,Independent Sector Placements,Services,09/05/2018,8000115202,"2,376.72",Revenue,Redacted Personal Data,Adult Social Care Direct Payment
Peterborough City Council,Adults,Independent Sector Placements,Services,09/05/2018,8000115203,"1,547.56",Revenue,Redacted Personal Data,Adult Social Care Direct Payment
Peterborough City Council,Adults,Independent Sector Placements,Services,09/05/2018,8000115204,"7,512.60",Revenue,Redacted Personal Data,Adult Social Care Direct Payment
Peterborough City Council,Adults,Independent Sector Placements,Services,09/05/2018,8000115205,969.76,Revenue,Redacted Personal Data,Adult Social Care Direct Payment
Peterborough City Council,Adults,Independent Sector Placements,Services,09/05/2018,8000115206,"1,426.52",Revenue,Redacted Personal Data,Adult Social Care Direct Payment
Peterborough City Council,Adults,Independent Sector Placements,Services,09/05/2018,8000115208,"1,107.60",Revenue,Redacted Personal Data,Adult Social Care Direct Payment
Peterborough City Council,Adults,Independent Sector Placements,Services,09/05/2018,8000115209,795.56,Revenue,Redacted Personal Data,Adult Social Care Direct Payment
Peterborough City Council,Adults,Independent Sector Placements,Services,09/05/2018,8000115210,978.4,Revenue,Redacted Personal Data,Adult Social Care Direct Payment
Peterborough City Council,Adults,Independent Sector Placements,Services,09/05/2018,8000115214,"2,573.28",Revenue,Redacted Personal Data,Adult Social Care Direct Payment
Peterborough City Council,Adults,Independent Sector Placements,Services,09/05/2018,8000115215,899.04,Revenue,Redacted Personal Data,Adult Social Care Direct Payment
Peterborough City Council,Adults,Independent Sector Placements,Services,09/05/2018,8000115217,"2,673.20",Revenue,Redacted Personal Data,Adult Social Care Direct Payment
Peterborough City Council,Adults,Independent Sector Placements,Services,09/05/2018,8000115218,"1,440.80",Revenue,Redacted Personal Data,Adult Social Care Direct Payment
Peterborough City Council,Adults,Independent Sector Placements,Services,09/05/2018,8000115219,"7,151.00",Revenue,Redacted Personal Data,Adult Social Care Direct Payment
Peterborough City Council,Adults,Independent Sector Placements,Services,09/05/2018,8000115220,"5,565.68",Revenue,Redacted Personal Data,Adult Social Care Direct Payment
Peterborough City Council,Adults,Independent Sector Placements,Services,09/05/2018,8000115221,862.4,Revenue,Redacted Personal Data,Adult Social Care Direct Payment
Peterborough City Council,Adults,Independent Sector Placements,Services,09/05/2018,8000115222,"5,237.40",Revenue,Redacted Personal Data,Adult Social Care Direct Payment
Peterborough City Council,Adults,Independent Sector Placements,Services,09/05/2018,8000115224,585.4,Revenue,Redacted Personal Data,Adult Social Care Direct Payment
Peterborough City Council,Adults,Independent Sector Placements,Services,09/05/2018,8000115225,658.56,Revenue,Redacted Personal Data,Adult Social Care Direct Payment
Peterborough City Council,Adults,Independent Sector Placements,Services,09/05/2018,8000115226,"2,120.36",Revenue,Redacted Personal Data,Adult Social Care Direct Payment
Peterborough City Council,Adults,Independent Sector Placements,Services,09/05/2018,8000115227,"7,057.56",Revenue,Redacted Personal Data,Adult Social Care Direct Payment
Peterborough City Council,Adults,Independent Sector Placements,Services,09/05/2018,8000115228,"2,513.80",Revenue,Redacted Personal Data,Adult Social Care Direct Payment
Peterborough City Council,Adults,Independent Sector Placements,Services,09/05/2018,8000115229,"1,397.52",Revenue,Redacted Personal Data,Adult Social Care Direct Payment
Peterborough City Council,Adults,Independent Sector Placements,Services,09/05/2018,8000115231,"2,339.56",Revenue,Redacted Personal Data,Adult Social Care Direct Payment
Peterborough City Council,Adults,Independent Sector Placements,Services,09/05/2018,8000115232,"1,780.40",Revenue,Redacted Personal Data,Adult Social Care Direct Payment
Peterborough City Council,Adults,Independent Sector Placements,Services,09/05/2018,8000115233,"1,421.60",Revenue,Redacted Personal Data,Adult Social Care Direct Payment
Peterborough City Council,Adults,Independent Sector Placements,Services,09/05/2018,8000115234,"1,025.32",Revenue,Redacted Personal Data,Adult Social Care Direct Payment
Peterborough City Council,Adults,Independent Sector Placements,Services,09/05/2018,8000115235,"1,739.40",Revenue,Redacted Personal Data,Adult Social Care Direct Payment
Peterborough City Council,Adults,Independent Sector Placements,Services,09/05/2018,8000115236,"1,596.48",Revenue,Redacted Personal Data,Adult Social Care Direct Payment
Peterborough City Council,Adults,Independent Sector Placements,Services,09/05/2018,8000115237,"5,783.16",Revenue,Redacted Personal Data,Adult Social Care Direct Payment
Peterborough City Council,Adults,Independent Sector Placements,Services,09/05/2018,8000115238,"2,623.40",Revenue,Redacted Personal Data,Adult Social Care Direct Payment
Peterborough City Council,Adults,Independent Sector Placements,Services,09/05/2018,8000115239,"1,290.08",Revenue,Redacted Personal Data,Adult Social Care Direct Payment
Peterborough City Council,Adults,Independent Sector Placements,Services,09/05/2018,8000115240,"2,576.24",Revenue,Redacted Personal Data,Adult Social Care Direct Payment
Peterborough City Council,Adults,Independent Sector Placements,Services,09/05/2018,8000115242,"1,629.24",Revenue,Redacted Personal Data,Adult Social Care Direct Payment
Peterborough City Council,Adults,Independent Sector Placements,Services,09/05/2018,8000115243,906.68,Revenue,Redacted Personal Data,Adult Social Care Direct Payment
Peterborough City Council,Adults,Independent Sector Placements,Services,09/05/2018,8000115245,"3,045.60",Revenue,Redacted Personal Data,Adult Social Care Direct Payment
Peterborough City Council,Adults,Independent Sector Placements,Services,09/05/2018,8000115246,"1,355.56",Revenue,Redacted Personal Data,Adult Social Care Direct Payment
Peterborough City Council,Adults,Independent Sector Placements,Services,09/05/2018,8000115247,652.56,Revenue,Redacted Personal Data,Adult Social Care Direct Payment
Peterborough City Council,Adults,Independent Sector Placements,Services,09/05/2018,8000115248,"1,340.40",Revenue,Redacted Personal Data,Adult Social Care Direct Payment
Peterborough City Council,Adults,Independent Sector Placements,Services,09/05/2018,8000115249,"1,436.00",Revenue,Redacted Personal Data,Adult Social Care Direct Payment
Peterborough City Council,Adults,Independent Sector Placements,Services,09/05/2018,8000115250,"1,982.44",Revenue,Redacted Personal Data,Adult Social Care Direct Payment
Peterborough City Council,Adults,Independent Sector Placements,Services,09/05/2018,8000115251,"2,654.32",Revenue,Redacted Personal Data,Adult Social Care Direct Payment
Peterborough City Council,Adults,Independent Sector Placements,Services,09/05/2018,8000115252,"3,502.88",Revenue,Redacted Personal Data,Adult Social Care Direct Payment
Peterborough City Council,Adults,Independent Sector Placements,Services,09/05/2018,8000115253,"1,625.00",Revenue,Redacted Personal Data,Adult Social Care Direct Payment
Peterborough City Council,Adults,Independent Sector Placements,Services,09/05/2018,8000115254,"2,585.52",Revenue,Redacted Personal Data,Adult Social Care Direct Payment
Peterborough City Council,Adults,Independent Sector Placements,Services,09/05/2018,8000115255,"2,451.24",Revenue,Redacted Personal Data,Adult Social Care Direct Payment
Peterborough City Council,Adults,Independent Sector Placements,Services,09/05/2018,8000115258,503.36,Revenue,Redacted Personal Data,Adult Social Care Direct Payment
Peterborough City Council,Adults,Independent Sector Placements,Services,09/05/2018,8000115259,705.36,Revenue,Redacted Personal Data,Adult Social Care Direct Payment
Peterborough City Council,Adults,Independent Sector Placements,Services,09/05/2018,8000115260,648.08,Revenue,Redacted Personal Data,Adult Social Care Direct Payment
Peterborough City Council,Adults,Independent Sector Placements,Services,09/05/2018,8000115261,"1,533.00",Revenue,Redacted Personal Data,Adult Social Care Direct Payment
Peterborough City Council,Adults,Independent Sector Placements,Services,09/05/2018,8000115262,883.36,Revenue,Redacted Personal Data,Adult Social Care Direct Payment
Peterborough City Council,Adults,Independent Sector Placements,Services,09/05/2018,8000115264,"1,090.80",Revenue,Redacted Personal Data,Adult Social Care Direct Payment
Peterborough City Council,Adults,Independent Sector Placements,Services,09/05/2018,8000115265,"2,176.00",Revenue,Redacted Personal Data,Adult Social Care Direct Payment
Peterborough City Council,Adults,Independent Sector Placements,Services,09/05/2018,8000115266,"1,394.48",Revenue,Redacted Personal Data,Adult Social Care Direct Payment
Peterborough City Council,Adults,Independent Sector Placements,Services,09/05/2018,8000115268,"1,716.32",Revenue,Redacted Personal Data,Adult Social Care Direct Payment
Peterborough City Council,Adults,Independent Sector Placements,Services,09/05/2018,8000115269,537.44,Revenue,Redacted Personal Data,Adult Social Care Direct Payment
Peterborough City Council,Adults,Independent Sector Placements,Services,09/05/2018,8000115270,541.4,Revenue,Redacted Personal Data,Adult Social Care Direct Payment
Peterborough City Council,Adults,Independent Sector Placements,Services,09/05/2018,8000115272,"1,735.40",Revenue,Redacted Personal Data,Adult Social Care Direct Payment
Peterborough City Council,Adults,Independent Sector Placements,Services,09/05/2018,8000115275,530.84,Revenue,Redacted Personal Data,Adult Social Care Direct Payment
Peterborough City Council,Adults,Independent Sector Placements,Services,09/05/2018,8000115276,709.8,Revenue,Redacted Personal Data,Adult Social Care Direct Payment
Peterborough City Council,Adults,Independent Sector Placements,Services,09/05/2018,8000115277,"1,341.44",Revenue,Redacted Personal Data,Adult Social Care Direct Payment
Peterborough City Council,Adults,Independent Sector Placements,Services,09/05/2018,8000115280,"1,562.00",Revenue,Redacted Personal Data,Adult Social Care Direct Payment
Peterborough City Council,Adults,Independent Sector Placements,Services,09/05/2018,8000115281,775.88,Revenue,Redacted Personal Data,Adult Social Care Direct Payment
Peterborough City Council,Adults,Independent Sector Placements,Services,09/05/2018,8000115282,897.6,Revenue,Redacted Personal Data,Adult Social Care Direct Payment
Peterborough City Council,Adults,Independent Sector Placements,Services,09/05/2018,8000115284,"2,310.00",Revenue,Redacted Personal Data,Adult Social Care Direct Payment
Peterborough City Council,Adults,Independent Sector Placements,Services,09/05/2018,8000115285,760.88,Revenue,Redacted Personal Data,Adult Social Care Direct Payment
Peterborough City Council,Adults,Independent Sector Placements,Services,09/05/2018,8000115286,725.08,Revenue,Redacted Personal Data,Adult Social Care Direct Payment
Peterborough City Council,Adults,Independent Sector Placements,Services,09/05/2018,8000115287,890.48,Revenue,Redacted Personal Data,Adult Social Care Direct Payment
Peterborough City Council,Adults,Independent Sector Placements,Services,09/05/2018,8000115288,"3,222.56",Revenue,Redacted Personal Data,Adult Social Care Direct Payment
Peterborough City Council,Adults,Independent Sector Placements,Services,09/05/2018,8000115289,"1,904.00",Revenue,Redacted Personal Data,Adult Social Care Direct Payment
Peterborough City Council,Adults,Independent Sector Placements,Services,09/05/2018,8000115291,811.24,Revenue,Redacted Personal Data,Adult Social Care Direct Payment
Peterborough City Council,Adults,Independent Sector Placements,Services,09/05/2018,8000115294,"2,430.48",Revenue,Redacted Personal Data,Adult Social Care Direct Payment
Peterborough City Council,Adults,Independent Sector Placements,Services,09/05/2018,8000115295,"1,678.12",Revenue,Redacted Personal Data,Adult Social Care Direct Payment
Peterborough City Council,Adults,Independent Sector Placements,Services,09/05/2018,8000115296,"3,528.84",Revenue,Redacted Personal Data,Adult Social Care Direct Payment
Peterborough City Council,Adults,Independent Sector Placements,Services,09/05/2018,8000115297,"1,245.52",Revenue,Redacted Personal Data,Adult Social Care Direct Payment
Peterborough City Council,Adults,Independent Sector Placements,Services,09/05/2018,8000115298,"1,553.44",Revenue,Redacted Personal Data,Adult Social Care Direct Payment
Peterborough City Council,Adults,Independent Sector Placements,Services,09/05/2018,8000115299,780.72,Revenue,Redacted Personal Data,Adult Social Care Direct Payment
Peterborough City Council,Adults,Independent Sector Placements,Services,09/05/2018,8000115300,"1,979.16",Revenue,Redacted Personal Data,Adult Social Care Direct Payment
Peterborough City Council,Adults,Independent Sector Placements,Services,09/05/2018,8000115301,"5,668.24",Revenue,Redacted Personal Data,Adult Social Care Direct Payment
Peterborough City Council,Adults,Independent Sector Placements,Services,09/05/2018,8000115302,"1,612.08",Revenue,Redacted Personal Data,Adult Social Care Direct Payment
Peterborough City Council,Adults,Independent Sector Placements,Services,09/05/2018,8000115303,"4,944.48",Revenue,Redacted Personal Data,Adult Social Care Direct Payment
Peterborough City Council,Adults,Independent Sector Placements,Services,09/05/2018,8000115304,"5,231.44",Revenue,Redacted Personal Data,Adult Social Care Direct Payment
Peterborough City Council,Adults,Independent Sector Placements,Services,09/05/2018,8000115305,"6,292.08",Revenue,Redacted Personal Data,Adult Social Care Direct Payment
Peterborough City Council,Adults,Independent Sector Placements,Services,09/05/2018,8000115306,"1,604.60",Revenue,Redacted Personal Data,Adult Social Care Direct Payment
Peterborough City Council,Adults,Independent Sector Placements,Services,09/05/2018,8000115309,"7,350.08",Revenue,Redacted Personal Data,Adult Social Care Direct Payment
Peterborough City Council,Adults,Independent Sector Placements,Services,09/05/2018,8000115311,"3,293.68",Revenue,Redacted Personal Data,Adult Social Care Direct Payment
Peterborough City Council,Adults,Independent Sector Placements,Services,09/05/2018,8000115312,952,Revenue,Redacted Personal Data,Adult Social Care Direct Payment
Peterborough City Council,Adults,Independent Sector Placements,Services,09/05/2018,8000115314,"15,421.08",Revenue,Redacted Personal Data,Adult Social Care Direct Payment
Peterborough City Council,Adults,Independent Sector Placements,Services,09/05/2018,8000115316,"2,608.68",Revenue,Redacted Personal Data,Adult Social Care Direct Payment
Peterborough City Council,Adults,Independent Sector Placements,Services,09/05/2018,8000115317,"1,748.00",Revenue,Redacted Personal Data,Adult Social Care Direct Payment
Peterborough City Council,Adults,Independent Sector Placements,Services,09/05/2018,8000115318,"1,416.64",Revenue,Redacted Personal Data,Adult Social Care Direct Payment
Peterborough City Council,Adults,Independent Sector Placements,Services,09/05/2018,8000115319,"1,088.00",Revenue,Redacted Personal Data,Adult Social Care Direct Payment
Peterborough City Council,Adults,Independent Sector Placements,Services,09/05/2018,8000115320,"1,167.92",Revenue,Redacted Personal Data,Adult Social Care Direct Payment
Peterborough City Council,Adults,Independent Sector Placements,Services,09/05/2018,8000115321,"2,278.96",Revenue,Redacted Personal Data,Adult Social Care Direct Payment
Peterborough City Council,Adults,Independent Sector Placements,Services,09/05/2018,8000115322,"2,184.20",Revenue,Redacted Personal Data,Adult Social Care Direct Payment
Peterborough City Council,Adults,Independent Sector Placements,Services,09/05/2018,8000115323,"1,629.08",Revenue,Redacted Personal Data,Adult Social Care Direct Payment
Peterborough City Council,Adults,Independent Sector Placements,Services,09/05/2018,8000115325,"1,250.84",Revenue,Redacted Personal Data,Adult Social Care Direct Payment
Peterborough City Council,Adults,Independent Sector Placements,Services,09/05/2018,8000115327,717.2,Revenue,Redacted Personal Data,Adult Social Care Direct Payment
Peterborough City Council,Adults,Independent Sector Placements,Services,09/05/2018,8000115328,773.28,Revenue,Redacted Personal Data,Adult Social Care Direct Payment
Peterborough City Council,Adults,Independent Sector Placements,Services,09/05/2018,8000115329,554.64,Revenue,Redacted Personal Data,Adult Social Care Direct Payment
Peterborough City Council,Adults,Independent Sector Placements,Services,09/05/2018,8000115330,576,Revenue,Redacted Personal Data,Adult Social Care Direct Payment
Peterborough City Council,Adults,Independent Sector Placements,Services,09/05/2018,8000115331,"8,586.48",Revenue,Redacted Personal Data,Adult Social Care Direct Payment
Peterborough City Council,Adults,Independent Sector Placements,Services,09/05/2018,8000115332,914.84,Revenue,Redacted Personal Data,Adult Social Care Direct Payment
Peterborough City Council,Adults,Independent Sector Placements,Services,09/05/2018,8000115333,"6,439.28",Revenue,Redacted Personal Data,Adult Social Care Direct Payment
Peterborough City Council,Adults,Independent Sector Placements,Services,09/05/2018,8000115334,"2,400.88",Revenue,Redacted Personal Data,Adult Social Care Direct Payment
Peterborough City Council,Adults,Independent Sector Placements,Services,09/05/2018,8000115335,"1,063.92",Revenue,Redacted Personal Data,Adult Social Care Direct Payment
Peterborough City Council,Adults,Independent Sector Placements,Services,09/05/2018,8000115337,864.68,Revenue,Redacted Personal Data,Adult Social Care Direct Payment
Peterborough City Council,Adults,Independent Sector Placements,Services,09/05/2018,8000115338,"9,329.88",Revenue,Redacted Personal Data,Adult Social Care Direct Payment
Peterborough City Council,Adults,Independent Sector Placements,Services,09/05/2018,8000115339,"3,618.48",Revenue,Redacted Personal Data,Adult Social Care Direct Payment
Peterborough City Council,Adults,Independent Sector Placements,Services,09/05/2018,8000115341,"1,367.28",Revenue,Redacted Personal Data,Adult Social Care Direct Payment
Peterborough City Council,Adults,Independent Sector Placements,Services,09/05/2018,8000115342,"3,131.20",Revenue,Redacted Personal Data,Adult Social Care Direct Payment
Peterborough City Council,Adults,Independent Sector Placements,Services,09/05/2018,8000115343,"1,266.48",Revenue,Redacted Personal Data,Adult Social Care Direct Payment
Peterborough City Council,Adults,Independent Sector Placements,Services,09/05/2018,8000115344,"6,338.00",Revenue,Redacted Personal Data,Adult Social Care Direct Payment
Peterborough City Council,Adults,Independent Sector Placements,Services,09/05/2018,8000115345,716.8,Revenue,Redacted Personal Data,Adult Social Care Direct Payment
Peterborough City Council,Adults,Independent Sector Placements,Services,09/05/2018,8000115346,"10,074.40",Revenue,Redacted Personal Data,Adult Social Care Direct Payment
Peterborough City Council,Adults,Independent Sector Placements,Services,09/05/2018,8000115348,"1,366.96",Revenue,Redacted Personal Data,Adult Social Care Direct Payment
Peterborough City Council,Adults,Independent Sector Placements,Services,09/05/2018,8000115349,"2,342.76",Revenue,Redacted Personal Data,Adult Social Care Direct Payment
Peterborough City Council,Adults,Independent Sector Placements,Services,09/05/2018,8000115350,942.08,Revenue,Redacted Personal Data,Adult Social Care Direct Payment
Peterborough City Council,Adults,Independent Sector Placements,Services,09/05/2018,8000115351,"3,908.60",Revenue,Redacted Personal Data,Adult Social Care Direct Payment
Peterborough City Council,Adults,Independent Sector Placements,Services,09/05/2018,8000115352,"6,801.88",Revenue,Redacted Personal Data,Adult Social Care Direct Payment
Peterborough City Council,Adults,Independent Sector Placements,Services,09/05/2018,8000115353,"3,511.28",Revenue,Redacted Personal Data,Adult Social Care Direct Payment
Peterborough City Council,Adults,Independent Sector Placements,Services,09/05/2018,8000115354,"1,303.32",Revenue,Redacted Personal Data,Adult Social Care Direct Payment
Peterborough City Council,Adults,Independent Sector Placements,Services,09/05/2018,8000115355,528,Revenue,Redacted Personal Data,Adult Social Care Direct Payment
Peterborough City Council,Adults,Independent Sector Placements,Services,09/05/2018,8000115356,689.68,Revenue,Redacted Personal Data,Adult Social Care Direct Payment
Peterborough City Council,Adults,Independent Sector Placements,Services,09/05/2018,8000115357,"6,536.88",Revenue,Redacted Personal Data,Adult Social Care Direct Payment
Peterborough City Council,Adults,Independent Sector Placements,Services,09/05/2018,8000115358,"2,064.41",Revenue,Redacted Personal Data,Adult Social Care Direct Payment
Peterborough City Council,Adults,Independent Sector Placements,Services,09/05/2018,8000115360,"4,724.56",Revenue,Redacted Personal Data,Adult Social Care Direct Payment
Peterborough City Council,Adults,Independent Sector Placements,Services,09/05/2018,8000115361,"4,851.36",Revenue,Redacted Personal Data,Adult Social Care Direct Payment
Peterborough City Council,Adults,Independent Sector Placements,Services,09/05/2018,8000115362,"1,025.08",Revenue,Redacted Personal Data,Adult Social Care Direct Payment
Peterborough City Council,Adults,Independent Sector Placements,Services,09/05/2018,8000115364,"3,022.36",Revenue,Redacted Personal Data,Adult Social Care Direct Payment
Peterborough City Council,Adults,Independent Sector Placements,Services,09/05/2018,8000115365,"12,746.84",Revenue,Redacted Personal Data,Adult Social Care Direct Payment
Peterborough City Council,Adults,Independent Sector Placements,Services,09/05/2018,8000115366,"6,855.28",Revenue,Redacted Personal Data,Adult Social Care Direct Payment
Peterborough City Council,Adults,Independent Sector Placements,Services,09/05/2018,8000115368,"4,176.40",Revenue,Redacted Personal Data,Adult Social Care Direct Payment
Peterborough City Council,Adults,Independent Sector Placements,Services,09/05/2018,8000115369,652.08,Revenue,Redacted Personal Data,Adult Social Care Direct Payment
Peterborough City Council,Adults,Independent Sector Placements,Services,09/05/2018,8000115371,738.44,Revenue,Redacted Personal Data,Adult Social Care Direct Payment
Peterborough City Council,Adults,Independent Sector Placements,Services,09/05/2018,8000115372,566.08,Revenue,Redacted Personal Data,Adult Social Care Direct Payment
Peterborough City Council,Adults,Independent Sector Placements,Services,09/05/2018,8000115373,"1,587.88",Revenue,Redacted Personal Data,Adult Social Care Direct Payment
Peterborough City Council,Adults,Independent Sector Placements,Services,09/05/2018,8000115374,"2,288.52",Revenue,Redacted Personal Data,Adult Social Care Direct Payment
Peterborough City Council,Adults,Independent Sector Placements,Services,09/05/2018,8000115375,648,Revenue,Redacted Personal Data,Adult Social Care Direct Payment
Peterborough City Council,Adults,Independent Sector Placements,Services,09/05/2018,8000115376,"2,370.48",Revenue,Redacted Personal Data,Adult Social Care Direct Payment
Peterborough City Council,Adults,Independent Sector Placements,Services,09/05/2018,8000115377,800,Revenue,Redacted Personal Data,Adult Social Care Direct Payment
Peterborough City Council,Adults,Independent Sector Placements,Services,09/05/2018,8000115379,634.88,Revenue,Redacted Personal Data,Adult Social Care Direct Payment
Peterborough City Council,Adults,Independent Sector Placements,Services,09/05/2018,8000115380,"3,024.48",Revenue,Redacted Personal Data,Adult Social Care Direct Payment
Peterborough City Council,Adults,Independent Sector Placements,Services,09/05/2018,8000115381,"1,170.48",Revenue,Redacted Personal Data,Adult Social Care Direct Payment
Peterborough City Council,Adults,Independent Sector Placements,Services,09/05/2018,8000115382,"4,208.48",Revenue,Redacted Personal Data,Adult Social Care Direct Payment
Peterborough City Council,Adults,Independent Sector Placements,Services,09/05/2018,8000115383,"1,724.60",Revenue,Redacted Personal Data,Adult Social Care Direct Payment
Peterborough City Council,Adults,Independent Sector Placements,Services,09/05/2018,8000115384,574.4,Revenue,Redacted Personal Data,Adult Social Care Direct Payment
Peterborough City Council,Adults,Independent Sector Placements,Services,09/05/2018,8000115385,"5,569.12",Revenue,Redacted Personal Data,Adult Social Care Direct Payment
Peterborough City Council,Adults,Independent Sector Placements,Services,09/05/2018,8000115386,874.16,Revenue,Redacted Personal Data,Adult Social Care Direct Payment
Peterborough City Council,Adults,Independent Sector Placements,Services,09/05/2018,8000115387,"1,818.40",Revenue,Redacted Personal Data,Adult Social Care Direct Payment
Peterborough City Council,Adults,Independent Sector Placements,Services,09/05/2018,8000115390,"1,002.48",Revenue,Redacted Personal Data,Adult Social Care Direct Payment
Peterborough City Council,Adults,Independent Sector Placements,Services,09/05/2018,8000115391,669.12,Revenue,Redacted Personal Data,Adult Social Care Direct Payment
Peterborough City Council,Adults,Independent Sector Placements,Services,09/05/2018,8000115392,"6,075.64",Revenue,Redacted Personal Data,Adult Social Care Direct Payment
Peterborough City Council,Adults,Independent Sector Placements,Services,09/05/2018,8000115393,606.48,Revenue,Redacted Personal Data,Adult Social Care Direct Payment
Peterborough City Council,Adults,Independent Sector Placements,Services,09/05/2018,8000115394,"5,731.64",Revenue,Redacted Personal Data,Adult Social Care Direct Payment
Peterborough City Council,Adults,Independent Sector Placements,Services,09/05/2018,8000115395,"1,903.48",Revenue,Redacted Personal Data,Adult Social Care Direct Payment
Peterborough City Council,Adults,Independent Sector Placements,Services,09/05/2018,8000115396,"8,634.00",Revenue,Redacted Personal Data,Adult Social Care Direct Payment
Peterborough City Council,Adults,Independent Sector Placements,Services,09/05/2018,8000115397,"5,619.16",Revenue,Redacted Personal Data,Adult Social Care Direct Payment
Peterborough City Council,Adults,Independent Sector Placements,Services,09/05/2018,8000115398,627.48,Revenue,Redacted Personal Data,Adult Social Care Direct Payment
Peterborough City Council,Adults,Independent Sector Placements,Services,09/05/2018,8000115399,692.12,Revenue,Redacted Personal Data,Adult Social Care Direct Payment
Peterborough City Council,Adults,Independent Sector Placements,Services,09/05/2018,8000115400,"1,348.84",Revenue,Redacted Personal Data,Adult Social Care Direct Payment
Peterborough City Council,Adults,Independent Sector Placements,Services,09/05/2018,8000115402,"1,326.48",Revenue,Redacted Personal Data,Adult Social Care Direct Payment
Peterborough City Council,Adults,Independent Sector Placements,Services,09/05/2018,8000115403,"2,275.64",Revenue,Redacted Personal Data,Adult Social Care Direct Payment
Peterborough City Council,Adults,Independent Sector Placements,Services,09/05/2018,8000115405,"1,960.00",Revenue,Redacted Personal Data,Adult Social Care Direct Payment
Peterborough City Council,Adults,Independent Sector Placements,Services,09/05/2018,8000115407,"1,392.16",Revenue,Redacted Personal Data,Adult Social Care Direct Payment
Peterborough City Council,Adults,Independent Sector Placements,Services,09/05/2018,8000115408,"1,634.76",Revenue,Redacted Personal Data,Adult Social Care Direct Payment
Peterborough City Council,Adults,Independent Sector Placements,Services,09/05/2018,8000115409,"1,165.44",Revenue,Redacted Personal Data,Adult Social Care Direct Payment
Peterborough City Council,Adults,Independent Sector Placements,Services,09/05/2018,8000115410,"3,307.84",Revenue,Redacted Personal Data,Adult Social Care Direct Payment
Peterborough City Council,Adults,Independent Sector Placements,Services,09/05/2018,8000115411,"2,380.00",Revenue,Redacted Personal Data,Adult Social Care Direct Payment
Peterborough City Council,Adults,Independent Sector Placements,Services,09/05/2018,8000115412,"2,838.48",Revenue,Redacted Personal Data,Adult Social Care Direct Payment
Peterborough City Council,Adults,Independent Sector Placements,Services,09/05/2018,8000115413,807.88,Revenue,Redacted Personal Data,Adult Social Care Direct Payment
Peterborough City Council,Adults,Independent Sector Placements,Services,09/05/2018,8000115415,540,Revenue,Redacted Personal Data,Adult Social Care Direct Payment
Peterborough City Council,Adults,Independent Sector Placements,Services,09/05/2018,8000115416,"1,517.68",Revenue,Redacted Personal Data,Adult Social Care Direct Payment
Peterborough City Council,Adults,Independent Sector Placements,Services,09/05/2018,8000115418,822.72,Revenue,Redacted Personal Data,Adult Social Care Direct Payment
Peterborough City Council,Adults,Independent Sector Placements,Services,09/05/2018,8000115419,"2,847.36",Revenue,Redacted Personal Data,Adult Social Care Direct Payment
Peterborough City Council,Adults,Independent Sector Placements,Services,09/05/2018,8000115420,582.24,Revenue,Redacted Personal Data,Adult Social Care Direct Payment
Peterborough City Council,Adults,Independent Sector Placements,Services,09/05/2018,8000115421,"5,105.28",Revenue,Redacted Personal Data,Adult Social Care Direct Payment
Peterborough City Council,Adults,Independent Sector Placements,Services,09/05/2018,8000115423,"7,590.08",Revenue,Redacted Personal Data,Adult Social Care Direct Payment
Peterborough City Council,Adults,Independent Sector Placements,Services,09/05/2018,8000115424,798.48,Revenue,Redacted Personal Data,Adult Social Care Direct Payment
Peterborough City Council,Adults,Independent Sector Placements,Services,09/05/2018,8000115429,"1,078.92",Revenue,Redacted Personal Data,Adult Social Care Direct Payment
Peterborough City Council,Adults,Independent Sector Placements,Services,09/05/2018,8000115430,805.48,Revenue,Redacted Personal Data,Adult Social Care Direct Payment
Peterborough City Council,Adults,Independent Sector Placements,Services,09/05/2018,8000115431,570.48,Revenue,Redacted Personal Data,Adult Social Care Direct Payment
Peterborough City Council,Adults,Independent Sector Placements,Services,09/05/2018,8000115432,"10,066.88",Revenue,Redacted Personal Data,Adult Social Care Direct Payment
Peterborough City Council,Adults,Independent Sector Placements,Services,09/05/2018,8000115433,"1,244.40",Revenue,Redacted Personal Data,Adult Social Care Direct Payment
Peterborough City Council,Adults,Independent Sector Placements,Services,09/05/2018,8000115434,"1,565.68",Revenue,Redacted Personal Data,Adult Social Care Direct Payment
Peterborough City Council,Adults,Independent Sector Placements,Services,09/05/2018,8000115435,864.28,Revenue,Redacted Personal Data,Adult Social Care Direct Payment
Peterborough City Council,Adults,Independent Sector Placements,Services,09/05/2018,8000115437,"1,094.88",Revenue,Redacted Personal Data,Adult Social Care Direct Payment
Peterborough City Council,Adults,Independent Sector Placements,Services,09/05/2018,8000115438,"1,295.16",Revenue,Redacted Personal Data,Adult Social Care Direct Payment
Peterborough City Council,Adults,Independent Sector Placements,Services,09/05/2018,8000115441,"2,235.60",Revenue,Redacted Personal Data,Adult Social Care Direct Payment
Peterborough City Council,Adults,Independent Sector Placements,Services,09/05/2018,8000115443,"2,481.56",Revenue,Redacted Personal Data,Adult Social Care Direct Payment
Peterborough City Council,Adults,Independent Sector Placements,Services,09/05/2018,8000115444,888.4,Revenue,Redacted Personal Data,Adult Social Care Direct Payment
Peterborough City Council,Adults,Independent Sector Placements,Services,09/05/2018,8000115445,"2,270.88",Revenue,Redacted Personal Data,Adult Social Care Direct Payment
Peterborough City Council,Adults,Independent Sector Placements,Services,09/05/2018,8000115446,"2,644.72",Revenue,Redacted Personal Data,Adult Social Care Direct Payment
Peterborough City Council,Adults,Independent Sector Placements,Services,09/05/2018,8000115447,921.4,Revenue,Redacted Personal Data,Adult Social Care Direct Payment
Peterborough City Council,Adults,Independent Sector Placements,Services,09/05/2018,8000115448,"1,394.20",Revenue,Redacted Personal Data,Adult Social Care Direct Payment
Peterborough City Council,Adults,Independent Sector Placements,Services,09/05/2018,8000115450,"2,475.80",Revenue,Redacted Personal Data,Adult Social Care Direct Payment
Peterborough City Council,Adults,Independent Sector Placements,Services,09/05/2018,8000115453,"1,352.96",Revenue,Redacted Personal Data,Adult Social Care Direct Payment
Peterborough City Council,Adults,Independent Sector Placements,Services,09/05/2018,8000115454,"1,208.64",Revenue,Redacted Personal Data,Adult Social Care Direct Payment
Peterborough City Council,Adults,Independent Sector Placements,Services,09/05/2018,8000115456,"1,208.64",Revenue,Redacted Personal Data,Adult Social Care Direct Payment
Peterborough City Council,Adults,Independent Sector Placements,Services,09/05/2018,8000115457,606.48,Revenue,Redacted Personal Data,Adult Social Care Direct Payment
Peterborough City Council,Adults,Independent Sector Placements,Services,09/05/2018,8000115459,"3,834.48",Revenue,Redacted Personal Data,Adult Social Care Direct Payment
Peterborough City Council,Adults,Independent Sector Placements,Services,09/05/2018,8000115460,"1,208.64",Revenue,Redacted Personal Data,Adult Social Care Direct Payment
Peterborough City Council,Adults,Independent Sector Placements,Services,09/05/2018,8000115461,744,Revenue,Redacted Personal Data,Adult Social Care Direct Payment
Peterborough City Council,Adults,Independent Sector Placements,Services,09/05/2018,8000115462,"1,053.48",Revenue,Redacted Personal Data,Adult Social Care Direct Payment
Peterborough City Council,Adults,Independent Sector Placements,Services,09/05/2018,8000115463,"1,826.88",Revenue,Redacted Personal Data,Adult Social Care Direct Payment
Peterborough City Council,Adults,Independent Sector Placements,Services,09/05/2018,8000115465,522.48,Revenue,Redacted Personal Data,Adult Social Care Direct Payment
Peterborough City Council,Adults,Independent Sector Placements,Services,09/05/2018,8000115466,985.68,Revenue,Redacted Personal Data,Adult Social Care Direct Payment
Peterborough City Council,Adults,Independent Sector Placements,Services,09/05/2018,8000115467,"1,448.92",Revenue,Redacted Personal Data,Adult Social Care Direct Payment
Peterborough City Council,Adults,Independent Sector Placements,Services,09/05/2018,8000115468,"3,400.74",Revenue,Redacted Personal Data,Adult Social Care Direct Payment
Peterborough City Council,Adults,Independent Sector Placements,Services,09/05/2018,8000115469,"3,400.74",Revenue,Redacted Personal Data,Adult Social Care Direct Payment
Peterborough City Council,Adults,Independent Sector Placements,Services,09/05/2018,8000115470,"4,525.40",Revenue,Redacted Personal Data,Adult Social Care Direct Payment
Peterborough City Council,Adults,Independent Sector Placements,Services,09/05/2018,8000115471,518.08,Revenue,Redacted Personal Data,Adult Social Care Direct Payment
Peterborough City Council,Adults,Independent Sector Placements,Services,09/05/2018,8000115472,802.48,Revenue,Redacted Personal Data,Adult Social Care Direct Payment
Peterborough City Council,Adults,Independent Sector Placements,Services,09/05/2018,8000115474,873.52,Revenue,Redacted Personal Data,Adult Social Care Direct Payment
Peterborough City Council,Adults,Independent Sector Placements,Services,09/05/2018,8000115476,"1,135.00",Revenue,Redacted Personal Data,Adult Social Care Direct Payment
Peterborough City Council,Adults,Independent Sector Placements,Services,09/05/2018,8000115477,"1,216.96",Revenue,Redacted Personal Data,Adult Social Care Direct Payment
Peterborough City Council,Adults,Independent Sector Placements,Services,09/05/2018,8000115484,"3,864.56",Revenue,Redacted Personal Data,Adult Social Care Direct Payment
Peterborough City Council,Adults,Independent Sector Placements,Services,09/05/2018,8000115485,895.12,Revenue,Redacted Personal Data,Adult Social Care Direct Payment
Peterborough City Council,Adults,Independent Sector Placements,Services,09/05/2018,8000115486,"1,152.00",Revenue,Redacted Personal Data,Adult Social Care Direct Payment
Peterborough City Council,Adults,Independent Sector Placements,Services,09/05/2018,8000115487,"3,743.08",Revenue,Redacted Personal Data,Adult Social Care Direct Payment
Peterborough City Council,Adults,Independent Sector Placements,Services,09/05/2018,8000115489,"16,277.42",Revenue,Redacted Personal Data,Adult Social Care Direct Payment
Peterborough City Council,Adults,Independent Sector Placements,Services,09/05/2018,8000115490,"1,574.00",Revenue,Redacted Personal Data,Adult Social Care Direct Payment
Peterborough City Council,Education,HTS & CSC Transport,Contract Hire and Operating Leases,09/05/2018,8000115495,"1,468.80",Revenue,R T Enterprises Ltd T/A Royal Taxis,Hired Transport
Peterborough City Council,Education,HTS & CSC Transport,Contract Hire and Operating Leases,09/05/2018,8000115496,"2,128.40",Revenue,Goldstar Cabs Ltd,Hired Transport
Peterborough City Council,Education,HTS & CSC Transport,Contract Hire and Operating Leases,09/05/2018,8000115497,"2,255.86",Revenue,Goldstar Cabs Ltd,Hired Transport
Peterborough City Council,Education,HTS & CSC Transport,Contract Hire and Operating Leases,09/05/2018,8000115498,"1,713.16",Revenue,Goldstar Cabs Ltd,Hired Transport
Peterborough City Council,Education,HTS & CSC Transport,Contract Hire and Operating Leases,09/05/2018,8000115499,"1,975.20",Revenue,Goldstar Cabs Ltd,Hired Transport
Peterborough City Council,Education,HTS & CSC Transport,Contract Hire and Operating Leases,09/05/2018,8000115500,"2,004.00",Revenue,Goldstar Cabs Ltd,Hired Transport
Peterborough City Council,Education,HTS & CSC Transport,Contract Hire and Operating Leases,09/05/2018,8000115501,"1,665.53",Revenue,Goldstar Cabs Ltd,Hired Transport
Peterborough City Council,ICT,ICT,Services,10/05/2018,8000117183,"5,955.44",Revenue,Vere West LLC,Computer Software
Peterborough City Council,"Waste, Cleansing and Open Spaces",Waste Management,Services,11/05/2018,30134449,"21,421.05",Revenue,AmeyCespa (East) Ltd,Recycling
Peterborough City Council,"Waste, Cleansing and Open Spaces",Waste Management,Services,11/05/2018,30138555,"11,284.44",Revenue,AmeyCespa (East) Ltd,Recycling
Peterborough City Council,"Waste, Cleansing and Open Spaces",Waste Management,Services,11/05/2018,30143107,"8,213.24",Revenue,AmeyCespa (East) Ltd,Recycling
Peterborough City Council,Peterborough Serco Strategic Partnership,PSSP Retained Services,Services,11/05/2018,30165085,"-24,160.40",Revenue,Konica Minolta Bus.Sol. East Ltd,Photocopying
Peterborough City Council,Peterborough Serco Strategic Partnership,PSSP Retained Services,Services,11/05/2018,30165088,"-30,902.59",Revenue,Konica Minolta Bus.Sol. East Ltd,Photocopying
Peterborough City Council,Peterborough Serco Strategic Partnership,PSSP Retained Services,Services,11/05/2018,30165107,"30,895.67",Revenue,Konica Minolta Bus.Sol. East Ltd,Photocopying
Peterborough City Council,Peterborough Serco Strategic Partnership,PSSP Retained Services,Services,11/05/2018,30165108,"15,507.40",Revenue,Konica Minolta Bus.Sol. East Ltd,Photocopying
Peterborough City Council,Peterborough Highway Services,Network and Traffic Management,Services,11/05/2018,30170156,"3,743.86",Revenue,Dynniq UK Ltd,Contractors
Peterborough City Council,Peterborough Serco Strategic Partnership,PSSP Retained Services,Services,11/05/2018,30171533,"-18,043.73",Revenue,Konica Minolta Bus.Sol. East Ltd,Photocopying
Peterborough City Council,Peterborough Serco Strategic Partnership,PSSP Retained Services,Services,11/05/2018,30171536,"16,742.76",Revenue,Konica Minolta Bus.Sol. East Ltd,Photocopying
Peterborough City Council,Director,Director,Services,11/05/2018,30171715,"1,097.25",Revenue,The ADCS Ltd,Subscriptions
Peterborough City Council,Communities,Cultural Services,Repair & Maintenance of Buildings,11/05/2018,30173592,514.43,Revenue,Jones Lang LaSalle,Service Charges - Premises
Peterborough City Council,Adults,Strategic Commissioning - Management,Agency Staff,11/05/2018,30174690,"6,493.50",Revenue,Sanctuary Personnel Ltd,External Temporary Staff
Peterborough City Council,Corporate,Corporate,Non Revenue,11/05/2018,30174692,"98,680.00",Capital,Quadrant Security Group Ltd,Furniture And Equipment Purchase
Peterborough City Council,Corporate Property,Commercial Propety,Services,11/05/2018,30174743,"7,021.24",Revenue,ELECTRICAL TESTING AND COMPLIANCE SOLUTIONS LTD,Electrical Maintenance
Peterborough City Council,Westcombe Engineering,Westcombe Engineering,"Tools, Equipment, Furniture & Materials",11/05/2018,30174744,"1,159.40",Revenue,AALCO,Items For Resale
Peterborough City Council,ICT,ICT,Services,11/05/2018,30174781,"1,425.00",Revenue,Idox Software Ltd,Computer Software
Peterborough City Council,Marketing & Communications,Marketing & Communications,Services,11/05/2018,30174820,620,Revenue,RAW Creative Design Ltd,Printing
Peterborough City Council,Communities,Parking,Services,11/05/2018,30175161,"1,728.65",Revenue,Patrol,Hired Services
Peterborough City Council,Adults,Independent Sector Placements,Services,11/05/2018,30175173,"5,634.36",Revenue,Craegmoor Priory Group,Residential Care
Peterborough City Council,Adults,Independent Sector Placements,Services,11/05/2018,30175266,"4,454.84",Revenue,Craegmoor Priory Group,Residential Care
Peterborough City Council,Adults,Independent Sector Placements,Services,11/05/2018,30175267,920.44,Revenue,Craegmoor Priory Group,Residential Care
Peterborough City Council,Adults,Independent Sector Placements,Services,11/05/2018,30175268,"4,531.40",Revenue,Craegmoor Priory Group,Residential Care
Peterborough City Council,Adults,Independent Sector Placements,Services,11/05/2018,30175269,"3,127.60",Revenue,Craegmoor Priory Group,Residential Care
Peterborough City Council,Adults,Independent Sector Placements,Services,11/05/2018,30175271,"4,756.00",Revenue,Craegmoor Priory Group,Residential Care
Peterborough City Council,Westcombe Engineering,Westcombe Engineering,"Tools, Equipment, Furniture & Materials",11/05/2018,30175376,539.28,Revenue,Carillon Industrial Services Ltd,Tools
Peterborough City Council,Adults,Independent Sector Placements,Services,11/05/2018,30175443,600,Revenue,FIELD HOUSE (EYE) LTD,Residential Care
Peterborough City Council,Adults,Independent Sector Placements,Services,11/05/2018,30175445,"2,400.00",Revenue,FIELD HOUSE (EYE) LTD,Residential Care
Peterborough City Council,Adults,Independent Sector Placements,Services,11/05/2018,30175448,942.86,Revenue,FIELD HOUSE (EYE) LTD,Residential Care
Peterborough City Council,Adults,Independent Sector Placements,Services,11/05/2018,30175449,"2,400.00",Revenue,FIELD HOUSE (EYE) LTD,Residential Care
Peterborough City Council,Adults,Independent Sector Placements,Services,11/05/2018,30175450,"1,200.00",Revenue,FIELD HOUSE (EYE) LTD,Residential Care
Peterborough City Council,Adults,Strategic Commissioning - Management,Agency Staff,11/05/2018,30175551,"2,160.00",Revenue,Sanctuary Personnel Ltd,External Temporary Staff
Peterborough City Council,Commissioning and Commercial Operations,Clare Lodge,Agency Staff,11/05/2018,30175644,"1,648.00",Revenue,Wrixon Care Services,External Temporary Staff
Peterborough City Council,Commissioning and Commercial Operations,Clare Lodge,Agency Staff,11/05/2018,30175645,960,Revenue,Wrixon Care Services,External Temporary Staff
Peterborough City Council,Corporate,Corporate,Non Revenue,11/05/2018,30175658,"3,723.11",Capital,Vix Technology UK Ltd,Infrastructure
Peterborough City Council,Financial Services,Finance,Agency Staff,11/05/2018,30175703,860.3,Revenue,Morgan Hunt UK Ltd,External Temporary Staff
Peterborough City Council,Corporate,Corporate,Non Revenue,11/05/2018,30175708,750,Capital,NPS Peterborough Ltd,Consultants Fees
Peterborough City Council,Children's & Safeguarding,Adult & Children Safeguarding Board,Interview & Training Expenses,11/05/2018,30175822,650,Revenue,AJ Exclusive Events,Training
Peterborough City Council,Adults,Independent Sector Placements,Services,11/05/2018,30175867,"3,000.00",Revenue,FIELD HOUSE (EYE) LTD,Residential Care
Peterborough City Council,Adults,Independent Sector Placements,Services,11/05/2018,30176025,"4,559.00",Revenue,Voyage,Home Care
Peterborough City Council,Regulatory Services,Regulatory Services,Interview & Training Expenses,11/05/2018,30176103,"1,820.00",Revenue,Serco Ltd,Training
Peterborough City Council,Westcombe Engineering,Westcombe Engineering,"Tools, Equipment, Furniture & Materials",11/05/2018,30176124,"1,064.56",Revenue,Barron Clark Castings Ltd,Items For Resale
Peterborough City Council,Westcombe Engineering,Westcombe Engineering,"Tools, Equipment, Furniture & Materials",11/05/2018,30176130,823.32,Revenue,Barron Clark Castings Ltd,Items For Resale
Peterborough City Council,Adults,Independent Sector Placements,Services,11/05/2018,30176156,704.32,Revenue,Atlas Care Services Ltd,Home Care
Peterborough City Council,Communities,Housing,Services,11/05/2018,30176271,"2,359.00",Revenue,DA Rosalia Hotel,Homelessness Temporary Accommodation 
Peterborough City Council,Communities,Housing,Services,11/05/2018,30176272,714.56,Revenue,DA Rosalia Hotel,Homelessness Temporary Accommodation 
Peterborough City Council,Communities,Housing,Services,11/05/2018,30176273,595.56,Revenue,DA Rosalia Hotel,Homelessness Temporary Accommodation 
Peterborough City Council,Communities,Housing,Services,11/05/2018,30176274,595.56,Revenue,DA Rosalia Hotel,Homelessness Temporary Accommodation 
Peterborough City Council,Communities,Housing,Services,11/05/2018,30176275,595.56,Revenue,DA Rosalia Hotel,Homelessness Temporary Accommodation 
Peterborough City Council,Adults,Independent Sector Placements,Services,11/05/2018,30176289,"2,075.33",Revenue,Atlas Care Services Ltd,Home Care
Peterborough City Council,Peterborough Serco Strategic Partnership,PSSP Retained Services,Services,11/05/2018,30176299,"1,912.70",Revenue,Whistl UK Ltd,Postage
Peterborough City Council,Public Health,PH Commissioning,Third Party Payments,11/05/2018,30176309,"3,209.00",Revenue,Boroughbury Medical Centre,Third Party Payments - Contract
Peterborough City Council,HR,HR,Interview & Training Expenses,11/05/2018,30176314,614.62,Revenue,Health Assured Ltd,Training
Peterborough City Council,Public Health,PH Commissioning,Third Party Payments,11/05/2018,30176331,"1,209.00",Revenue,Paston Health Centre,Third Party Payments - Contract
Peterborough City Council,Public Health,PH Commissioning,Third Party Payments,11/05/2018,30176333,"1,702.00",Revenue,Westgate Surgery,Third Party Payments - Contract
Peterborough City Council,Public Health,PH Commissioning,Third Party Payments,11/05/2018,30176334,977,Revenue,Thorney Medical Practice,Third Party Payments - Contract
Peterborough City Council,Westcombe Engineering,Westcombe Engineering,"Tools, Equipment, Furniture & Materials",11/05/2018,30176782,608.32,Revenue,Barron Clark Castings Ltd,Items For Resale
Peterborough City Council,Corporate Property,Office Accomodation,Catering,11/05/2018,30176861,"5,496.40",Revenue,Cooler Aid Ltd,Catering Provisions
Peterborough City Council,Legal Services,Legal Services,Agency Staff,11/05/2018,30176915,"1,120.50",Revenue,Giant Professional Limited,External Temporary Staff
Peterborough City Council,Communities,Housing,Services,11/05/2018,30176918,816.62,Revenue,DA Rosalia Hotel,Homelessness Temporary Accommodation 
Peterborough City Council,Communities,Housing,Services,11/05/2018,30176919,"1,310.12",Revenue,DA Rosalia Hotel,Homelessness Temporary Accommodation 
Peterborough City Council,Communities,Housing,Services,11/05/2018,30176921,816.62,Revenue,DA Rosalia Hotel,Homelessness Temporary Accommodation 
Peterborough City Council,Communities,Housing,Services,11/05/2018,30176922,816.62,Revenue,DA Rosalia Hotel,Homelessness Temporary Accommodation 
Peterborough City Council,Communities,Housing,Services,11/05/2018,30176923,816.62,Revenue,DA Rosalia Hotel,Homelessness Temporary Accommodation 
Peterborough City Council,Communities,Housing,Services,11/05/2018,30176924,595.56,Revenue,DA Rosalia Hotel,Homelessness Temporary Accommodation 
Peterborough City Council,Communities,Housing,Services,11/05/2018,30176925,714.56,Revenue,DA Rosalia Hotel,Homelessness Temporary Accommodation 
Peterborough City Council,Communities,Housing,Services,11/05/2018,30176926,933.38,Revenue,DA Rosalia Hotel,Homelessness Temporary Accommodation 
Peterborough City Council,Communities,Housing,Services,11/05/2018,30176927,714.56,Revenue,DA Rosalia Hotel,Homelessness Temporary Accommodation 
Peterborough City Council,Communities,Housing,Services,11/05/2018,30176928,"1,310.12",Revenue,DA Rosalia Hotel,Homelessness Temporary Accommodation 
Peterborough City Council,Communities,Housing,Services,11/05/2018,30177011,714.56,Revenue,DA Rosalia Hotel,Homelessness Temporary Accommodation 
Peterborough City Council,Communities,Housing,Services,11/05/2018,30177012,595.56,Revenue,DA Rosalia Hotel,Homelessness Temporary Accommodation 
Peterborough City Council,Communities,Housing,Services,11/05/2018,30177014,714.56,Revenue,DA Rosalia Hotel,Homelessness Temporary Accommodation 
Peterborough City Council,Communities,Housing,Services,11/05/2018,30177015,595.56,Revenue,DA Rosalia Hotel,Homelessness Temporary Accommodation 
Peterborough City Council,Communities,Housing,Services,11/05/2018,30177016,933.38,Revenue,DA Rosalia Hotel,Homelessness Temporary Accommodation 
Peterborough City Council,Communities,Housing,Services,11/05/2018,30177017,595.56,Revenue,DA Rosalia Hotel,Homelessness Temporary Accommodation 
Peterborough City Council,Communities,Housing,Services,11/05/2018,30177018,816.62,Revenue,DA Rosalia Hotel,Homelessness Temporary Accommodation 
Peterborough City Council,Communities,Housing,Services,11/05/2018,30177019,816.62,Revenue,DA Rosalia Hotel,Homelessness Temporary Accommodation 
Peterborough City Council,Communities,Housing,Services,11/05/2018,30177020,595.56,Revenue,DA Rosalia Hotel,Homelessness Temporary Accommodation 
Peterborough City Council,Communities,Housing,Services,11/05/2018,30177023,714.56,Revenue,DA Rosalia Hotel,Homelessness Temporary Accommodation 
Peterborough City Council,Communities,Housing,Services,11/05/2018,30177024,595.56,Revenue,DA Rosalia Hotel,Homelessness Temporary Accommodation 
Peterborough City Council,Communities,Housing,Services,11/05/2018,30177025,714.56,Revenue,DA Rosalia Hotel,Homelessness Temporary Accommodation 
Peterborough City Council,Communities,Housing,Services,11/05/2018,30177027,816.62,Revenue,DA Rosalia Hotel,Homelessness Temporary Accommodation 
Peterborough City Council,Communities,Housing,Services,11/05/2018,30177029,"1,310.12",Revenue,DA Rosalia Hotel,Homelessness Temporary Accommodation 
Peterborough City Council,Communities,Housing,Services,11/05/2018,30177030,595.56,Revenue,DA Rosalia Hotel,Homelessness Temporary Accommodation 
Peterborough City Council,Communities,Housing,Services,11/05/2018,30177032,"1,120.00",Revenue,DA Rosalia Hotel,Homelessness Temporary Accommodation 
Peterborough City Council,Communities,Housing,Services,11/05/2018,30177033,595.56,Revenue,DA Rosalia Hotel,Homelessness Temporary Accommodation 
Peterborough City Council,Communities,Housing,Services,11/05/2018,30177034,"1,061.62",Revenue,DA Rosalia Hotel,Homelessness Temporary Accommodation 
Peterborough City Council,Communities,Housing,Services,11/05/2018,30177035,595.56,Revenue,DA Rosalia Hotel,Homelessness Temporary Accommodation 
Peterborough City Council,Communities,Housing,Services,11/05/2018,30177036,595.56,Revenue,DA Rosalia Hotel,Homelessness Temporary Accommodation 
Peterborough City Council,Communities,Housing,Services,11/05/2018,30177037,"1,061.62",Revenue,DA Rosalia Hotel,Homelessness Temporary Accommodation 
Peterborough City Council,Communities,Housing,Services,11/05/2018,30177039,"1,180.62",Revenue,DA Rosalia Hotel,Homelessness Temporary Accommodation 
Peterborough City Council,Communities,Housing,Services,11/05/2018,30177040,595.56,Revenue,DA Rosalia Hotel,Homelessness Temporary Accommodation 
Peterborough City Council,Communities,Housing,Services,11/05/2018,30177042,595.56,Revenue,DA Rosalia Hotel,Homelessness Temporary Accommodation 
Peterborough City Council,Communities,Housing,Services,11/05/2018,30177146,714.56,Revenue,DA Rosalia Hotel,Homelessness Temporary Accommodation 
Peterborough City Council,HR,HR,Services,11/05/2018,30177151,"1,276.00",Revenue,Disclosure and Barring Service,Criminal Record Check
Peterborough City Council,Communities,Housing,Services,11/05/2018,30177190,532,Revenue,Eastfield Guesthouse,Homelessness Temporary Accommodation 
Peterborough City Council,Communities,Housing,Services,11/05/2018,30177195,553,Revenue,Eastfield Guesthouse,Homelessness Temporary Accommodation 
Peterborough City Council,Communities,Housing,Services,11/05/2018,30177197,532,Revenue,Eastfield Guesthouse,Homelessness Temporary Accommodation 
Peterborough City Council,Communities,Housing,Services,11/05/2018,30177203,532,Revenue,Eastfield Guesthouse,Homelessness Temporary Accommodation 
Peterborough City Council,Communities,Housing,Services,11/05/2018,30177212,553,Revenue,Eastfield Guesthouse,Homelessness Temporary Accommodation 
Peterborough City Council,Communities,Housing,Services,11/05/2018,30177213,553,Revenue,Eastfield Guesthouse,Homelessness Temporary Accommodation 
Peterborough City Council,Communities,Housing,Services,11/05/2018,30177223,553,Revenue,Eastfield Guesthouse,Homelessness Temporary Accommodation 
Peterborough City Council,Communities,Housing,Services,11/05/2018,30177287,553,Revenue,Eastfield Guesthouse,Homelessness Temporary Accommodation 
Peterborough City Council,Communities,Housing,Services,11/05/2018,30177288,553,Revenue,Eastfield Guesthouse,Homelessness Temporary Accommodation 
Peterborough City Council,Communities,Housing,Services,11/05/2018,30177289,553,Revenue,Eastfield Guesthouse,Homelessness Temporary Accommodation 
Peterborough City Council,Communities,Housing,Services,11/05/2018,30177293,553,Revenue,Eastfield Guesthouse,Homelessness Temporary Accommodation 
Peterborough City Council,Communities,Housing,Services,11/05/2018,30177294,553,Revenue,Eastfield Guesthouse,Homelessness Temporary Accommodation 
Peterborough City Council,Communities,Housing,Services,11/05/2018,30177295,553,Revenue,Eastfield Guesthouse,Homelessness Temporary Accommodation 
Peterborough City Council,Communities,Housing,Services,11/05/2018,30177297,553,Revenue,Eastfield Guesthouse,Homelessness Temporary Accommodation 
Peterborough City Council,Communities,Housing,Services,11/05/2018,30177299,553,Revenue,Eastfield Guesthouse,Homelessness Temporary Accommodation 
Peterborough City Council,Communities,Housing,Services,11/05/2018,30177300,553,Revenue,Eastfield Guesthouse,Homelessness Temporary Accommodation 
Peterborough City Council,Communities,Housing,Services,11/05/2018,30177301,553,Revenue,Eastfield Guesthouse,Homelessness Temporary Accommodation 
Peterborough City Council,Communities,Housing,Services,11/05/2018,30177302,553,Revenue,Eastfield Guesthouse,Homelessness Temporary Accommodation 
Peterborough City Council,City Centre Management,"Markets, Tourism & Events",Agency Staff,11/05/2018,30177334,"3,599.00",Revenue,Central Management Solutions Ltd,External Temporary Staff
Peterborough City Council,Marketing & Communications,Marketing & Communications,Services,11/05/2018,30177362,"1,133.00",Revenue,G P Print Limited,Printing
Peterborough City Council,Communities,Housing,Services,11/05/2018,30177381,"38,197.50",Revenue,Stef & Philips Ltd,Homelessness Temporary Accommodation 
Peterborough City Council,Peterborough Serco Strategic Partnership,PSSP Retained Services,Services,11/05/2018,30177382,"22,148.56",Revenue,Konica Minolta Bus.Sol. East Ltd,Photocopying
Peterborough City Council,Corporate,Corporate,Non Revenue,11/05/2018,30177401,"4,407.48",Capital,InBuild Solutions Limited,Grant Payment
Peterborough City Council,Corporate,Corporate,Non Revenue,11/05/2018,30177409,"2,816.71",Capital,InBuild Solutions Limited,Grant Payment
Peterborough City Council,Financial Services,Finance,Agency Staff,11/05/2018,30177413,"1,471.60",Revenue,Reed Specialist Recruitment Limited,External Temporary Staff
Peterborough City Council,Corporate,Corporate,Non Revenue,11/05/2018,30177414,"4,515.68",Capital,InBuild Solutions Limited,Grant Payment
Peterborough City Council,Legal Services,Legal Services,Agency Staff,11/05/2018,30177423,"1,837.05",Revenue,Reed Specialist Recruitment Limited,External Temporary Staff
Peterborough City Council,Financial Services,Finance,Agency Staff,11/05/2018,30177435,664.24,Revenue,Reed Specialist Recruitment Limited,External Temporary Staff
Peterborough City Council,Legal Services,Legal Services,Agency Staff,11/05/2018,30177439,"2,025.38",Revenue,Reed Specialist Recruitment Limited,External Temporary Staff
Peterborough City Council,Peterborough Highway Services,Highway Services - HoS,Agency Staff,11/05/2018,30177498,855.9,Revenue,Reed Specialist Recruitment Limited,External Temporary Staff
Peterborough City Council,Adults,Independent Sector Placements,Services,11/05/2018,30177533,"14,105.00",Revenue,CAMBIAN CARE SERVICES LIMITED,Residential Care
Peterborough City Council,Corporate,Corporate,Non Revenue,11/05/2018,30177560,"7,600.00",Capital,Manor Roofing Limited,Building And Site Works
Peterborough City Council,Corporate,Corporate,Non Revenue,11/05/2018,30177563,"91,566.15",Capital,R G Carter Cambridge Ltd,Building And Site Works
Peterborough City Council,Public Health,PH Commissioning,Interview & Training Expenses,11/05/2018,30177570,"5,952.00",Revenue,NCSCT (National Centre for Smoking Cessation and Training),Training
Peterborough City Council,Communities,Housing,Services,11/05/2018,30177659,600,Revenue,Smartmove Property Solutions,Financial Assistance
Peterborough City Council,Peterborough Highway Services,Highway & Drainage Control,Services,11/05/2018,30177697,960,Revenue,Speed,Ict Services
Peterborough City Council,Communities,Housing,Services,11/05/2018,30177700,520,Revenue,Redacted Personal Data,Financial Assistance
Peterborough City Council,Communities,Housing,Services,11/05/2018,30177701,625,Revenue,Progressive Lets,Financial Assistance
Peterborough City Council,Adults,Independent Sector Placements,Services,11/05/2018,30177719,"-8,847.80",Revenue,CAMBIAN CARE SERVICES LIMITED,Residential Care
Peterborough City Council,Public Health,PH Commissioning,Services,11/05/2018,30177720,921.5,Revenue,"CGL - Change, Grow, Live",Hired Services
Peterborough City Council,Education,Special Educational Needs / Inclusion,Interview & Training Expenses,11/05/2018,30177729,875,Revenue,Lind Associates,Training
Peterborough City Council,Children's & Safeguarding,CSC Quality Assurance,Contract Hire and Operating Leases,11/05/2018,30177732,"5,446.54",Revenue,Northumbria Healthcare NHS Foundation Trust,Leasing Charges
Peterborough City Council,Adults,Independent Sector Placements,Services,11/05/2018,30177748,"4,633.32",Revenue,Augusta Care Ltd,Home Care
Peterborough City Council,Adults,Independent Sector Placements,Services,11/05/2018,30177756,603.93,Revenue,Axiom Housing Association Ltd,Home Care
Peterborough City Council,Commissioning and Commercial Operations,Early Years & Quality Improvement,Services,11/05/2018,30177763,615,Revenue,Little Tigers Day Nursery,Grant Payment
Peterborough City Council,Adults,Mental Capacity Act & DoLs,Services,11/05/2018,30177815,559.8,Revenue,SS Psychiatric Services Ltd,Hired Services
Peterborough City Council,Commissioning and Commercial Operations,Early Years & Quality Improvement,Services,11/05/2018,30177829,615,Revenue,Sunflower Seed Pre-School,Grant Payment
Peterborough City Council,Adults,Mental Capacity Act & DoLs,Services,11/05/2018,30177841,744.8,Revenue,SS Psychiatric Services Ltd,Hired Services
Peterborough City Council,Children's & Safeguarding,External Education Placements,Services,11/05/2018,30177859,"3,977.33",Revenue,Lincoln Castle Academy,Out Of Area Education Costs
Peterborough City Council,Children's & Safeguarding,Children's Social Care,Services,11/05/2018,30177871,511.67,Revenue,Redacted Personal Data,Financial Assistance
Peterborough City Council,Children's & Safeguarding,Early Help ASC/CSC,Services,11/05/2018,30177874,"65,256.70",Revenue,Family Action,Programmes
Peterborough City Council,Adults,Community Team,Contract Hire and Operating Leases,11/05/2018,30177888,"3,400.98",Revenue,Northumbria Healthcare NHS Foundation Trust,Leasing Charges
Peterborough City Council,Financial Services,Insurance,Services,11/05/2018,30177944,578,Revenue,Browne Jacobson,Legal Costs
Peterborough City Council,HR,HR WFD & Training,Services,11/05/2018,30177966,875,Revenue,Kingsley Knight Law Limited,Course Instructors Fees
Peterborough City Council,Constitutional Services,Elections,"Tools, Equipment, Furniture & Materials",11/05/2018,30177971,"1,400.00",Revenue,R J Mason Blacksmith & Farrier,Furniture And Equipment Purchase
Peterborough City Council,Children's & Safeguarding,External Education Placements,Services,11/05/2018,30177974,"2,590.27",Revenue,Farcet C.E. (C) Primary School,Out Of Area Education Costs
Peterborough City Council,Education,Special Educational Needs / Inclusion,Services,11/05/2018,30177976,"6,842.50",Revenue,Lind Associates,Consultants Fees
Peterborough City Council,Corporate,Corporate,Non Revenue,11/05/2018,30177980,"192,036.77",Capital,Kier Construction Ltd,Building And Site Works
Peterborough City Council,Constitutional Services,Democratic Services,Contract Hire and Operating Leases,11/05/2018,30177985,"4,614.64",Revenue,Northumbria Healthcare NHS Foundation Trust,Leasing Charges
Peterborough City Council,Children's & Safeguarding,CSC Quality Assurance,Contract Hire and Operating Leases,11/05/2018,30177986,"6,337.12",Revenue,Northumbria Healthcare NHS Foundation Trust,Leasing Charges
Peterborough City Council,Children's & Safeguarding,Children's Social Care,Contract Hire and Operating Leases,11/05/2018,30177988,"3,322.35",Revenue,Northumbria Healthcare NHS Foundation Trust,Leasing Charges
Peterborough City Council,Children's & Safeguarding,CSC Quality Assurance,Contract Hire and Operating Leases,11/05/2018,30177989,"4,937.20",Revenue,Northumbria Healthcare NHS Foundation Trust,Leasing Charges
Peterborough City Council,Children's & Safeguarding,Children's Social Care,Contract Hire and Operating Leases,11/05/2018,30177990,"4,159.84",Revenue,Northumbria Healthcare NHS Foundation Trust,Leasing Charges
Peterborough City Council,Communities,Housing,Contract Hire and Operating Leases,11/05/2018,30177991,"4,495.61",Revenue,Northumbria Healthcare NHS Foundation Trust,Leasing Charges
Peterborough City Council,Education,Special Educational Needs / Inclusion,Interview & Training Expenses,11/05/2018,30178027,620.5,Revenue,"Swiss Cottage Sch,Development & Research Cntr",Training
Peterborough City Council,Adults,Independent Sector Placements,Services,11/05/2018,8000114329,630,Revenue,Cambridgeshirehomecare,Home Care
Peterborough City Council,Adults,Independent Sector Placements,Services,11/05/2018,8000114330,896.25,Revenue,Cambridgeshirehomecare,Home Care
Peterborough City Council,Adults,Independent Sector Placements,Services,11/05/2018,8000114331,540,Revenue,Cambridgeshirehomecare,Home Care
Peterborough City Council,Adults,Independent Sector Placements,Services,11/05/2018,8000114333,"11,148.71",Revenue,Cambridgeshirehomecare,Home Care
Peterborough City Council,Adults,Independent Sector Placements,Services,11/05/2018,8000114335,900,Revenue,Cambridgeshirehomecare,Home Care
Peterborough City Council,Adults,Independent Sector Placements,Services,11/05/2018,8000114336,680.34,Revenue,Merit Homecare Ltd,Home Care
Peterborough City Council,Adults,Independent Sector Placements,Services,11/05/2018,8000114341,524.4,Revenue,Merit Homecare Ltd,Home Care
Peterborough City Council,Adults,Independent Sector Placements,Services,11/05/2018,8000114342,907.35,Revenue,Merit Homecare Ltd,Home Care
Peterborough City Council,Adults,Independent Sector Placements,Services,11/05/2018,8000114344,989.92,Revenue,Merit Homecare Ltd,Home Care
Peterborough City Council,Adults,Independent Sector Placements,Services,11/05/2018,8000114349,579.6,Revenue,Merit Homecare Ltd,Home Care
Peterborough City Council,Adults,Independent Sector Placements,Services,11/05/2018,8000114352,"1,738.80",Revenue,Merit Homecare Ltd,Home Care
Peterborough City Council,Adults,Independent Sector Placements,Services,11/05/2018,8000114354,690,Revenue,Merit Homecare Ltd,Home Care
Peterborough City Council,Adults,Independent Sector Placements,Services,11/05/2018,8000114358,562.35,Revenue,Merit Homecare Ltd,Home Care
Peterborough City Council,Adults,Independent Sector Placements,Services,11/05/2018,8000114360,676.2,Revenue,Merit Homecare Ltd,Home Care
Peterborough City Council,Adults,Independent Sector Placements,Services,11/05/2018,8000114367,572.7,Revenue,Merit Homecare Ltd,Home Care
Peterborough City Council,Adults,Independent Sector Placements,Services,11/05/2018,8000114371,"1,538.70",Revenue,Merit Homecare Ltd,Home Care
Peterborough City Council,Adults,Independent Sector Placements,Services,11/05/2018,8000114372,"1,738.80",Revenue,Merit Homecare Ltd,Home Care
Peterborough City Council,Adults,Independent Sector Placements,Services,11/05/2018,8000114373,552,Revenue,Merit Homecare Ltd,Home Care
Peterborough City Council,Adults,Independent Sector Placements,Services,11/05/2018,8000114381,979.8,Revenue,Merit Homecare Ltd,Home Care
Peterborough City Council,Adults,Independent Sector Placements,Services,11/05/2018,8000114382,800.4,Revenue,Merit Homecare Ltd,Home Care
Peterborough City Council,Adults,Independent Sector Placements,Services,11/05/2018,8000114383,786.6,Revenue,Merit Homecare Ltd,Home Care
Peterborough City Council,Adults,Independent Sector Placements,Services,11/05/2018,8000114386,586.5,Revenue,Merit Homecare Ltd,Home Care
Peterborough City Council,Adults,Independent Sector Placements,Services,11/05/2018,8000114387,865.95,Revenue,Merit Homecare Ltd,Home Care
Peterborough City Council,Adults,Independent Sector Placements,Services,11/05/2018,8000114390,631.35,Revenue,Merit Homecare Ltd,Home Care
Peterborough City Council,Adults,Independent Sector Placements,Services,11/05/2018,8000114394,779.7,Revenue,Merit Homecare Ltd,Home Care
Peterborough City Council,Adults,Independent Sector Placements,Services,11/05/2018,8000114397,"1,193.70",Revenue,Merit Homecare Ltd,Home Care
Peterborough City Council,Adults,Independent Sector Placements,Services,11/05/2018,8000114398,700.35,Revenue,Merit Homecare Ltd,Home Care
Peterborough City Council,Adults,Independent Sector Placements,Services,11/05/2018,8000114401,"1,007.40",Revenue,Merit Homecare Ltd,Home Care
Peterborough City Council,Adults,Independent Sector Placements,Services,11/05/2018,8000114402,"1,186.80",Revenue,Merit Homecare Ltd,Home Care
Peterborough City Council,Adults,Independent Sector Placements,Services,11/05/2018,8000114404,696.9,Revenue,Merit Homecare Ltd,Home Care
Peterborough City Council,Adults,Independent Sector Placements,Services,11/05/2018,8000114405,917.7,Revenue,Merit Homecare Ltd,Home Care
Peterborough City Council,Adults,Independent Sector Placements,Services,11/05/2018,8000114409,524.4,Revenue,Merit Homecare Ltd,Home Care
Peterborough City Council,Adults,Independent Sector Placements,Services,11/05/2018,8000114413,897,Revenue,Merit Homecare Ltd,Home Care
Peterborough City Council,Adults,Independent Sector Placements,Services,11/05/2018,8000114414,607.2,Revenue,Merit Homecare Ltd,Home Care
Peterborough City Council,Adults,Independent Sector Placements,Services,11/05/2018,8000114417,579.6,Revenue,Merit Homecare Ltd,Home Care
Peterborough City Council,Adults,Independent Sector Placements,Services,11/05/2018,8000114498,506.25,Revenue,Cross Keys Homes,Home Care
Peterborough City Council,Adults,Independent Sector Placements,Services,11/05/2018,8000114500,817.5,Revenue,Cross Keys Homes,Home Care
Peterborough City Council,Adults,Independent Sector Placements,Services,11/05/2018,8000114503,570,Revenue,Cross Keys Homes,Home Care
Peterborough City Council,Adults,Independent Sector Placements,Services,11/05/2018,8000114504,"1,935.00",Revenue,Cross Keys Homes,Home Care
Peterborough City Council,Adults,Independent Sector Placements,Services,11/05/2018,8000114505,555,Revenue,Cross Keys Homes,Home Care
Peterborough City Council,Adults,Independent Sector Placements,Services,11/05/2018,8000114506,"2,730.00",Revenue,Cross Keys Homes,Home Care
Peterborough City Council,Adults,Independent Sector Placements,Services,11/05/2018,8000114507,791.25,Revenue,Cross Keys Homes,Home Care
Peterborough City Council,Adults,Independent Sector Placements,Services,11/05/2018,8000114508,540,Revenue,Cross Keys Homes,Home Care
Peterborough City Council,Adults,Independent Sector Placements,Services,11/05/2018,8000114511,840,Revenue,Cross Keys Homes,Home Care
Peterborough City Council,Adults,Independent Sector Placements,Services,11/05/2018,8000114516,"1,027.50",Revenue,Cross Keys Homes,Home Care
Peterborough City Council,Adults,Independent Sector Placements,Services,11/05/2018,8000114517,680,Revenue,Cross Keys Homes,Home Care
Peterborough City Council,Adults,Independent Sector Placements,Services,11/05/2018,8000114519,600,Revenue,Cross Keys Homes,Home Care
Peterborough City Council,Adults,Independent Sector Placements,Services,11/05/2018,8000114520,840,Revenue,Cross Keys Homes,Home Care
Peterborough City Council,Adults,Independent Sector Placements,Services,11/05/2018,8000114522,"1,027.50",Revenue,Cross Keys Homes,Home Care
Peterborough City Council,Adults,Independent Sector Placements,Services,11/05/2018,8000114524,832.5,Revenue,Cross Keys Homes,Home Care
Peterborough City Council,Adults,Independent Sector Placements,Services,11/05/2018,8000114528,772.5,Revenue,Cross Keys Homes,Home Care
Peterborough City Council,Adults,Independent Sector Placements,Services,11/05/2018,8000114531,"14,541.16",Revenue,Atlas Care Services Ltd,Home Care
Peterborough City Council,Adults,Independent Sector Placements,Services,11/05/2018,8000114533,788.1,Revenue,Atlas Care Services Ltd,Home Care
Peterborough City Council,Adults,Independent Sector Placements,Services,11/05/2018,8000114538,"1,582.59",Revenue,Atlas Care Services Ltd,Home Care
Peterborough City Council,Adults,Independent Sector Placements,Services,11/05/2018,8000114540,591.43,Revenue,Atlas Care Services Ltd,Home Care
Peterborough City Council,Adults,Independent Sector Placements,Services,11/05/2018,8000114541,"1,588.98",Revenue,Atlas Care Services Ltd,Home Care
Peterborough City Council,Adults,Independent Sector Placements,Services,11/05/2018,8000114545,"2,376.37",Revenue,Atlas Care Services Ltd,Home Care
Peterborough City Council,Adults,Independent Sector Placements,Services,11/05/2018,8000114548,984.06,Revenue,Atlas Care Services Ltd,Home Care
Peterborough City Council,Adults,Independent Sector Placements,Services,11/05/2018,8000114549,558.77,Revenue,Atlas Care Services Ltd,Home Care
Peterborough City Council,Adults,Independent Sector Placements,Services,11/05/2018,8000114550,681.6,Revenue,Atlas Care Services Ltd,Home Care
Peterborough City Council,Adults,Independent Sector Placements,Services,11/05/2018,8000114553,878.27,Revenue,Atlas Care Services Ltd,Home Care
Peterborough City Council,Adults,Independent Sector Placements,Services,11/05/2018,8000114555,994,Revenue,Atlas Care Services Ltd,Home Care
Peterborough City Council,Adults,Independent Sector Placements,Services,11/05/2018,8000114557,680.18,Revenue,Atlas Care Services Ltd,Home Care
Peterborough City Council,Adults,Independent Sector Placements,Services,11/05/2018,8000114559,"2,406.90",Revenue,Atlas Care Services Ltd,Home Care
Peterborough City Council,Adults,Independent Sector Placements,Services,11/05/2018,8000114561,"2,022.08",Revenue,Atlas Care Services Ltd,Home Care
Peterborough City Council,Adults,Independent Sector Placements,Services,11/05/2018,8000114564,578.65,Revenue,Atlas Care Services Ltd,Home Care
Peterborough City Council,Adults,Independent Sector Placements,Services,11/05/2018,8000114565,585.75,Revenue,Atlas Care Services Ltd,Home Care
Peterborough City Council,Adults,Independent Sector Placements,Services,11/05/2018,8000114567,838.51,Revenue,Atlas Care Services Ltd,Home Care
Peterborough City Council,Adults,Independent Sector Placements,Services,11/05/2018,8000114570,724.2,Revenue,Atlas Care Services Ltd,Home Care
Peterborough City Council,Adults,Independent Sector Placements,Services,11/05/2018,8000114572,"1,980.90",Revenue,Atlas Care Services Ltd,Home Care
Peterborough City Council,Adults,Independent Sector Placements,Services,11/05/2018,8000114574,538.89,Revenue,Atlas Care Services Ltd,Home Care
Peterborough City Council,Adults,Independent Sector Placements,Services,11/05/2018,8000114575,"1,390.89",Revenue,Atlas Care Services Ltd,Home Care
Peterborough City Council,Adults,Independent Sector Placements,Services,11/05/2018,8000114578,"1,091.27",Revenue,Atlas Care Services Ltd,Home Care
Peterborough City Council,Adults,Independent Sector Placements,Services,11/05/2018,8000114579,792.36,Revenue,Atlas Care Services Ltd,Home Care
Peterborough City Council,Adults,Independent Sector Placements,Services,11/05/2018,8000114580,"1,838.90",Revenue,Atlas Care Services Ltd,Home Care
Peterborough City Council,Adults,Independent Sector Placements,Services,11/05/2018,8000114582,996.84,Revenue,Atlas Care Services Ltd,Home Care
Peterborough City Council,Adults,Independent Sector Placements,Services,11/05/2018,8000114591,"1,059.32",Revenue,Atlas Care Services Ltd,Home Care
Peterborough City Council,Adults,Independent Sector Placements,Services,11/05/2018,8000114598,"1,642.94",Revenue,Atlas Care Services Ltd,Home Care
Peterborough City Council,Adults,Independent Sector Placements,Services,11/05/2018,8000114599,886.79,Revenue,Atlas Care Services Ltd,Home Care
Peterborough City Council,Adults,Independent Sector Placements,Services,11/05/2018,8000114606,"1,086.30",Revenue,Atlas Care Services Ltd,Home Care
Peterborough City Council,Adults,Independent Sector Placements,Services,11/05/2018,8000114607,960,Revenue,Cross Keys Homes,Home Care
Peterborough City Council,Adults,Independent Sector Placements,Services,11/05/2018,8000114608,915,Revenue,Cross Keys Homes,Home Care
Peterborough City Council,Adults,Independent Sector Placements,Services,11/05/2018,8000114609,982.5,Revenue,Cross Keys Homes,Home Care
Peterborough City Council,Adults,Independent Sector Placements,Services,11/05/2018,8000114926,766.8,Revenue,Atlas Care Services Ltd,Home Care
Peterborough City Council,Adults,Independent Sector Placements,Services,11/05/2018,8000114927,793.78,Revenue,Atlas Care Services Ltd,Home Care
Peterborough City Council,Adults,Independent Sector Placements,Services,11/05/2018,8000114928,"1,738.08",Revenue,Atlas Care Services Ltd,Home Care
Peterborough City Council,Adults,Independent Sector Placements,Services,11/05/2018,8000114929,"1,254.57",Revenue,Atlas Care Services Ltd,Home Care
Peterborough City Council,Adults,Independent Sector Placements,Services,11/05/2018,8000115656,"1,690.13",Revenue,Allied Healthcare (UK) Ltd,Home Care
Peterborough City Council,Adults,Independent Sector Placements,Services,11/05/2018,8000115669,"1,089.75",Revenue,PRESTIGE NURSING LIMITED,Home Care
Peterborough City Council,Adults,Independent Sector Placements,Services,11/05/2018,8000115671,929.25,Revenue,PRESTIGE NURSING LIMITED,Home Care
Peterborough City Council,Adults,Independent Sector Placements,Services,11/05/2018,8000115673,661.5,Revenue,PRESTIGE NURSING LIMITED,Home Care
Peterborough City Council,Adults,Independent Sector Placements,Services,11/05/2018,8000115674,858.25,Revenue,PRESTIGE NURSING LIMITED,Home Care
Peterborough City Council,Education,HTS & CSC Transport,Contract Hire and Operating Leases,11/05/2018,8000115714,"4,739.19",Revenue,Goldstar Cabs Ltd,Hired Transport
Peterborough City Council,Education,HTS & CSC Transport,Contract Hire and Operating Leases,11/05/2018,8000115715,"4,709.14",Revenue,Goldstar Cabs Ltd,Hired Transport
Peterborough City Council,Education,HTS & CSC Transport,Contract Hire and Operating Leases,11/05/2018,8000115716,"4,546.46",Revenue,Goldstar Cabs Ltd,Hired Transport
Peterborough City Council,Education,HTS & CSC Transport,Contract Hire and Operating Leases,11/05/2018,8000115717,"3,551.71",Revenue,Goldstar Cabs Ltd,Hired Transport
Peterborough City Council,Education,HTS & CSC Transport,Contract Hire and Operating Leases,11/05/2018,8000115721,871.49,Revenue,Redacted Personal Data,Hired Transport
Peterborough City Council,Legal & Democratic,Democratic Services,Contract Hire and Operating Leases,11/05/2018,8000115806,534.32,Revenue,Lex Autolease Ltd,Leasing Charges
Peterborough City Council,Other - Exclude,Other,Services,14/05/2018,30174940,"13,662.00",Revenue,Eye Parish Council,Grant Payment
Peterborough City Council,Commissioning and Commercial Operations,Commissioning,Services,14/05/2018,30174972,"9,250.00",Revenue,Spurgeons,Hired Services
Peterborough City Council,Children's & Safeguarding,Children's Social Care,Agency Staff,14/05/2018,30174978,"1,406.00",Revenue,NonStop Recruitment Ltd,External Temporary Staff
Peterborough City Council,Public Health,PH Commissioning,Services,14/05/2018,30175113,500,Revenue,COMPAS,Grant Payment
Peterborough City Council,Adults,Independent Sector Placements,Services,14/05/2018,30175452,"1,465.92",Revenue,PRIME LIFE LTD (Caenarvon House),Residential Care
Peterborough City Council,Adults,Independent Sector Placements,Services,14/05/2018,30175629,926,Revenue,Swanton Community Support,Residential Care
Peterborough City Council,Commissioning and Commercial Operations,Clare Lodge,Agency Staff,14/05/2018,30175642,"1,040.00",Revenue,Wrixon Care Services,External Temporary Staff
Peterborough City Council,Corporate Property,Office Accomodation,Services,14/05/2018,30175650,"1,700.00",Revenue,NPS Peterborough Ltd,Security
Peterborough City Council,Adults,Block Contracts,Third Party Payments,14/05/2018,30175665,"1,999.20",Revenue,Axiom Crossroads Care,Third Party Payments - Contract
Peterborough City Council,Adults,Block Contracts,Third Party Payments,14/05/2018,30175667,"1,999.20",Revenue,Axiom Crossroads Care,Third Party Payments - Contract
Peterborough City Council,Peterborough Highway Services,Transport & Infrastructure Commissioning,Services,14/05/2018,30175678,"6,347.66",Revenue,Stagecoach in Peterborough,Contractors
Peterborough City Council,Peterborough Highway Services,Asset & Contract Performance,Services,14/05/2018,30175725,"14,253.00",Revenue,Building Software Limited,Surveys
Peterborough City Council,Peterborough Highway Services,Transport & Infrastructure Commissioning,Third Party Payments,14/05/2018,30175731,"1,136.50",Revenue,Royal Voluntary Service,Grant-Third Party
Peterborough City Council,Commissioning and Commercial Operations,Clare Lodge,Interview & Training Expenses,14/05/2018,30175750,"1,565.93",Revenue,Calm Training Services Ltd,Training
Peterborough City Council,"Cemeteries, Cremation & Registrars",Bereavement Service,"Tools, Equipment, Furniture & Materials",14/05/2018,30175762,960,Revenue,A M Strickland Builders,Materials
Peterborough City Council,Regulatory Services,Regulatory Services,"Tools, Equipment, Furniture & Materials",14/05/2018,30175825,"1,229.04",Revenue,VIP-System Ltd,Equipment
Peterborough City Council,Communities,Cultural Services,Rents,14/05/2018,30175872,"3,838.80",Revenue,Jones Lang LaSalle,Rent
Peterborough City Council,City Centre Management,"Markets, Tourism & Events",Services,14/05/2018,30175894,795,Revenue,Nabma,Subscriptions
Peterborough City Council,Adults,Block Contracts,Third Party Payments,14/05/2018,30175960,"5,664.40",Revenue,Axiom Crossroads Care,Third Party Payments - Contract
Peterborough City Council,Adults,Block Contracts,Third Party Payments,14/05/2018,30175972,"5,664.40",Revenue,Axiom Crossroads Care,Third Party Payments - Contract
Peterborough City Council,Adults,Block Contracts,Third Party Payments,14/05/2018,30175974,"5,664.40",Revenue,Axiom Crossroads Care,Third Party Payments - Contract
Peterborough City Council,Public Health,PH Commissioning,Third Party Payments,14/05/2018,30176576,"2,944.00",Revenue,Paston Health Centre,Third Party Payments - Contract
Peterborough City Council,"Waste, Cleansing and Open Spaces",Waste Management,Services,14/05/2018,30176712,"20,565.76",Revenue,AmeyCespa (East) Ltd,Recycling
Peterborough City Council,Adults,Block Contracts,Third Party Payments,14/05/2018,30176825,"1,999.20",Revenue,Axiom Crossroads Care,Third Party Payments - Contract
Peterborough City Council,Communities,Housing,Services,14/05/2018,30177022,595.56,Revenue,DA Rosalia Hotel,Homelessness Temporary Accommodation 
Peterborough City Council,"Director, OP & JV",Growth HoS,Third Party Payments,14/05/2018,30177496,"986,759.61",Revenue,Skanska Construction UK Ltd,Third Party Payments - Contract
Peterborough City Council,Commissioning and Commercial Operations,Commissioning,Services,14/05/2018,30177743,551.47,Revenue,CAPITA Translation and Interpreting,Interpretation Expenses
Peterborough City Council,Commissioning and Commercial Operations,Commissioning,Services,14/05/2018,30177744,"3,500.20",Revenue,CAPITA Translation and Interpreting,Interpretation Expenses
Peterborough City Council,Children's & Safeguarding,External Education Placements,Services,14/05/2018,30177858,"11,552.05",Revenue,New Bridge School,Out Of Area Education Costs
Peterborough City Council,Commissioning and Commercial Operations,Commissioning,Services,14/05/2018,30177977,905.83,Revenue,CAPITA Translation and Interpreting,Interpretation Expenses
Peterborough City Council,Public Health,PH Commissioning,Third Party Payments,14/05/2018,30178048,"1,104.00",Revenue,Westwood Clinic,Third Party Payments - Contract
Peterborough City Council,Education,Special Educational Needs / Inclusion,Agency Staff,14/05/2018,30178072,"1,100.00",Revenue,Permanent Futures Ltd,External Temporary Staff
Peterborough City Council,Education,Special Educational Needs / Inclusion,Agency Staff,14/05/2018,30178073,"1,100.00",Revenue,Permanent Futures Ltd,External Temporary Staff
Peterborough City Council,Children's & Safeguarding,External Education Placements,Services,14/05/2018,30178132,"3,800.00",Revenue,Kirkstone House School,Boarding Out Allowances
Peterborough City Council,Children's & Safeguarding,External Education Placements,Services,14/05/2018,30178133,"3,800.00",Revenue,Kirkstone House School,Boarding Out Allowances
Peterborough City Council,Children's & Safeguarding,External Education Placements,Services,14/05/2018,30178134,"3,166.00",Revenue,Kirkstone House School,Boarding Out Allowances
Peterborough City Council,Children's & Safeguarding,External Education Placements,Services,14/05/2018,30178135,"3,800.00",Revenue,Kirkstone House School,Boarding Out Allowances
Peterborough City Council,Children's & Safeguarding,External Education Placements,Services,14/05/2018,30178136,"2,990.14",Revenue,Kirkstone House School,Boarding Out Allowances
Peterborough City Council,Children's & Safeguarding,External Education Placements,Services,14/05/2018,30178137,"3,800.00",Revenue,Kirkstone House School,Boarding Out Allowances
Peterborough City Council,Children's & Safeguarding,External Education Placements,Services,14/05/2018,30178139,"3,800.00",Revenue,Kirkstone House School,Boarding Out Allowances
Peterborough City Council,Children's & Safeguarding,External Education Placements,Services,14/05/2018,30178141,"3,800.00",Revenue,Kirkstone House School,Boarding Out Allowances
Peterborough City Council,Corporate,Corporate,Non Revenue,14/05/2018,30178182,"66,687.54",Balance Sheet,LGSS Cambridgeshire Pension Fund,Pensions
Peterborough City Council,Corporate,Corporate,Non Revenue,14/05/2018,30178184,"1,175.45",Balance Sheet,NHS Pensions,Pensions
Peterborough City Council,Corporate,Corporate,Non Revenue,14/05/2018,30178188,"16,232.26",Balance Sheet,LGSS Cambridgeshire Pension Fund,Pensions
Peterborough City Council,Corporate,Corporate,Non Revenue,14/05/2018,30178189,"474,497.87",Balance Sheet,LGSS Cambridgeshire Pension Fund,Pensions
Peterborough City Council,Corporate,Corporate,Non Revenue,14/05/2018,30178190,"10,009.50",Balance Sheet,NHS Pensions,Pensions
Peterborough City Council,Corporate,Corporate,Non Revenue,14/05/2018,30178192,"1,743.92",Balance Sheet,NHS Pensions,Pensions
Peterborough City Council,Corporate,Corporate,Non Revenue,14/05/2018,30178193,"5,380.58",Balance Sheet,NHS Pensions,Pensions
Peterborough City Council,Corporate,Corporate,Non Revenue,14/05/2018,30178194,"192,374.38",Balance Sheet,LGSS Cambridgeshire Pension Fund,Pensions
Peterborough City Council,Communities,Housing,Services,14/05/2018,30178244,"38,197.50",Revenue,Stef & Philips Ltd,Homelessness Temporary Accommodation 
